Transaction Date,Local Authority Department,Beneficiary,Purpose of Expenditure,Amount (excluding VAT),Non Recoverable VAT,Merchant Category
 01-07-2022,Adults,Marlow,Residential Placements - Private Contractors Payment,6360.56,0.00,COMMERCIAL SUPPLIER 
 01-07-2022,Adults,Marlow,Residential Placements - Private Contractors Payment,2018.48,0.00,COMMERCIAL SUPPLIER 
 01-07-2022,Adults,Lorablooms Care Services Ltd,Home Care - Private Contractors Payment,2365.44,0.00,NON COMMERCIAL SUPPLIER 
 01-07-2022,Adults,Lorablooms Care Services Ltd,Home Care - Private Contractors Payment,2365.44,0.00,NON COMMERCIAL SUPPLIER 
 01-07-2022,Adults,Havering Mind,Payments To Voluntary Sector,3196.46,0.00,NON COMMERCIAL SUPPLIER 
 01-07-2022,Adults,Havering Mind,Payments To Voluntary Sector,3196.46,0.00,NON COMMERCIAL SUPPLIER 
 01-07-2022,Adults,London Borough of Barking & Dagenham_a,Daycare - Private Contractors Payment,3600.00,0.00,LOCAL AUTHORITY SERVICES 
 01-07-2022,Adults,London Borough of Barking & Dagenham_a,Daycare - Private Contractors Payment,3600.00,0.00,LOCAL AUTHORITY SERVICES 
 01-07-2022,Adults,London Borough of Barking & Dagenham_a,Daycare - Private Contractors Payment,2160.00,0.00,LOCAL AUTHORITY SERVICES 
 01-07-2022,Adults,London Borough of Barking & Dagenham_a,Daycare - Private Contractors Payment,3600.00,0.00,LOCAL AUTHORITY SERVICES 
 01-07-2022,Adults,London Borough of Barking & Dagenham_a,Daycare - Private Contractors Payment,1440.00,0.00,LOCAL AUTHORITY SERVICES 
 01-07-2022,Adults,London Borough of Barking & Dagenham_a,Daycare - Private Contractors Payment,3600.00,0.00,LOCAL AUTHORITY SERVICES 
 01-07-2022,Adults,London Borough of Barking & Dagenham_a,Daycare - Private Contractors Payment,2160.00,0.00,LOCAL AUTHORITY SERVICES 
 01-07-2022,Adults,Star Mini Cabs.,Client Transport,800.00,0.00,COMMERCIAL SUPPLIER 
 01-07-2022,Adults,Fountains Care Centre - Bondcare,Nursing Homes - Private Contractors Payment,2712.00,0.00,COMMERCIAL SUPPLIER 
 01-07-2022,Adults,Fountains Care Centre - Bondcare,Nursing Homes - Private Contractors Payment,2712.00,0.00,COMMERCIAL SUPPLIER 
 01-07-2022,Adults,Fountains Care Centre - Bondcare,Nursing Homes - Private Contractors Payment,2227.71,0.00,COMMERCIAL SUPPLIER 
 01-07-2022,Adults,Fountains Care Centre - Bondcare,Nursing Homes - Private Contractors Payment,2712.00,0.00,COMMERCIAL SUPPLIER 
 01-07-2022,Adults,Fountains Care Centre - Bondcare,Nursing Homes - Private Contractors Payment,2712.00,0.00,COMMERCIAL SUPPLIER 
 01-07-2022,Adults,Fountains Care Centre - Bondcare,Residential Placements - Private Contractors Payment,2780.00,0.00,COMMERCIAL SUPPLIER 
 01-07-2022,Adults,Fountains Care Centre - Bondcare,Nursing Homes - Private Contractors Payment,2712.00,0.00,COMMERCIAL SUPPLIER 
 01-07-2022,Adults,Fountains Care Centre - Bondcare,Residential Placements - Private Contractors Payment,2480.00,0.00,COMMERCIAL SUPPLIER 
 01-07-2022,Adults,Fountains Care Centre - Bondcare,Nursing Homes - Private Contractors Payment,3412.52,0.00,COMMERCIAL SUPPLIER 
 01-07-2022,Adults,Fountains Care Centre - Bondcare,Nursing Homes - Private Contractors Payment,2227.71,0.00,COMMERCIAL SUPPLIER 
 01-07-2022,Adults,Fountains Care Centre - Bondcare,Nursing Homes - Private Contractors Payment,2712.00,0.00,COMMERCIAL SUPPLIER 
 01-07-2022,Adults,Fountains Care Centre - Bondcare,Nursing Homes - Private Contractors Payment,2712.00,0.00,COMMERCIAL SUPPLIER 
 01-07-2022,Adults,Fountains Care Centre - Bondcare,Residential Placements - Private Contractors Payment,2780.00,0.00,COMMERCIAL SUPPLIER 
 01-07-2022,Adults,Fountains Care Centre - Bondcare,Nursing Homes - Private Contractors Payment,2712.00,0.00,COMMERCIAL SUPPLIER 
 01-07-2022,Adults,Fountains Care Centre - Bondcare,Nursing Homes - Private Contractors Payment,2712.00,0.00,COMMERCIAL SUPPLIER 
 01-07-2022,Adults,Fountains Care Centre - Bondcare,Nursing Homes - Private Contractors Payment,2712.00,0.00,COMMERCIAL SUPPLIER 
 01-07-2022,Adults,Fountains Care Centre - Bondcare,Nursing Homes - Private Contractors Payment,2712.00,0.00,COMMERCIAL SUPPLIER 
 01-07-2022,Adults,Fountains Care Centre - Bondcare,Nursing Homes - Private Contractors Payment,2712.00,0.00,COMMERCIAL SUPPLIER 
 01-07-2022,Adults,Fountains Care Centre - Bondcare,Nursing Homes - Private Contractors Payment,2712.00,0.00,COMMERCIAL SUPPLIER 
 01-07-2022,Adults,Fountains Care Centre - Bondcare,Nursing Homes - Private Contractors Payment,2712.00,0.00,COMMERCIAL SUPPLIER 
 01-07-2022,Adults,Fountains Care Centre - Bondcare,Residential Placements - Private Contractors Payment,2480.00,0.00,COMMERCIAL SUPPLIER 
 01-07-2022,Adults,Fountains Care Centre - Bondcare,Nursing Homes - Private Contractors Payment,3900.00,0.00,COMMERCIAL SUPPLIER 
 01-07-2022,Adults,Fountains Care Centre - Bondcare,Nursing Homes - Private Contractors Payment,5035.71,0.00,COMMERCIAL SUPPLIER 
 01-07-2022,Adults,Fountains Care Centre - Bondcare,Nursing Homes - Private Contractors Payment,9400.00,0.00,COMMERCIAL SUPPLIER 
 01-07-2022,Adults,Fountains Care Centre - Bondcare,Nursing Homes - Private Contractors Payment,2712.00,0.00,COMMERCIAL SUPPLIER 
 01-07-2022,Adults,Fountains Care Centre - Bondcare,Residential Placements - Private Contractors Payment,2780.00,0.00,COMMERCIAL SUPPLIER 
 01-07-2022,Adults,Fountains Care Centre - Bondcare,Nursing Homes - Private Contractors Payment,2712.00,0.00,COMMERCIAL SUPPLIER 
 01-07-2022,Adults,Fountains Care Centre - Bondcare,Residential Placements - Private Contractors Payment,2480.00,0.00,COMMERCIAL SUPPLIER 
 01-07-2022,Adults,Fountains Care Centre - Bondcare,Residential Placements - Private Contractors Payment,2314.24,0.00,COMMERCIAL SUPPLIER 
 01-07-2022,Adults,Fountains Care Centre - Bondcare,Residential Placements - Private Contractors Payment,2480.00,0.00,COMMERCIAL SUPPLIER 
 01-07-2022,Adults,Fountains Care Centre - Bondcare,Nursing Homes - Private Contractors Payment,2421.43,0.00,COMMERCIAL SUPPLIER 
 01-07-2022,Adults,Black Swan International Ltd - Belamacanda,Residential Placements - Private Contractors Payment,2596.48,0.00,COMMERCIAL SUPPLIER 
 01-07-2022,Adults,Black Swan International Ltd - Belamacanda,Residential Placements - Private Contractors Payment,3625.80,0.00,COMMERCIAL SUPPLIER 
 01-07-2022,Adults,Black Swan International Ltd - Belamacanda,Residential Placements - Private Contractors Payment,2647.40,0.00,COMMERCIAL SUPPLIER 
 01-07-2022,Adults,Black Swan International Ltd - Belamacanda,Residential Placements - Private Contractors Payment,3659.24,0.00,COMMERCIAL SUPPLIER 
 01-07-2022,Adults,Leonard Cheshire Disability_a,Residential Placements - Private Contractors Payment,5868.96,0.00,COMMERCIAL SUPPLIER 
 01-07-2022,Adults,Leonard Cheshire Disability_a,Residential Placements - Private Contractors Payment,6042.60,0.00,COMMERCIAL SUPPLIER 
 01-07-2022,Adults,Voyage Ltd - Solar-Grange Liss,Nursing Homes - Private Contractors Payment,5118.20,0.00,COMMERCIAL SUPPLIER 
 01-07-2022,Adults,One Tree Estates Ltd t/a Ashbrook Nursing Home,Nursing Homes - Private Contractors Payment,889.14,0.00,COMMERCIAL SUPPLIER 
 01-07-2022,Adults,One Tree Estates Ltd t/a Ashbrook Nursing Home,Nursing Homes - Private Contractors Payment,2712.00,0.00,COMMERCIAL SUPPLIER 
 01-07-2022,Adults,One Tree Estates Ltd t/a Ashbrook Nursing Home,Nursing Homes - Private Contractors Payment,3485.00,0.00,COMMERCIAL SUPPLIER 
 01-07-2022,Adults,One Tree Estates Ltd t/a Ashbrook Nursing Home,Nursing Homes - Private Contractors Payment,2712.00,0.00,COMMERCIAL SUPPLIER 
 01-07-2022,Adults,One Tree Estates Ltd t/a Ashbrook Nursing Home,Nursing Homes - Private Contractors Payment,12096.00,0.00,COMMERCIAL SUPPLIER 
 01-07-2022,Adults,One Tree Estates Ltd t/a Ashbrook Nursing Home,Nursing Homes - Private Contractors Payment,3075.00,0.00,COMMERCIAL SUPPLIER 
 01-07-2022,Adults,One Tree Estates Ltd t/a Ashbrook Nursing Home,Nursing Homes - Private Contractors Payment,1392.86,0.00,COMMERCIAL SUPPLIER 
 01-07-2022,Adults,One Tree Estates Ltd t/a Ashbrook Nursing Home,Nursing Homes - Private Contractors Payment,3900.00,0.00,COMMERCIAL SUPPLIER 
 01-07-2022,Adults,One Tree Estates Ltd t/a Ashbrook Nursing Home,Nursing Homes - Private Contractors Payment,3112.00,0.00,COMMERCIAL SUPPLIER 
 01-07-2022,Adults,One Tree Estates Ltd t/a Ashbrook Nursing Home,Nursing Homes - Private Contractors Payment,1600.00,0.00,COMMERCIAL SUPPLIER 
 01-07-2022,Adults,One Tree Estates Ltd t/a Ashbrook Nursing Home,Nursing Homes - Private Contractors Payment,571.43,0.00,COMMERCIAL SUPPLIER 
 01-07-2022,Adults,One Tree Estates Ltd t/a Ashbrook Nursing Home,Nursing Care Income,540.36,0.00,COMMERCIAL SUPPLIER 
 01-07-2022,Adults,One Tree Estates Ltd t/a Ashbrook Nursing Home,Nursing Homes - Private Contractors Payment,5544.00,0.00,COMMERCIAL SUPPLIER 
 01-07-2022,Adults,One Tree Estates Ltd t/a Ashbrook Nursing Home,Nursing Homes - Private Contractors Payment,3200.00,0.00,COMMERCIAL SUPPLIER 
 01-07-2022,Adults,One Tree Estates Ltd t/a Ashbrook Nursing Home,Nursing Homes - Private Contractors Payment,5544.00,0.00,COMMERCIAL SUPPLIER 
 01-07-2022,Adults,One Tree Estates Ltd t/a Ashbrook Nursing Home,Nursing Homes - Private Contractors Payment,2712.00,0.00,COMMERCIAL SUPPLIER 
 01-07-2022,Adults,One Tree Estates Ltd t/a Ashbrook Nursing Home,Nursing Homes - Private Contractors Payment,2712.00,0.00,COMMERCIAL SUPPLIER 
 01-07-2022,Adults,One Tree Estates Ltd t/a Ashbrook Nursing Home,Nursing Homes - Private Contractors Payment,3060.24,0.00,COMMERCIAL SUPPLIER 
 01-07-2022,Adults,One Tree Estates Ltd t/a Ashbrook Nursing Home,Nursing Homes - Private Contractors Payment,2712.00,0.00,COMMERCIAL SUPPLIER 
 01-07-2022,Adults,One Tree Estates Ltd t/a Ashbrook Nursing Home,Nursing Homes - Private Contractors Payment,2712.00,0.00,COMMERCIAL SUPPLIER 
 01-07-2022,Adults,One Tree Estates Ltd t/a Ashbrook Nursing Home,Nursing Care Income,730.69,0.00,COMMERCIAL SUPPLIER 
 01-07-2022,Adults,One Tree Estates Ltd t/a Ashbrook Nursing Home,Nursing Homes - Private Contractors Payment,2528.00,0.00,COMMERCIAL SUPPLIER 
 01-07-2022,Adults,One Tree Estates Ltd t/a Ashbrook Nursing Home,Nursing Homes - Private Contractors Payment,3485.00,0.00,COMMERCIAL SUPPLIER 
 01-07-2022,Adults,One Tree Estates Ltd t/a Ashbrook Nursing Home,Nursing Homes - Private Contractors Payment,1065.43,0.00,COMMERCIAL SUPPLIER 
 01-07-2022,Adults,One Tree Estates Ltd t/a Ashbrook Nursing Home,Nursing Homes - Private Contractors Payment,1743.43,0.00,COMMERCIAL SUPPLIER 
 01-07-2022,Adults,One Tree Estates Ltd t/a Ashbrook Nursing Home,Nursing Homes - Private Contractors Payment,2712.00,0.00,COMMERCIAL SUPPLIER 
 01-07-2022,Adults,One Tree Estates Ltd t/a Ashbrook Nursing Home,Nursing Homes - Private Contractors Payment,2712.00,0.00,COMMERCIAL SUPPLIER 
 01-07-2022,Adults,One Tree Estates Ltd t/a Ashbrook Nursing Home,Nursing Homes - Private Contractors Payment,2948.24,0.00,COMMERCIAL SUPPLIER 
 01-07-2022,Adults,One Tree Estates Ltd t/a Ashbrook Nursing Home,Nursing Homes - Private Contractors Payment,3485.00,0.00,COMMERCIAL SUPPLIER 
 01-07-2022,Adults,One Tree Estates Ltd t/a Ashbrook Nursing Home,Nursing Homes - Private Contractors Payment,3075.00,0.00,COMMERCIAL SUPPLIER 
 01-07-2022,Adults,One Tree Estates Ltd t/a Ashbrook Nursing Home,Respite Care - Private Contractors Payment,1092.86,0.00,COMMERCIAL SUPPLIER 
 01-07-2022,Adults,One Tree Estates Ltd t/a Ashbrook Nursing Home,Respite Care - Private Contractors Payment,607.14,0.00,COMMERCIAL SUPPLIER 
 01-07-2022,Adults,One Tree Estates Ltd t/a Ashbrook Nursing Home,Respite Care - Private Contractors Payment,1700.00,0.00,COMMERCIAL SUPPLIER 
 01-07-2022,Adults,One Tree Estates Ltd t/a Ashbrook Nursing Home,Nursing Homes - Private Contractors Payment,3400.00,0.00,COMMERCIAL SUPPLIER 
 01-07-2022,Adults,One Tree Estates Ltd t/a Ashbrook Nursing Home,Nursing Homes - Private Contractors Payment,3080.00,0.00,COMMERCIAL SUPPLIER 
 01-07-2022,Adults,One Tree Estates Ltd t/a Ashbrook Nursing Home,Nursing Homes - Private Contractors Payment,5544.00,0.00,COMMERCIAL SUPPLIER 
 01-07-2022,Adults,One Tree Estates Ltd t/a Ashbrook Nursing Home,Nursing Homes - Private Contractors Payment,5330.00,0.00,COMMERCIAL SUPPLIER 
 01-07-2022,Adults,One Tree Estates Ltd t/a Ashbrook Nursing Home,Nursing Homes - Private Contractors Payment,2057.14,0.00,COMMERCIAL SUPPLIER 
 01-07-2022,Adults,One Tree Estates Ltd t/a Ashbrook Nursing Home,Nursing Homes - Private Contractors Payment,3200.00,0.00,COMMERCIAL SUPPLIER 
 01-07-2022,Adults,One Tree Estates Ltd t/a Ashbrook Nursing Home,Respite Care - Private Contractors Payment,1700.00,0.00,COMMERCIAL SUPPLIER 
 01-07-2022,Adults,One Tree Estates Ltd t/a Ashbrook Nursing Home,Respite Care - Private Contractors Payment,850.00,0.00,COMMERCIAL SUPPLIER 
 01-07-2022,Adults,One Tree Estates Ltd t/a Ashbrook Nursing Home,Respite Care - Private Contractors Payment,1700.00,0.00,COMMERCIAL SUPPLIER 
 01-07-2022,Adults,One Tree Estates Ltd t/a Ashbrook Nursing Home,Nursing Homes - Private Contractors Payment,5200.00,0.00,COMMERCIAL SUPPLIER 
 01-07-2022,Adults,One Tree Estates Ltd t/a Ashbrook Nursing Home,Nursing Homes - Private Contractors Payment,2712.00,0.00,COMMERCIAL SUPPLIER 
 01-07-2022,Adults,Highfield Care Homes Ltd t/a Romford Grange Care Home,Nursing Homes - Private Contractors Payment,2712.00,0.00,COMMERCIAL SUPPLIER 
 01-07-2022,Adults,Highfield Care Homes Ltd t/a Romford Grange Care Home,Nursing Homes - Private Contractors Payment,2528.00,0.00,COMMERCIAL SUPPLIER 
 01-07-2022,Adults,Highfield Care Homes Ltd t/a Romford Grange Care Home,Nursing Homes - Private Contractors Payment,2528.00,0.00,COMMERCIAL SUPPLIER 
 01-07-2022,Adults,Highfield Care Homes Ltd t/a Romford Grange Care Home,Nursing Homes - Private Contractors Payment,2528.00,0.00,COMMERCIAL SUPPLIER 
 01-07-2022,Adults,Highfield Care Homes Ltd t/a Romford Grange Care Home,Nursing Homes - Private Contractors Payment,2712.00,0.00,COMMERCIAL SUPPLIER 
 01-07-2022,Adults,Highfield Care Homes Ltd t/a Romford Grange Care Home,Residential Placements - Private Contractors Payment,2480.00,0.00,COMMERCIAL SUPPLIER 
 01-07-2022,Adults,Highfield Care Homes Ltd t/a Romford Grange Care Home,Nursing Homes - Private Contractors Payment,2712.00,0.00,COMMERCIAL SUPPLIER 
 01-07-2022,Adults,Highfield Care Homes Ltd t/a Romford Grange Care Home,Residential Placements - Private Contractors Payment,2780.00,0.00,COMMERCIAL SUPPLIER 
 01-07-2022,Adults,Highfield Care Homes Ltd t/a Romford Grange Care Home,Nursing Homes - Private Contractors Payment,2712.00,0.00,COMMERCIAL SUPPLIER 
 01-07-2022,Adults,Highfield Care Homes Ltd t/a Romford Grange Care Home,Nursing Homes - Private Contractors Payment,2712.00,0.00,COMMERCIAL SUPPLIER 
 01-07-2022,Adults,Highfield Care Homes Ltd t/a Romford Grange Care Home,Residential Placements - Private Contractors Payment,2530.96,0.00,COMMERCIAL SUPPLIER 
 01-07-2022,Adults,Highfield Care Homes Ltd t/a Romford Grange Care Home,Nursing Homes - Private Contractors Payment,2712.00,0.00,COMMERCIAL SUPPLIER 
 01-07-2022,Adults,Highfield Care Homes Ltd t/a Romford Grange Care Home,Residential Care Income,608.80,0.00,COMMERCIAL SUPPLIER 
 01-07-2022,Adults,Highfield Care Homes Ltd t/a Romford Grange Care Home,Residential Care Income,608.80,0.00,COMMERCIAL SUPPLIER 
 01-07-2022,Adults,Highfield Care Homes Ltd t/a Romford Grange Care Home,Residential Care Income,608.80,0.00,COMMERCIAL SUPPLIER 
 01-07-2022,Adults,Highfield Care Homes Ltd t/a Romford Grange Care Home,Residential Care Income,608.80,0.00,COMMERCIAL SUPPLIER 
 01-07-2022,Adults,Highfield Care Homes Ltd t/a Romford Grange Care Home,Residential Care Income,608.80,0.00,COMMERCIAL SUPPLIER 
 01-07-2022,Adults,Highfield Care Homes Ltd t/a Romford Grange Care Home,Residential Care Income,608.80,0.00,COMMERCIAL SUPPLIER 
 01-07-2022,Adults,Highfield Care Homes Ltd t/a Romford Grange Care Home,Residential Care Income,608.80,0.00,COMMERCIAL SUPPLIER 
 01-07-2022,Adults,Highfield Care Homes Ltd t/a Romford Grange Care Home,Residential Care Income,608.80,0.00,COMMERCIAL SUPPLIER 
 01-07-2022,Adults,Highfield Care Homes Ltd t/a Romford Grange Care Home,Residential Care Income,630.54,0.00,COMMERCIAL SUPPLIER 
 01-07-2022,Adults,Highfield Care Homes Ltd t/a Romford Grange Care Home,Residential Care Income,621.02,0.00,COMMERCIAL SUPPLIER 
 01-07-2022,Adults,Highfield Care Homes Ltd t/a Romford Grange Care Home,Residential Care Income,627.80,0.00,COMMERCIAL SUPPLIER 
 01-07-2022,Adults,Highfield Care Homes Ltd t/a Romford Grange Care Home,Residential Care Income,627.80,0.00,COMMERCIAL SUPPLIER 
 01-07-2022,Adults,Highfield Care Homes Ltd t/a Romford Grange Care Home,Nursing Homes - Private Contractors Payment,2712.00,0.00,COMMERCIAL SUPPLIER 
 01-07-2022,Adults,Highfield Care Homes Ltd t/a Romford Grange Care Home,Residential Care Income,608.80,0.00,COMMERCIAL SUPPLIER 
 01-07-2022,Adults,Highfield Care Homes Ltd t/a Romford Grange Care Home,Residential Care Income,608.80,0.00,COMMERCIAL SUPPLIER 
 01-07-2022,Adults,Highfield Care Homes Ltd t/a Romford Grange Care Home,Nursing Homes - Private Contractors Payment,3342.86,0.00,COMMERCIAL SUPPLIER 
 01-07-2022,Adults,Highfield Care Homes Ltd t/a Romford Grange Care Home,Nursing Homes - Private Contractors Payment,3900.00,0.00,COMMERCIAL SUPPLIER 
 01-07-2022,Adults,Highfield Care Homes Ltd t/a Romford Grange Care Home,Nursing Homes - Private Contractors Payment,3900.00,0.00,COMMERCIAL SUPPLIER 
 01-07-2022,Adults,Highfield Care Homes Ltd t/a Romford Grange Care Home,Nursing Homes - Private Contractors Payment,2472.84,0.00,COMMERCIAL SUPPLIER 
 01-07-2022,Adults,MNS Care Plc_a,Nursing Homes - Private Contractors Payment,2712.00,0.00,COMMERCIAL SUPPLIER 
 01-07-2022,Adults,MNS Care Plc_a,Nursing Homes - Private Contractors Payment,2985.96,0.00,COMMERCIAL SUPPLIER 
 01-07-2022,Adults,MNS Care Plc_a,Residential Placements - Private Contractors Payment,3568.76,0.00,COMMERCIAL SUPPLIER 
 01-07-2022,Adults,MNS Care Plc_a,Nursing Homes - Private Contractors Payment,2636.32,0.00,COMMERCIAL SUPPLIER 
 01-07-2022,Adults,MNS Care Plc_a,Nursing Homes - Private Contractors Payment,2528.00,0.00,COMMERCIAL SUPPLIER 
 01-07-2022,Adults,Bupa Care Homes (HVC) - Havering Court,Nursing Homes - Private Contractors Payment,4214.48,0.00,COMMERCIAL SUPPLIER 
 01-07-2022,Adults,Bupa Care Homes (HVC) - Havering Court,Nursing Homes - Private Contractors Payment,3804.28,0.00,COMMERCIAL SUPPLIER 
 01-07-2022,Adults,Bupa Care Homes (HVC) - Havering Court,Nursing Homes - Private Contractors Payment,3830.08,0.00,COMMERCIAL SUPPLIER 
 01-07-2022,Adults,Bupa Care Homes (HVC) - Havering Court,Nursing Homes - Private Contractors Payment,3493.20,0.00,COMMERCIAL SUPPLIER 
 01-07-2022,Adults,Bupa Care Homes (HVC) - Havering Court,Nursing Homes - Private Contractors Payment,2712.00,0.00,COMMERCIAL SUPPLIER 
 01-07-2022,Adults,Bupa Care Homes (HVC) - Havering Court,Nursing Homes - Private Contractors Payment,4658.08,0.00,COMMERCIAL SUPPLIER 
 01-07-2022,Adults,Bupa Care Homes (HVC) - Havering Court,Nursing Homes - Private Contractors Payment,3811.68,0.00,COMMERCIAL SUPPLIER 
 01-07-2022,Adults,Bupa Care Homes (HVC) - Havering Court,Nursing Homes - Private Contractors Payment,3766.48,0.00,COMMERCIAL SUPPLIER 
 01-07-2022,Adults,Bupa Care Homes (HVC) - Havering Court,Nursing Homes - Private Contractors Payment,5908.20,0.00,COMMERCIAL SUPPLIER 
 01-07-2022,Adults,Bupa Care Homes (HVC) - Havering Court,Nursing Homes - Private Contractors Payment,4831.08,0.00,COMMERCIAL SUPPLIER 
 01-07-2022,Adults,Bupa Care Homes (HVC) - Havering Court,Nursing Homes - Private Contractors Payment,3465.72,0.00,COMMERCIAL SUPPLIER 
 01-07-2022,Adults,Bupa Care Homes (HVC) - Havering Court,Nursing Homes - Private Contractors Payment,3275.24,0.00,COMMERCIAL SUPPLIER 
 01-07-2022,Adults,Bupa Care Homes (HVC) - Havering Court,Nursing Homes - Private Contractors Payment,4150.84,0.00,COMMERCIAL SUPPLIER 
 01-07-2022,Adults,2 Peel Way - Outlook Care,Supported Other Accommodation - Private Contractors Payment,1349.88,0.00,NON COMMERCIAL SUPPLIER 
 01-07-2022,Adults,2 Peel Way - Outlook Care,Supported Other Accommodation - Private Contractors Payment,3053.92,0.00,NON COMMERCIAL SUPPLIER 
 01-07-2022,Adults,2 Peel Way - Outlook Care,Supported Other Accommodation - Private Contractors Payment,2876.68,0.00,NON COMMERCIAL SUPPLIER 
 01-07-2022,Adults,2 Peel Way - Outlook Care,Supported Other Accommodation - Private Contractors Payment,3940.04,0.00,NON COMMERCIAL SUPPLIER 
 01-07-2022,Adults,2 Peel Way - Outlook Care,Supported Other Accommodation - Private Contractors Payment,2344.96,0.00,NON COMMERCIAL SUPPLIER 
 01-07-2022,Adults,2 Peel Way - Outlook Care,Supported Other Accommodation - Private Contractors Payment,1687.28,0.00,NON COMMERCIAL SUPPLIER 
 01-07-2022,Adults,2 Peel Way - Outlook Care,Supported Other Accommodation - Private Contractors Payment,1721.00,0.00,NON COMMERCIAL SUPPLIER 
 01-07-2022,Adults,2 Peel Way - Outlook Care,Supported Other Accommodation - Private Contractors Payment,963.92,0.00,NON COMMERCIAL SUPPLIER 
 01-07-2022,Adults,Outlook Care - 4 Peel Way,Supported Other Accommodation - Private Contractors Payment,1796.08,0.00,COMMERCIAL SUPPLIER 
 01-07-2022,Adults,Outlook Care - 4 Peel Way,Supported Other Accommodation - Private Contractors Payment,1035.08,0.00,COMMERCIAL SUPPLIER 
 01-07-2022,Adults,Outlook Care - 4 Peel Way,Supported Other Accommodation - Private Contractors Payment,3494.00,0.00,COMMERCIAL SUPPLIER 
 01-07-2022,Adults,Outlook Care - 4 Peel Way,Supported Other Accommodation - Private Contractors Payment,3290.20,0.00,COMMERCIAL SUPPLIER 
 01-07-2022,Adults,Outlook Care - 4 Peel Way,Supported Other Accommodation - Private Contractors Payment,1796.08,0.00,COMMERCIAL SUPPLIER 
 01-07-2022,Adults,Outlook Care - 4 Peel Way,Supported Other Accommodation - Private Contractors Payment,1570.80,0.00,COMMERCIAL SUPPLIER 
 01-07-2022,Adults,Outlook Care - 4 Peel Way,Supported Other Accommodation - Private Contractors Payment,2861.88,0.00,COMMERCIAL SUPPLIER 
 01-07-2022,Adults,Outlook Care - 4 Peel Way,Supported Other Accommodation - Private Contractors Payment,1719.80,0.00,COMMERCIAL SUPPLIER 
 01-07-2022,Adults,Outlook Care - 4 Peel Way,Supported Other Accommodation - Private Contractors Payment,917.60,0.00,COMMERCIAL SUPPLIER 
 01-07-2022,Adults,The Avenues Trust - 6 Peel Way,Residential Placements - Private Contractors Payment,5890.68,0.00,COMMERCIAL SUPPLIER 
 01-07-2022,Adults,The Avenues Trust - 6 Peel Way,Residential Placements - Private Contractors Payment,5890.68,0.00,COMMERCIAL SUPPLIER 
 01-07-2022,Adults,The Avenues Trust - 6 Peel Way,Residential Placements - Private Contractors Payment,5890.68,0.00,COMMERCIAL SUPPLIER 
 01-07-2022,Adults,The Avenues Trust - 6 Peel Way,Residential Placements - Private Contractors Payment,5890.68,0.00,COMMERCIAL SUPPLIER 
 01-07-2022,Adults,Voyage Ltd - Solar Care Melbreck,Nursing Homes - Private Contractors Payment,4058.20,0.00,COMMERCIAL SUPPLIER 
 01-07-2022,Adults,Fitzroy Support,Residential Placements - Private Contractors Payment,5320.40,0.00,COMMERCIAL SUPPLIER 
 01-07-2022,Adults,Peter House Care Ltd t/a Aldanat Care,Residential Placements - Private Contractors Payment,6243.84,0.00,COMMERCIAL SUPPLIER 
 01-07-2022,Adults,Essex Care Consortium Ltd_a,Residential Placements - Private Contractors Payment,4406.72,0.00,COMMERCIAL SUPPLIER 
 01-07-2022,Adults,Mundy House,Residential Placements - Private Contractors Payment,2579.84,0.00,COMMERCIAL SUPPLIER 
 01-07-2022,Adults,Mundy House,Respite Care - Private Contractors Payment,1390.00,0.00,COMMERCIAL SUPPLIER 
 01-07-2022,Adults,Mundy House,Residential Placements - Private Contractors Payment,2559.40,0.00,COMMERCIAL SUPPLIER 
 01-07-2022,Adults,Mundy House,Residential Placements - Private Contractors Payment,2780.00,0.00,COMMERCIAL SUPPLIER 
 01-07-2022,Adults,Lukka Care Homes Ltd - Ravenscourt,Nursing Homes - Private Contractors Payment,2948.24,0.00,COMMERCIAL SUPPLIER 
 01-07-2022,Adults,Lukka Care Homes Ltd - Ravenscourt,Nursing Homes - Private Contractors Payment,5018.40,0.00,COMMERCIAL SUPPLIER 
 01-07-2022,Adults,Lukka Care Homes Ltd - Ravenscourt,Nursing Homes - Private Contractors Payment,2712.00,0.00,COMMERCIAL SUPPLIER 
 01-07-2022,Adults,Lukka Care Homes Ltd - Ravenscourt,Nursing Homes - Private Contractors Payment,3900.00,0.00,COMMERCIAL SUPPLIER 
 01-07-2022,Adults,Lukka Care Homes Ltd - Ravenscourt,Nursing Homes - Private Contractors Payment,3900.00,0.00,COMMERCIAL SUPPLIER 
 01-07-2022,Adults,Lukka Care Homes Ltd - Ravenscourt,Nursing Homes - Private Contractors Payment,3377.72,0.00,COMMERCIAL SUPPLIER 
 01-07-2022,Adults,Lukka Care Homes Ltd - Ravenscourt,Nursing Homes - Private Contractors Payment,4150.84,0.00,COMMERCIAL SUPPLIER 
 01-07-2022,Adults,Lukka Care Homes Ltd - Ravenscourt,Nursing Homes - Private Contractors Payment,3330.84,0.00,COMMERCIAL SUPPLIER 
 01-07-2022,Adults,Lukka Care Homes Ltd - Ravenscourt,Nursing Homes - Private Contractors Payment,2712.00,0.00,COMMERCIAL SUPPLIER 
 01-07-2022,Adults,Lukka Care Homes Ltd - Ravenscourt,Nursing Homes - Private Contractors Payment,3049.60,0.00,COMMERCIAL SUPPLIER 
 01-07-2022,Adults,Lukka Care Homes Ltd - Ravenscourt,Nursing Care Income,894.52,0.00,COMMERCIAL SUPPLIER 
 01-07-2022,Adults,Lukka Care Homes Ltd - Ravenscourt,Nursing Care Income,894.52,0.00,COMMERCIAL SUPPLIER 
 01-07-2022,Adults,Lukka Care Homes Ltd - Ravenscourt,Nursing Care Income,884.89,0.00,COMMERCIAL SUPPLIER 
 01-07-2022,Adults,Lukka Care Homes Ltd - Ravenscourt,Nursing Homes - Private Contractors Payment,4000.00,0.00,COMMERCIAL SUPPLIER 
 01-07-2022,Adults,Lukka Care Homes Ltd - Ravenscourt,Nursing Homes - Private Contractors Payment,2948.24,0.00,COMMERCIAL SUPPLIER 
 01-07-2022,Adults,Lukka Care Homes Ltd - Ravenscourt,Nursing Homes - Private Contractors Payment,2528.00,0.00,COMMERCIAL SUPPLIER 
 01-07-2022,Adults,Barchester Healthcare Ltd - Park View Care Home,Nursing Homes - Private Contractors Payment,3831.04,0.00,COMMERCIAL SUPPLIER 
 01-07-2022,Adults,Barchester Healthcare Ltd - Park View Care Home,Nursing Homes - Private Contractors Payment,3888.68,0.00,COMMERCIAL SUPPLIER 
 01-07-2022,Adults,Barchester Healthcare Ltd - Park View Care Home,Nursing Homes - Private Contractors Payment,1156.46,0.00,COMMERCIAL SUPPLIER 
 01-07-2022,Adults,Barchester Healthcare Ltd - Park View Care Home,Residential Placements - Private Contractors Payment,2780.00,0.00,COMMERCIAL SUPPLIER 
 01-07-2022,Adults,Barchester Healthcare Ltd - Park View Care Home,Nursing Homes - Private Contractors Payment,2948.24,0.00,COMMERCIAL SUPPLIER 
 01-07-2022,Adults,Barchester Healthcare Ltd - Park View Care Home,Residential Placements - Private Contractors Payment,4879.92,0.00,COMMERCIAL SUPPLIER 
 01-07-2022,Adults,Barchester Healthcare Ltd - Park View Care Home,Nursing Homes - Private Contractors Payment,2948.24,0.00,COMMERCIAL SUPPLIER 
 01-07-2022,Adults,Barchester Healthcare Ltd - Park View Care Home,Nursing Homes - Private Contractors Payment,557.14,0.00,COMMERCIAL SUPPLIER 
 01-07-2022,Adults,Barchester Healthcare Ltd - Park View Care Home,Nursing Homes - Private Contractors Payment,3900.00,0.00,COMMERCIAL SUPPLIER 
 01-07-2022,Adults,Barchester Healthcare Ltd - Park View Care Home,Nursing Homes - Private Contractors Payment,3900.00,0.00,COMMERCIAL SUPPLIER 
 01-07-2022,Adults,Barchester Healthcare Ltd - Park View Care Home,Nursing Homes - Private Contractors Payment,4150.84,0.00,COMMERCIAL SUPPLIER 
 01-07-2022,Adults,Barchester Healthcare Ltd - Park View Care Home,Nursing Homes - Private Contractors Payment,4458.36,0.00,COMMERCIAL SUPPLIER 
 01-07-2022,Adults,Barchester Healthcare Ltd - Park View Care Home,Nursing Homes - Private Contractors Payment,4192.08,0.00,COMMERCIAL SUPPLIER 
 01-07-2022,Adults,Barchester Healthcare Ltd - Park View Care Home,Nursing Homes - Private Contractors Payment,5545.32,0.00,COMMERCIAL SUPPLIER 
 01-07-2022,Adults,Barchester Healthcare Ltd - Park View Care Home,Nursing Homes - Private Contractors Payment,4192.08,0.00,COMMERCIAL SUPPLIER 
 01-07-2022,Adults,Westminster Health Care Ltd Derham House,Residential Placements - Private Contractors Payment,5739.64,0.00,COMMERCIAL SUPPLIER 
 01-07-2022,Adults,Westminster Health Care Ltd Derham House,Residential Placements - Private Contractors Payment,5645.72,0.00,COMMERCIAL SUPPLIER 
 01-07-2022,Adults,Westminster Health Care Ltd Derham House,Residential Placements - Private Contractors Payment,2780.00,0.00,COMMERCIAL SUPPLIER 
 01-07-2022,Adults,Westminster Health Care Ltd Derham House,Nursing Homes - Private Contractors Payment,2606.08,0.00,COMMERCIAL SUPPLIER 
 01-07-2022,Adults,Westminster Health Care Ltd Derham House,Residential Placements - Private Contractors Payment,5813.80,0.00,COMMERCIAL SUPPLIER 
 01-07-2022,Adults,Westminster Health Care Ltd Derham House,Nursing Homes - Private Contractors Payment,3960.92,0.00,COMMERCIAL SUPPLIER 
 01-07-2022,Adults,Westminster Health Care Ltd Derham House,Nursing Homes - Private Contractors Payment,5438.24,0.00,COMMERCIAL SUPPLIER 
 01-07-2022,Adults,Westminster Health Care Ltd Derham House,Nursing Homes - Private Contractors Payment,3345.92,0.00,COMMERCIAL SUPPLIER 
 01-07-2022,Adults,HC-One Oval Ltd - Chaseview,Nursing Homes - Private Contractors Payment,2616.00,0.00,COMMERCIAL SUPPLIER 
 01-07-2022,Adults,HC-One Oval Ltd - Chaseview,Nursing Homes - Private Contractors Payment,2681.40,0.00,COMMERCIAL SUPPLIER 
 01-07-2022,Adults,HC-One Oval Ltd - Chaseview,Nursing Homes - Private Contractors Payment,2516.76,0.00,COMMERCIAL SUPPLIER 
 01-07-2022,Adults,HC-One Oval Ltd - Chaseview,Residential Placements - Private Contractors Payment,2780.00,0.00,COMMERCIAL SUPPLIER 
 01-07-2022,Adults,HC-One Oval Ltd - Chaseview,Residential Placements - Private Contractors Payment,2780.00,0.00,COMMERCIAL SUPPLIER 
 01-07-2022,Adults,HC-One Oval Ltd - Chaseview,Residential Care Income,627.80,0.00,COMMERCIAL SUPPLIER 
 01-07-2022,Adults,HC-One Oval Ltd - Chaseview,Residential Placements - Private Contractors Payment,2780.00,0.00,COMMERCIAL SUPPLIER 
 01-07-2022,Adults,HC-One Oval Ltd - Chaseview,Residential Care Income,627.80,0.00,COMMERCIAL SUPPLIER 
 01-07-2022,Adults,HC-One Oval Ltd - Chaseview,Residential Placements - Private Contractors Payment,2780.00,0.00,COMMERCIAL SUPPLIER 
 01-07-2022,Adults,HC-One Oval Ltd - Chaseview,Residential Care Income,621.01,0.00,COMMERCIAL SUPPLIER 
 01-07-2022,Adults,HC-One Oval Ltd - Chaseview,Residential Placements - Private Contractors Payment,2643.04,0.00,COMMERCIAL SUPPLIER 
 01-07-2022,Adults,HC-One Oval Ltd - Chaseview,Nursing Homes - Private Contractors Payment,2636.32,0.00,COMMERCIAL SUPPLIER 
 01-07-2022,Adults,Gable Court Nursing Home Ltd,Nursing Homes - Private Contractors Payment,2452.76,0.00,COMMERCIAL SUPPLIER 
 01-07-2022,Adults,HC-One Oval Ltd - The Hornchurch Nursing Centre,Nursing Homes - Private Contractors Payment,2712.00,0.00,COMMERCIAL SUPPLIER 
 01-07-2022,Adults,HC-One Oval Ltd - The Hornchurch Nursing Centre,Nursing Homes - Private Contractors Payment,2712.00,0.00,COMMERCIAL SUPPLIER 
 01-07-2022,Adults,HC-One Oval Ltd - The Hornchurch Nursing Centre,Nursing Homes - Private Contractors Payment,2712.00,0.00,COMMERCIAL SUPPLIER 
 01-07-2022,Adults,HC-One Oval Ltd - The Hornchurch Nursing Centre,Nursing Homes - Private Contractors Payment,2712.00,0.00,COMMERCIAL SUPPLIER 
 01-07-2022,Adults,HC-One Oval Ltd - The Hornchurch Nursing Centre,Nursing Homes - Private Contractors Payment,1452.86,0.00,COMMERCIAL SUPPLIER 
 01-07-2022,Adults,HC-One Oval Ltd - The Hornchurch Nursing Centre,Nursing Homes - Private Contractors Payment,2712.00,0.00,COMMERCIAL SUPPLIER 
 01-07-2022,Adults,HC-One Oval Ltd - The Hornchurch Nursing Centre,Residential Placements - Private Contractors Payment,3075.00,0.00,COMMERCIAL SUPPLIER 
 01-07-2022,Adults,HC-One Oval Ltd - The Hornchurch Nursing Centre,Nursing Homes - Private Contractors Payment,2712.00,0.00,COMMERCIAL SUPPLIER 
 01-07-2022,Adults,HC-One Oval Ltd - The Hornchurch Nursing Centre,Nursing Homes - Private Contractors Payment,2712.00,0.00,COMMERCIAL SUPPLIER 
 01-07-2022,Adults,HC-One Oval Ltd - The Hornchurch Nursing Centre,Nursing Homes - Private Contractors Payment,2712.00,0.00,COMMERCIAL SUPPLIER 
 01-07-2022,Adults,HC-One Oval Ltd - The Hornchurch Nursing Centre,Residential Placements - Private Contractors Payment,2780.00,0.00,COMMERCIAL SUPPLIER 
 01-07-2022,Adults,HC-One Oval Ltd - The Hornchurch Nursing Centre,Nursing Homes - Private Contractors Payment,2528.00,0.00,COMMERCIAL SUPPLIER 
 01-07-2022,Adults,HC-One Oval Ltd - The Hornchurch Nursing Centre,Nursing Homes - Private Contractors Payment,2712.00,0.00,COMMERCIAL SUPPLIER 
 01-07-2022,Adults,HC-One Oval Ltd - The Hornchurch Nursing Centre,Residential Placements - Private Contractors Payment,2780.00,0.00,COMMERCIAL SUPPLIER 
 01-07-2022,Adults,HC-One Oval Ltd - The Hornchurch Nursing Centre,Nursing Homes - Private Contractors Payment,2528.00,0.00,COMMERCIAL SUPPLIER 
 01-07-2022,Adults,HC-One Oval Ltd - The Hornchurch Nursing Centre,Nursing Care Income,652.00,0.00,COMMERCIAL SUPPLIER 
 01-07-2022,Adults,HC-One Oval Ltd - The Hornchurch Nursing Centre,Nursing Homes - Private Contractors Payment,2712.00,0.00,COMMERCIAL SUPPLIER 
 01-07-2022,Adults,HC-One Oval Ltd - The Hornchurch Nursing Centre,Nursing Homes - Private Contractors Payment,3412.52,0.00,COMMERCIAL SUPPLIER 
 01-07-2022,Adults,HC-One Oval Ltd - The Hornchurch Nursing Centre,Nursing Homes - Private Contractors Payment,2996.36,0.00,COMMERCIAL SUPPLIER 
 01-07-2022,Adults,HC-One Oval Ltd - The Hornchurch Nursing Centre,Nursing Homes - Private Contractors Payment,12768.00,0.00,COMMERCIAL SUPPLIER 
 01-07-2022,Adults,HC-One Oval Ltd - The Hornchurch Nursing Centre,Nursing Homes - Private Contractors Payment,2712.00,0.00,COMMERCIAL SUPPLIER 
 01-07-2022,Adults,HC-One Oval Ltd - The Hornchurch Nursing Centre,Nursing Homes - Private Contractors Payment,2528.00,0.00,COMMERCIAL SUPPLIER 
 01-07-2022,Adults,HC-One Oval Ltd - The Hornchurch Nursing Centre,Residential Placements - Private Contractors Payment,2780.00,0.00,COMMERCIAL SUPPLIER 
 01-07-2022,Adults,HC-One Oval Ltd - The Hornchurch Nursing Centre,Residential Placements - Private Contractors Payment,2780.00,0.00,COMMERCIAL SUPPLIER 
 01-07-2022,Adults,HC-One Oval Ltd - The Hornchurch Nursing Centre,Nursing Care Income,652.00,0.00,COMMERCIAL SUPPLIER 
 01-07-2022,Adults,HC-One Oval Ltd - Admirals Reach Residential & Nursing Centre,Nursing Homes - Private Contractors Payment,1114.20,0.00,COMMERCIAL SUPPLIER 
 01-07-2022,Adults,Bramerton Care Home - Community Homes of Intensive Care and Education Ltd,Residential Placements - Private Contractors Payment,7835.96,0.00,COMMERCIAL SUPPLIER 
 01-07-2022,Adults,Stable Family Home Trust BH24 3BN,Supported Other Accommodation - Private Contractors Payment,4067.32,0.00,COMMERCIAL SUPPLIER 
 01-07-2022,Adults,Beechcourt Care Centre - Bondcare,Nursing Homes - Private Contractors Payment,2712.00,0.00,COMMERCIAL SUPPLIER 
 01-07-2022,Adults,Beechcourt Care Centre - Bondcare,Nursing Homes - Private Contractors Payment,2528.00,0.00,COMMERCIAL SUPPLIER 
 01-07-2022,Adults,Beechcourt Care Centre - Bondcare,Nursing Homes - Private Contractors Payment,2712.00,0.00,COMMERCIAL SUPPLIER 
 01-07-2022,Adults,Beechcourt Care Centre - Bondcare,Nursing Homes - Private Contractors Payment,2712.00,0.00,COMMERCIAL SUPPLIER 
 01-07-2022,Adults,Beechcourt Care Centre - Bondcare,Nursing Homes - Private Contractors Payment,2712.00,0.00,COMMERCIAL SUPPLIER 
 01-07-2022,Adults,Beechcourt Care Centre - Bondcare,Nursing Homes - Private Contractors Payment,2712.00,0.00,COMMERCIAL SUPPLIER 
 01-07-2022,Adults,Beechcourt Care Centre - Bondcare,Nursing Homes - Private Contractors Payment,2712.00,0.00,COMMERCIAL SUPPLIER 
 01-07-2022,Adults,Beechcourt Care Centre - Bondcare,Nursing Homes - Private Contractors Payment,2528.00,0.00,COMMERCIAL SUPPLIER 
 01-07-2022,Adults,Beechcourt Care Centre - Bondcare,Nursing Homes - Private Contractors Payment,2712.00,0.00,COMMERCIAL SUPPLIER 
 01-07-2022,Adults,Beechcourt Care Centre - Bondcare,Residential Placements - Private Contractors Payment,2674.04,0.00,COMMERCIAL SUPPLIER 
 01-07-2022,Adults,Beechcourt Care Centre - Bondcare,Nursing Homes - Private Contractors Payment,2528.00,0.00,COMMERCIAL SUPPLIER 
 01-07-2022,Adults,Beechcourt Care Centre - Bondcare,Nursing Homes - Private Contractors Payment,2712.00,0.00,COMMERCIAL SUPPLIER 
 01-07-2022,Adults,Beechcourt Care Centre - Bondcare,Nursing Homes - Private Contractors Payment,2528.00,0.00,COMMERCIAL SUPPLIER 
 01-07-2022,Adults,Beechcourt Care Centre - Bondcare,Nursing Homes - Private Contractors Payment,2712.00,0.00,COMMERCIAL SUPPLIER 
 01-07-2022,Adults,Beechcourt Care Centre - Bondcare,Nursing Homes - Private Contractors Payment,2712.00,0.00,COMMERCIAL SUPPLIER 
 01-07-2022,Adults,Beechcourt Care Centre - Bondcare,Nursing Homes - Private Contractors Payment,2528.00,0.00,COMMERCIAL SUPPLIER 
 01-07-2022,Adults,Beechcourt Care Centre - Bondcare,Residential Placements - Private Contractors Payment,2480.00,0.00,COMMERCIAL SUPPLIER 
 01-07-2022,Adults,Beechcourt Care Centre - Bondcare,Nursing Homes - Private Contractors Payment,2528.00,0.00,COMMERCIAL SUPPLIER 
 01-07-2022,Adults,Beechcourt Care Centre - Bondcare,Nursing Homes - Private Contractors Payment,2712.00,0.00,COMMERCIAL SUPPLIER 
 01-07-2022,Adults,Beechcourt Care Centre - Bondcare,Nursing Homes - Private Contractors Payment,2712.00,0.00,COMMERCIAL SUPPLIER 
 01-07-2022,Adults,Beechcourt Care Centre - Bondcare,Nursing Homes - Private Contractors Payment,1253.57,0.00,COMMERCIAL SUPPLIER 
 01-07-2022,Adults,Beechcourt Care Centre - Bondcare,Nursing Homes - Private Contractors Payment,3900.00,0.00,COMMERCIAL SUPPLIER 
 01-07-2022,Adults,Beechcourt Care Centre - Bondcare,Nursing Homes - Private Contractors Payment,1950.00,0.00,COMMERCIAL SUPPLIER 
 01-07-2022,Adults,Beechcourt Care Centre - Bondcare,Nursing Homes - Private Contractors Payment,3900.00,0.00,COMMERCIAL SUPPLIER 
 01-07-2022,Adults,Beechcourt Care Centre - Bondcare,Residential Care Income,912.12,0.00,COMMERCIAL SUPPLIER 
 01-07-2022,Adults,Beechcourt Care Centre - Bondcare,Nursing Homes - Private Contractors Payment,2421.43,0.00,COMMERCIAL SUPPLIER 
 01-07-2022,Adults,Beechcourt Care Centre - Bondcare,Nursing Homes - Private Contractors Payment,2712.00,0.00,COMMERCIAL SUPPLIER 
 01-07-2022,Adults,Beechcourt Care Centre - Bondcare,Nursing Homes - Private Contractors Payment,2712.00,0.00,COMMERCIAL SUPPLIER 
 01-07-2022,Adults,Beechcourt Care Centre - Bondcare,Nursing Homes - Private Contractors Payment,2712.00,0.00,COMMERCIAL SUPPLIER 
 01-07-2022,Adults,Beechcourt Care Centre - Bondcare,Nursing Homes - Private Contractors Payment,2712.00,0.00,COMMERCIAL SUPPLIER 
 01-07-2022,Adults,Bondcare (London) Ltd ,Nursing Homes - Private Contractors Payment,3393.16,0.00,COMMERCIAL SUPPLIER 
 01-07-2022,Adults,Bondcare (London) Ltd ,Nursing Homes - Private Contractors Payment,2712.00,0.00,COMMERCIAL SUPPLIER 
 01-07-2022,Adults,Bondcare (London) Ltd ,Nursing Homes - Private Contractors Payment,2712.00,0.00,COMMERCIAL SUPPLIER 
 01-07-2022,Adults,Brandon House,Residential Placements - Private Contractors Payment,779.04,0.00,COMMERCIAL SUPPLIER 
 01-07-2022,Adults,Alexander Court Care Centre - Bondcare,Nursing Homes - Private Contractors Payment,2712.00,0.00,COMMERCIAL SUPPLIER 
 01-07-2022,Adults,Alexander Court Care Centre - Bondcare,Nursing Homes - Private Contractors Payment,2528.00,0.00,COMMERCIAL SUPPLIER 
 01-07-2022,Adults,Alexander Court Care Centre - Bondcare,Nursing Homes - Private Contractors Payment,2627.64,0.00,COMMERCIAL SUPPLIER 
 01-07-2022,Adults,Alexander Court Care Centre - Bondcare,Nursing Homes - Private Contractors Payment,2712.00,0.00,COMMERCIAL SUPPLIER 
 01-07-2022,Adults,Alexander Court Care Centre - Bondcare,Nursing Homes - Private Contractors Payment,3732.44,0.00,COMMERCIAL SUPPLIER 
 01-07-2022,Adults,Alexander Court Care Centre - Bondcare,Residential Placements - Private Contractors Payment,2780.00,0.00,COMMERCIAL SUPPLIER 
 01-07-2022,Adults,Emerson Court_a,Residential Placements - Private Contractors Payment,2836.68,0.00,COMMERCIAL SUPPLIER 
 01-07-2022,Adults,Emerson Court_a,Residential Placements - Private Contractors Payment,2780.00,0.00,COMMERCIAL SUPPLIER 
 01-07-2022,Adults,Emerson Court_a,Residential Placements - Private Contractors Payment,2780.00,0.00,COMMERCIAL SUPPLIER 
 01-07-2022,Adults,DMP Healthcare (Heatherbrook) Ltd,Nursing Homes - Private Contractors Payment,5208.00,0.00,NON COMMERCIAL SUPPLIER 
 01-07-2022,Adults,DMP Healthcare (Heatherbrook) Ltd,Nursing Homes - Private Contractors Payment,5208.00,0.00,NON COMMERCIAL SUPPLIER 
 01-07-2022,Adults,DMP Healthcare (Heatherbrook) Ltd,Nursing Homes - Private Contractors Payment,2722.48,0.00,NON COMMERCIAL SUPPLIER 
 01-07-2022,Adults,DMP Healthcare (Heatherbrook) Ltd,Nursing Homes - Private Contractors Payment,5208.00,0.00,NON COMMERCIAL SUPPLIER 
 01-07-2022,Adults,DMP Healthcare (Heatherbrook) Ltd,Nursing Homes - Private Contractors Payment,4394.25,0.00,NON COMMERCIAL SUPPLIER 
 01-07-2022,Adults,DMP Healthcare (Heatherbrook) Ltd,Nursing Homes - Private Contractors Payment,4557.00,0.00,NON COMMERCIAL SUPPLIER 
 01-07-2022,Adults,DMP Healthcare (Heatherbrook) Ltd,Nursing Homes - Private Contractors Payment,4557.00,0.00,NON COMMERCIAL SUPPLIER 
 01-07-2022,Adults,DMP Healthcare (Heatherbrook) Ltd,Nursing Homes - Private Contractors Payment,4719.75,0.00,NON COMMERCIAL SUPPLIER 
 01-07-2022,Adults,DMP Healthcare (Heatherbrook) Ltd,Nursing Homes - Private Contractors Payment,2034.00,0.00,NON COMMERCIAL SUPPLIER 
 01-07-2022,Adults,DMP Healthcare (Heatherbrook) Ltd,Nursing Homes - Private Contractors Payment,4278.00,0.00,NON COMMERCIAL SUPPLIER 
 01-07-2022,Adults,DMP Healthcare (Heatherbrook) Ltd,Nursing Homes - Private Contractors Payment,2232.00,0.00,NON COMMERCIAL SUPPLIER 
 01-07-2022,Adults,DMP Healthcare (Heatherbrook) Ltd,Nursing Homes - Private Contractors Payment,2772.00,0.00,NON COMMERCIAL SUPPLIER 
 01-07-2022,Adults,DMP Healthcare (Heatherbrook) Ltd,Nursing Homes - Private Contractors Payment,8778.00,0.00,NON COMMERCIAL SUPPLIER 
 01-07-2022,Adults,DMP Healthcare (Heatherbrook) Ltd,Residential Placements - Private Contractors Payment,2780.00,0.00,NON COMMERCIAL SUPPLIER 
 01-07-2022,Adults,DMP Healthcare (Heatherbrook) Ltd,Nursing Homes - Private Contractors Payment,2712.00,0.00,NON COMMERCIAL SUPPLIER 
 01-07-2022,Adults,DMP Healthcare (Heatherbrook) Ltd,Nursing Homes - Private Contractors Payment,2712.00,0.00,NON COMMERCIAL SUPPLIER 
 01-07-2022,Adults,DMP Healthcare (Heatherbrook) Ltd,Nursing Homes - Private Contractors Payment,2712.00,0.00,NON COMMERCIAL SUPPLIER 
 01-07-2022,Adults,DMP Healthcare (Heatherbrook) Ltd,Nursing Homes - Private Contractors Payment,5208.00,0.00,NON COMMERCIAL SUPPLIER 
 01-07-2022,Adults,DMP Healthcare (Heatherbrook) Ltd,Residential Placements - Private Contractors Payment,2780.00,0.00,NON COMMERCIAL SUPPLIER 
 01-07-2022,Adults,DMP Healthcare (Heatherbrook) Ltd,Nursing Homes - Private Contractors Payment,2712.00,0.00,NON COMMERCIAL SUPPLIER 
 01-07-2022,Adults,DMP Healthcare (Heatherbrook) Ltd,Nursing Homes - Private Contractors Payment,2712.00,0.00,NON COMMERCIAL SUPPLIER 
 01-07-2022,Adults,DMP Healthcare (Heatherbrook) Ltd,Nursing Homes - Private Contractors Payment,2712.00,0.00,NON COMMERCIAL SUPPLIER 
 01-07-2022,Adults,DMP Healthcare (Heatherbrook) Ltd,Nursing Homes - Private Contractors Payment,6048.00,0.00,NON COMMERCIAL SUPPLIER 
 01-07-2022,Adults,DMP Healthcare (Heatherbrook) Ltd,Nursing Homes - Private Contractors Payment,2712.00,0.00,NON COMMERCIAL SUPPLIER 
 01-07-2022,Adults,DMP Healthcare (Heatherbrook) Ltd,Nursing Homes - Private Contractors Payment,2712.00,0.00,NON COMMERCIAL SUPPLIER 
 01-07-2022,Adults,DMP Healthcare (Heatherbrook) Ltd,Nursing Homes - Private Contractors Payment,2528.00,0.00,NON COMMERCIAL SUPPLIER 
 01-07-2022,Adults,Sense_a,Residential Placements - Private Contractors Payment,8349.48,0.00,COMMERCIAL SUPPLIER 
 01-07-2022,Adults,Outlook Care - 1A Hulse Avenue,Residential Placements - Private Contractors Payment,5561.68,0.00,COMMERCIAL SUPPLIER 
 01-07-2022,Adults,Outlook Care - 1A Hulse Avenue,Residential Placements - Private Contractors Payment,5561.68,0.00,COMMERCIAL SUPPLIER 
 01-07-2022,Adults,Outlook Care - 1A Hulse Avenue,Residential Placements - Private Contractors Payment,8556.16,0.00,COMMERCIAL SUPPLIER 
 01-07-2022,Adults,Outlook Care - 1A Hulse Avenue,Residential Placements - Private Contractors Payment,5561.68,0.00,COMMERCIAL SUPPLIER 
 01-07-2022,Adults,St Elizabeth's Centre_a,Residential Placements - Private Contractors Payment,10051.12,0.00,COMMERCIAL SUPPLIER 
 01-07-2022,Adults,St Elizabeth's Centre_a,Nursing Homes - Private Contractors Payment,3814.96,0.00,COMMERCIAL SUPPLIER 
 01-07-2022,Adults,Oakley Carehomes Ltd t/a Abbey Care Home,Residential Placements - Private Contractors Payment,2480.00,0.00,COMMERCIAL SUPPLIER 
 01-07-2022,Adults,Masumin Ltd t/s Abbeleigh House,Residential Placements - Private Contractors Payment,2780.00,0.00,COMMERCIAL SUPPLIER 
 01-07-2022,Adults,Masumin Ltd t/s Abbeleigh House,Residential Placements - Private Contractors Payment,2780.00,0.00,COMMERCIAL SUPPLIER 
 01-07-2022,Adults,Masumin Ltd t/s Abbeleigh House,Residential Placements - Private Contractors Payment,2480.00,0.00,COMMERCIAL SUPPLIER 
 01-07-2022,Adults,Masumin Ltd t/s Abbeleigh House,Residential Placements - Private Contractors Payment,2780.00,0.00,COMMERCIAL SUPPLIER 
 01-07-2022,Adults,Masumin Ltd t/s Abbeleigh House,Residential Placements - Private Contractors Payment,2780.00,0.00,COMMERCIAL SUPPLIER 
 01-07-2022,Adults,Masumin Ltd t/s Abbeleigh House,Residential Placements - Private Contractors Payment,3013.52,0.00,COMMERCIAL SUPPLIER 
 01-07-2022,Adults,Masumin Ltd t/s Abbeleigh House,Residential Placements - Private Contractors Payment,2780.00,0.00,COMMERCIAL SUPPLIER 
 01-07-2022,Adults,Masumin Ltd t/s Abbeleigh House,Residential Placements - Private Contractors Payment,2780.00,0.00,COMMERCIAL SUPPLIER 
 01-07-2022,Adults,Masumin Ltd t/s Abbeleigh House,Residential Placements - Private Contractors Payment,2780.00,0.00,COMMERCIAL SUPPLIER 
 01-07-2022,Adults,Masumin Ltd t/s Abbeleigh House,Residential Placements - Private Contractors Payment,2780.00,0.00,COMMERCIAL SUPPLIER 
 01-07-2022,Adults,Masumin Ltd t/s Abbeleigh House,Residential Placements - Private Contractors Payment,3011.04,0.00,COMMERCIAL SUPPLIER 
 01-07-2022,Adults,Masumin Ltd t/s Abbeleigh House,Residential Placements - Private Contractors Payment,3304.00,0.00,COMMERCIAL SUPPLIER 
 01-07-2022,Adults,Masumin Ltd t/s Abbeleigh House,Residential Placements - Private Contractors Payment,1687.86,0.00,COMMERCIAL SUPPLIER 
 01-07-2022,Adults,Masumin Ltd t/s Abbeleigh House,Residential Placements - Private Contractors Payment,2780.00,0.00,COMMERCIAL SUPPLIER 
 01-07-2022,Adults,Masumin Ltd t/s Abbeleigh House,Residential Placements - Private Contractors Payment,2780.00,0.00,COMMERCIAL SUPPLIER 
 01-07-2022,Adults,Masumin Ltd t/s Abbeleigh House,Residential Placements - Private Contractors Payment,2780.00,0.00,COMMERCIAL SUPPLIER 
 01-07-2022,Adults,Masumin Ltd t/s Abbeleigh House,Residential Placements - Private Contractors Payment,2780.00,0.00,COMMERCIAL SUPPLIER 
 01-07-2022,Adults,EC Romford Holdings Ltd,Residential Placements - Private Contractors Payment,3804.80,0.00,COMMERCIAL SUPPLIER 
 01-07-2022,Adults,EC Romford Holdings Ltd,Residential Placements - Private Contractors Payment,2780.00,0.00,COMMERCIAL SUPPLIER 
 01-07-2022,Adults,Clover Cottage Ltd,Residential Placements - Private Contractors Payment,2780.00,0.00,COMMERCIAL SUPPLIER 
 01-07-2022,Adults,Clover Cottage Ltd,Residential Placements - Private Contractors Payment,2480.00,0.00,COMMERCIAL SUPPLIER 
 01-07-2022,Adults,Clover Cottage Ltd,Residential Placements - Private Contractors Payment,2480.00,0.00,COMMERCIAL SUPPLIER 
 01-07-2022,Adults,Clover Cottage Ltd,Residential Placements - Private Contractors Payment,2780.00,0.00,COMMERCIAL SUPPLIER 
 01-07-2022,Adults,Clover Cottage Ltd,Residential Placements - Private Contractors Payment,2480.00,0.00,COMMERCIAL SUPPLIER 
 01-07-2022,Adults,Clover Cottage Ltd,Residential Placements - Private Contractors Payment,2480.00,0.00,COMMERCIAL SUPPLIER 
 01-07-2022,Adults,Clover Cottage Ltd,Residential Placements - Private Contractors Payment,2480.00,0.00,COMMERCIAL SUPPLIER 
 01-07-2022,Adults,Clover Cottage Ltd,Residential Placements - Private Contractors Payment,2780.00,0.00,COMMERCIAL SUPPLIER 
 01-07-2022,Adults,Ebury Court_a,Residential Placements - Private Contractors Payment,2780.00,0.00,COMMERCIAL SUPPLIER 
 01-07-2022,Adults,Ebury Court_a,Residential Placements - Private Contractors Payment,4536.00,0.00,COMMERCIAL SUPPLIER 
 01-07-2022,Adults,Ebury Court_a,Residential Placements - Private Contractors Payment,4536.00,0.00,COMMERCIAL SUPPLIER 
 01-07-2022,Adults,Ebury Court_a,Residential Placements - Private Contractors Payment,4752.00,0.00,COMMERCIAL SUPPLIER 
 01-07-2022,Adults,Ebury Court_a,Residential Placements - Private Contractors Payment,4536.00,0.00,COMMERCIAL SUPPLIER 
 01-07-2022,Adults,Ebury Court_a,Residential Placements - Private Contractors Payment,2780.00,0.00,COMMERCIAL SUPPLIER 
 01-07-2022,Adults,Ebury Court_a,Residential Placements - Private Contractors Payment,4182.00,0.00,COMMERCIAL SUPPLIER 
 01-07-2022,Adults,Ebury Court_a,Residential Placements - Private Contractors Payment,810.00,0.00,COMMERCIAL SUPPLIER 
 01-07-2022,Adults,Ebury Court_a,Residential Placements - Private Contractors Payment,4536.00,0.00,COMMERCIAL SUPPLIER 
 01-07-2022,Adults,Ebury Court_a,Residential Placements - Private Contractors Payment,4536.00,0.00,COMMERCIAL SUPPLIER 
 01-07-2022,Adults,Ebury Court_a,Residential Placements - Private Contractors Payment,2780.00,0.00,COMMERCIAL SUPPLIER 
 01-07-2022,Adults,May Residential Homes Ltd,Residential Placements - Private Contractors Payment,2780.00,0.00,COMMERCIAL SUPPLIER 
 01-07-2022,Adults,May Residential Homes Ltd,Residential Placements - Private Contractors Payment,2780.00,0.00,COMMERCIAL SUPPLIER 
 01-07-2022,Adults,May Residential Homes Ltd,Residential Placements - Private Contractors Payment,3485.00,0.00,COMMERCIAL SUPPLIER 
 01-07-2022,Adults,May Residential Homes Ltd,Residential Placements - Private Contractors Payment,2780.00,0.00,COMMERCIAL SUPPLIER 
 01-07-2022,Adults,May Residential Homes Ltd,Residential Placements - Private Contractors Payment,2780.00,0.00,COMMERCIAL SUPPLIER 
 01-07-2022,Adults,May Residential Homes Ltd,Residential Placements - Private Contractors Payment,3709.68,0.00,COMMERCIAL SUPPLIER 
 01-07-2022,Adults,EC Romford Holdings Ltd,Residential Placements - Private Contractors Payment,3771.40,0.00,COMMERCIAL SUPPLIER 
 01-07-2022,Adults,EC Romford Holdings Ltd,Residential Placements - Private Contractors Payment,2780.00,0.00,COMMERCIAL SUPPLIER 
 01-07-2022,Adults,EC Romford Holdings Ltd,Residential Placements - Private Contractors Payment,2780.00,0.00,COMMERCIAL SUPPLIER 
 01-07-2022,Adults,Lodge Group Care UK Ltd,Supported Other Accommodation - Private Contractors Payment,8634.48,0.00,COMMERCIAL SUPPLIER 
 01-07-2022,Adults,Lodge Group Care UK Ltd,Supported Other Accommodation - Private Contractors Payment,8907.16,0.00,COMMERCIAL SUPPLIER 
 01-07-2022,Adults,Lodge Group Care UK Ltd,Supported Other Accommodation - Private Contractors Payment,8349.12,0.00,COMMERCIAL SUPPLIER 
 01-07-2022,Adults,Lodge Group Care UK Ltd,Supported Other Accommodation - Private Contractors Payment,8634.48,0.00,COMMERCIAL SUPPLIER 
 01-07-2022,Adults,Langley House,Residential Placements - Private Contractors Payment,2780.00,0.00,COMMERCIAL SUPPLIER 
 01-07-2022,Adults,Langley House,Residential Placements - Private Contractors Payment,2780.00,0.00,COMMERCIAL SUPPLIER 
 01-07-2022,Adults,Langley House,Residential Placements - Private Contractors Payment,2480.00,0.00,COMMERCIAL SUPPLIER 
 01-07-2022,Adults,Langley House,Residential Placements - Private Contractors Payment,2780.00,0.00,COMMERCIAL SUPPLIER 
 01-07-2022,Adults,Langley House,Residential Placements - Private Contractors Payment,2780.00,0.00,COMMERCIAL SUPPLIER 
 01-07-2022,Adults,Langley House,Residential Placements - Private Contractors Payment,2780.00,0.00,COMMERCIAL SUPPLIER 
 01-07-2022,Adults,Langley House,Residential Placements - Private Contractors Payment,2780.00,0.00,COMMERCIAL SUPPLIER 
 01-07-2022,Adults,Langley House,Residential Placements - Private Contractors Payment,2480.00,0.00,COMMERCIAL SUPPLIER 
 01-07-2022,Adults,Langley House,Residential Placements - Private Contractors Payment,2480.00,0.00,COMMERCIAL SUPPLIER 
 01-07-2022,Adults,Langley House,Residential Placements - Private Contractors Payment,2780.00,0.00,COMMERCIAL SUPPLIER 
 01-07-2022,Adults,Langley House,Residential Placements - Private Contractors Payment,2780.00,0.00,COMMERCIAL SUPPLIER 
 01-07-2022,Adults,Langley House,Residential Placements - Private Contractors Payment,2780.00,0.00,COMMERCIAL SUPPLIER 
 01-07-2022,Adults,Langley House,Residential Placements - Private Contractors Payment,893.57,0.00,COMMERCIAL SUPPLIER 
 01-07-2022,Adults,Langley House,Residential Placements - Private Contractors Payment,2780.00,0.00,COMMERCIAL SUPPLIER 
 01-07-2022,Adults,Langley House,Residential Placements - Private Contractors Payment,2780.00,0.00,COMMERCIAL SUPPLIER 
 01-07-2022,Adults,Little Gaynes,Residential Placements - Private Contractors Payment,2780.00,0.00,COMMERCIAL SUPPLIER 
 01-07-2022,Adults,Little Gaynes,Residential Placements - Private Contractors Payment,3429.24,0.00,COMMERCIAL SUPPLIER 
 01-07-2022,Adults,Moreland House_a,Nursing Homes - Private Contractors Payment,2400.00,0.00,COMMERCIAL SUPPLIER 
 01-07-2022,Adults,Moreland House_a,Nursing Homes - Private Contractors Payment,1200.00,0.00,COMMERCIAL SUPPLIER 
 01-07-2022,Adults,Moreland House_a,Nursing Homes - Private Contractors Payment,2712.00,0.00,COMMERCIAL SUPPLIER 
 01-07-2022,Adults,Moreland House_a,Nursing Homes - Private Contractors Payment,1452.86,0.00,COMMERCIAL SUPPLIER 
 01-07-2022,Adults,Moreland House_a,Nursing Homes - Private Contractors Payment,3600.00,0.00,COMMERCIAL SUPPLIER 
 01-07-2022,Adults,Moreland House_a,Nursing Homes - Private Contractors Payment,6480.00,0.00,COMMERCIAL SUPPLIER 
 01-07-2022,Adults,Moreland House_a,Nursing Homes - Private Contractors Payment,2712.00,0.00,COMMERCIAL SUPPLIER 
 01-07-2022,Adults,Moreland House_a,Nursing Homes - Private Contractors Payment,2712.00,0.00,COMMERCIAL SUPPLIER 
 01-07-2022,Adults,Moreland House_a,Nursing Homes - Private Contractors Payment,2712.00,0.00,COMMERCIAL SUPPLIER 
 01-07-2022,Adults,Moreland House_a,Nursing Homes - Private Contractors Payment,2306.24,0.00,COMMERCIAL SUPPLIER 
 01-07-2022,Adults,Moreland House_a,Nursing Homes - Private Contractors Payment,10584.00,0.00,COMMERCIAL SUPPLIER 
 01-07-2022,Adults,Moreland House_a,Nursing Homes - Private Contractors Payment,3680.00,0.00,COMMERCIAL SUPPLIER 
 01-07-2022,Adults,Moreland House_a,Nursing Homes - Private Contractors Payment,960.00,0.00,COMMERCIAL SUPPLIER 
 01-07-2022,Adults,Moreland House_a,Nursing Homes - Private Contractors Payment,2712.00,0.00,COMMERCIAL SUPPLIER 
 01-07-2022,Adults,Moreland House_a,Nursing Homes - Private Contractors Payment,3053.84,0.00,COMMERCIAL SUPPLIER 
 01-07-2022,Adults,Moreland House_a,Nursing Homes - Private Contractors Payment,2712.00,0.00,COMMERCIAL SUPPLIER 
 01-07-2022,Adults,Moreland House_a,Nursing Homes - Private Contractors Payment,2712.00,0.00,COMMERCIAL SUPPLIER 
 01-07-2022,Adults,Moreland House_a,Nursing Homes - Private Contractors Payment,2712.00,0.00,COMMERCIAL SUPPLIER 
 01-07-2022,Adults,Moreland House_a,Nursing Homes - Private Contractors Payment,2712.00,0.00,COMMERCIAL SUPPLIER 
 01-07-2022,Adults,Moreland House_a,Nursing Homes - Private Contractors Payment,3203.12,0.00,COMMERCIAL SUPPLIER 
 01-07-2022,Adults,Moreland House_a,Nursing Homes - Private Contractors Payment,2712.00,0.00,COMMERCIAL SUPPLIER 
 01-07-2022,Adults,Moreland House_a,Nursing Homes - Private Contractors Payment,3900.00,0.00,COMMERCIAL SUPPLIER 
 01-07-2022,Adults,Ladyville Lodge_a,Nursing Homes - Private Contractors Payment,2528.00,0.00,COMMERCIAL SUPPLIER 
 01-07-2022,Adults,Ladyville Lodge_a,Residential Placements - Private Contractors Payment,2780.00,0.00,COMMERCIAL SUPPLIER 
 01-07-2022,Adults,Ladyville Lodge_a,Nursing Homes - Private Contractors Payment,2525.92,0.00,COMMERCIAL SUPPLIER 
 01-07-2022,Adults,Ladyville Lodge_a,Nursing Homes - Private Contractors Payment,3690.00,0.00,COMMERCIAL SUPPLIER 
 01-07-2022,Adults,Ladyville Lodge_a,Nursing Homes - Private Contractors Payment,2528.00,0.00,COMMERCIAL SUPPLIER 
 01-07-2022,Adults,Ladyville Lodge_a,Residential Placements - Private Contractors Payment,2780.00,0.00,COMMERCIAL SUPPLIER 
 01-07-2022,Adults,Ladyville Lodge_a,Residential Placements - Private Contractors Payment,4431.20,0.00,COMMERCIAL SUPPLIER 
 01-07-2022,Adults,Ladyville Lodge_a,Residential Placements - Private Contractors Payment,3690.00,0.00,COMMERCIAL SUPPLIER 
 01-07-2022,Adults,Ladyville Lodge_a,Nursing Homes - Private Contractors Payment,3740.84,0.00,COMMERCIAL SUPPLIER 
 01-07-2022,Adults,Nightingale Residential Care Home Ltd,Residential Placements - Private Contractors Payment,2780.00,0.00,COMMERCIAL SUPPLIER 
 01-07-2022,Adults,Nightingale Residential Care Home Ltd,Residential Placements - Private Contractors Payment,2780.00,0.00,COMMERCIAL SUPPLIER 
 01-07-2022,Adults,Nightingale Residential Care Home Ltd,Residential Placements - Private Contractors Payment,2780.00,0.00,COMMERCIAL SUPPLIER 
 01-07-2022,Adults,Nightingale Residential Care Home Ltd,Residential Placements - Private Contractors Payment,2665.00,0.00,COMMERCIAL SUPPLIER 
 01-07-2022,Adults,Nightingale Residential Care Home Ltd,Residential Placements - Private Contractors Payment,2780.00,0.00,COMMERCIAL SUPPLIER 
 01-07-2022,Adults,Nightingale Residential Care Home Ltd,Residential Placements - Private Contractors Payment,2780.00,0.00,COMMERCIAL SUPPLIER 
 01-07-2022,Adults,Nightingale Residential Care Home Ltd,Residential Placements - Private Contractors Payment,2780.00,0.00,COMMERCIAL SUPPLIER 
 01-07-2022,Adults,Nightingale Residential Care Home Ltd,Residential Placements - Private Contractors Payment,2780.00,0.00,COMMERCIAL SUPPLIER 
 01-07-2022,Adults,Nightingale Residential Care Home Ltd,Residential Placements - Private Contractors Payment,2780.00,0.00,COMMERCIAL SUPPLIER 
 01-07-2022,Adults,Nightingale Residential Care Home Ltd,Residential Placements - Private Contractors Payment,2780.00,0.00,COMMERCIAL SUPPLIER 
 01-07-2022,Adults,Nightingale Residential Care Home Ltd,Residential Placements - Private Contractors Payment,2780.00,0.00,COMMERCIAL SUPPLIER 
 01-07-2022,Adults,Nightingale Residential Care Home Ltd,Residential Placements - Private Contractors Payment,2780.00,0.00,COMMERCIAL SUPPLIER 
 01-07-2022,Adults,Nightingale Residential Care Home Ltd,Residential Placements - Private Contractors Payment,2780.00,0.00,COMMERCIAL SUPPLIER 
 01-07-2022,Adults,Oaks Residential Home,Residential Placements - Private Contractors Payment,4600.00,0.00,COMMERCIAL SUPPLIER 
 01-07-2022,Adults,Oaks Residential Home,Residential Placements - Private Contractors Payment,4600.00,0.00,COMMERCIAL SUPPLIER 
 01-07-2022,Adults,Oaks Residential Home,Residential Placements - Private Contractors Payment,4600.00,0.00,COMMERCIAL SUPPLIER 
 01-07-2022,Adults,Oaks Residential Home,Residential Placements - Private Contractors Payment,4600.00,0.00,COMMERCIAL SUPPLIER 
 01-07-2022,Adults,Oaks Residential Home,Residential Placements - Private Contractors Payment,2480.00,0.00,COMMERCIAL SUPPLIER 
 01-07-2022,Adults,Oaks Residential Home,Residential Placements - Private Contractors Payment,3972.92,0.00,COMMERCIAL SUPPLIER 
 01-07-2022,Adults,Oaks Residential Home,Residential Placements - Private Contractors Payment,2780.00,0.00,COMMERCIAL SUPPLIER 
 01-07-2022,Adults,Oaks Residential Home,Residential Placements - Private Contractors Payment,4600.00,0.00,COMMERCIAL SUPPLIER 
 01-07-2022,Adults,Oaks Residential Home,Residential Placements - Private Contractors Payment,4600.00,0.00,COMMERCIAL SUPPLIER 
 01-07-2022,Adults,Oaks Residential Home,Residential Placements - Private Contractors Payment,4600.00,0.00,COMMERCIAL SUPPLIER 
 01-07-2022,Adults,Oaks Residential Home,Residential Placements - Private Contractors Payment,4600.00,0.00,COMMERCIAL SUPPLIER 
 01-07-2022,Adults,Oaks Residential Home,Residential Placements - Private Contractors Payment,2780.00,0.00,COMMERCIAL SUPPLIER 
 01-07-2022,Adults,Oaks Residential Home,Residential Placements - Private Contractors Payment,2780.00,0.00,COMMERCIAL SUPPLIER 
 01-07-2022,Adults,Oaks Residential Home,Residential Placements - Private Contractors Payment,2780.00,0.00,COMMERCIAL SUPPLIER 
 01-07-2022,Adults,Oaks Residential Home,Residential Placements - Private Contractors Payment,2780.00,0.00,COMMERCIAL SUPPLIER 
 01-07-2022,Adults,Oaks Residential Home,Residential Placements - Private Contractors Payment,2780.00,0.00,COMMERCIAL SUPPLIER 
 01-07-2022,Adults,Parkside_a,Residential Placements - Private Contractors Payment,3659.24,0.00,COMMERCIAL SUPPLIER 
 01-07-2022,Adults,Parkside_a,Residential Placements - Private Contractors Payment,2780.00,0.00,COMMERCIAL SUPPLIER 
 01-07-2022,Adults,Priory Supporting Care Ltd,Residential Placements - Private Contractors Payment,2480.00,0.00,COMMERCIAL SUPPLIER 
 01-07-2022,Adults,Priory Supporting Care Ltd,Residential Placements - Private Contractors Payment,2780.00,0.00,COMMERCIAL SUPPLIER 
 01-07-2022,Adults,Priory Supporting Care Ltd,Residential Placements - Private Contractors Payment,2559.40,0.00,COMMERCIAL SUPPLIER 
 01-07-2022,Adults,Priory Supporting Care Ltd,Residential Placements - Private Contractors Payment,3075.00,0.00,COMMERCIAL SUPPLIER 
 01-07-2022,Adults,Priory Supporting Care Ltd,Residential Placements - Private Contractors Payment,2780.00,0.00,COMMERCIAL SUPPLIER 
 01-07-2022,Adults,Priory Supporting Care Ltd,Residential Placements - Private Contractors Payment,2780.00,0.00,COMMERCIAL SUPPLIER 
 01-07-2022,Adults,Priory Supporting Care Ltd,Residential Placements - Private Contractors Payment,2780.00,0.00,COMMERCIAL SUPPLIER 
 01-07-2022,Adults,Priory Supporting Care Ltd,Residential Placements - Private Contractors Payment,2780.00,0.00,COMMERCIAL SUPPLIER 
 01-07-2022,Adults,Priory Supporting Care Ltd,Residential Placements - Private Contractors Payment,2780.00,0.00,COMMERCIAL SUPPLIER 
 01-07-2022,Adults,Ash Grove Residential Care Home,Residential Placements - Private Contractors Payment,4100.00,0.00,COMMERCIAL SUPPLIER 
 01-07-2022,Adults,Ash Grove Residential Care Home,Residential Placements - Private Contractors Payment,2780.00,0.00,COMMERCIAL SUPPLIER 
 01-07-2022,Adults,Ash Grove Residential Care Home,Residential Placements - Private Contractors Payment,2780.00,0.00,COMMERCIAL SUPPLIER 
 01-07-2022,Adults,Ash Grove Residential Care Home,Residential Placements - Private Contractors Payment,2780.00,0.00,COMMERCIAL SUPPLIER 
 01-07-2022,Adults,Ash Grove Residential Care Home,Residential Placements - Private Contractors Payment,2780.00,0.00,COMMERCIAL SUPPLIER 
 01-07-2022,Adults,Ash Grove Residential Care Home,Respite Care - Private Contractors Payment,542.86,0.00,COMMERCIAL SUPPLIER 
 01-07-2022,Adults,Ash Grove Residential Care Home,Residential Placements - Private Contractors Payment,2480.00,0.00,COMMERCIAL SUPPLIER 
 01-07-2022,Adults,Ash Grove Residential Care Home,Residential Placements - Private Contractors Payment,3800.00,0.00,COMMERCIAL SUPPLIER 
 01-07-2022,Adults,Ash Grove Residential Care Home,Residential Placements - Private Contractors Payment,2480.00,0.00,COMMERCIAL SUPPLIER 
 01-07-2022,Adults,Ash Grove Residential Care Home,Residential Placements - Private Contractors Payment,2480.00,0.00,COMMERCIAL SUPPLIER 
 01-07-2022,Adults,Ash Grove Residential Care Home,Residential Placements - Private Contractors Payment,3800.00,0.00,COMMERCIAL SUPPLIER 
 01-07-2022,Adults,Ash Grove Residential Care Home,Residential Placements - Private Contractors Payment,1828.57,0.00,COMMERCIAL SUPPLIER 
 01-07-2022,Adults,Ash Grove Residential Care Home,Residential Placements - Private Contractors Payment,3200.00,0.00,COMMERCIAL SUPPLIER 
 01-07-2022,Adults,Voyage Ltd - 89 Mawney Road,Residential Placements - Private Contractors Payment,5786.32,0.00,COMMERCIAL SUPPLIER 
 01-07-2022,Adults,Voyage Ltd - 89 Mawney Road,Residential Placements - Private Contractors Payment,5786.32,0.00,COMMERCIAL SUPPLIER 
 01-07-2022,Adults,Voyage Ltd - 89 Mawney Road,Residential Placements - Private Contractors Payment,5786.32,0.00,COMMERCIAL SUPPLIER 
 01-07-2022,Adults,Voyage Ltd - 89 Mawney Road,Residential Placements - Private Contractors Payment,5786.32,0.00,COMMERCIAL SUPPLIER 
 01-07-2022,Adults,Voyage Ltd - 89 Mawney Road,Residential Placements - Private Contractors Payment,5786.32,0.00,COMMERCIAL SUPPLIER 
 01-07-2022,Adults,GCH - Hillside Nursing Home,Residential Placements - Private Contractors Payment,2780.00,0.00,COMMERCIAL SUPPLIER 
 01-07-2022,Adults,GCH - Hillside Nursing Home,Nursing Homes - Private Contractors Payment,568.57,0.00,COMMERCIAL SUPPLIER 
 01-07-2022,Adults,GCH - Hillside Nursing Home,Nursing Homes - Private Contractors Payment,3980.00,0.00,COMMERCIAL SUPPLIER 
 01-07-2022,Adults,GCH - Hillside Nursing Home,Nursing Homes - Private Contractors Payment,3980.00,0.00,COMMERCIAL SUPPLIER 
 01-07-2022,Adults,GCH - Hillside Nursing Home,Nursing Homes - Private Contractors Payment,3800.00,0.00,COMMERCIAL SUPPLIER 
 01-07-2022,Adults,GCH - Hillside Nursing Home,Nursing Homes - Private Contractors Payment,3690.00,0.00,COMMERCIAL SUPPLIER 
 01-07-2022,Adults,GCH - Hillside Nursing Home,Nursing Homes - Private Contractors Payment,2712.00,0.00,COMMERCIAL SUPPLIER 
 01-07-2022,Adults,GCH - Hillside Nursing Home,Residential Placements - Private Contractors Payment,2780.00,0.00,COMMERCIAL SUPPLIER 
 01-07-2022,Adults,GCH - Hillside Nursing Home,Nursing Homes - Private Contractors Payment,3895.00,0.00,COMMERCIAL SUPPLIER 
 01-07-2022,Adults,GCH - Hillside Nursing Home,Nursing Homes - Private Contractors Payment,14784.00,0.00,COMMERCIAL SUPPLIER 
 01-07-2022,Adults,GCH - Hillside Nursing Home,Nursing Homes - Private Contractors Payment,2712.00,0.00,COMMERCIAL SUPPLIER 
 01-07-2022,Adults,GCH - Hillside Nursing Home,Nursing Homes - Private Contractors Payment,2712.00,0.00,COMMERCIAL SUPPLIER 
 01-07-2022,Adults,GCH - Hillside Nursing Home,Residential Placements - Private Contractors Payment,2780.00,0.00,COMMERCIAL SUPPLIER 
 01-07-2022,Adults,GCH - Hillside Nursing Home,Nursing Homes - Private Contractors Payment,3199.24,0.00,COMMERCIAL SUPPLIER 
 01-07-2022,Adults,GCH - Hillside Nursing Home,Residential Care Income,595.40,0.00,COMMERCIAL SUPPLIER 
 01-07-2022,Adults,GCH - Hillside Nursing Home,Residential Care Income,616.66,0.00,COMMERCIAL SUPPLIER 
 01-07-2022,Adults,GCH - Hillside Nursing Home,Residential Care Income,608.80,0.00,COMMERCIAL SUPPLIER 
 01-07-2022,Adults,GCH - Hillside Nursing Home,Residential Care Income,608.80,0.00,COMMERCIAL SUPPLIER 
 01-07-2022,Adults,GCH - Hillside Nursing Home,Residential Care Income,608.80,0.00,COMMERCIAL SUPPLIER 
 01-07-2022,Adults,GCH - Hillside Nursing Home,Residential Care Income,630.54,0.00,COMMERCIAL SUPPLIER 
 01-07-2022,Adults,GCH - Hillside Nursing Home,Residential Placements - Private Contractors Payment,3554.72,0.00,COMMERCIAL SUPPLIER 
 01-07-2022,Adults,GCH - Hillside Nursing Home,Residential Placements - Private Contractors Payment,2780.00,0.00,COMMERCIAL SUPPLIER 
 01-07-2022,Adults,GCH - Hillside Nursing Home,Nursing Homes - Private Contractors Payment,3895.00,0.00,COMMERCIAL SUPPLIER 
 01-07-2022,Adults,GCH - Hillside Nursing Home,Nursing Homes - Private Contractors Payment,2712.00,0.00,COMMERCIAL SUPPLIER 
 01-07-2022,Adults,GCH - Hillside Nursing Home,Nursing Homes - Private Contractors Payment,2712.00,0.00,COMMERCIAL SUPPLIER 
 01-07-2022,Adults,GCH - Hillside Nursing Home,Nursing Homes - Private Contractors Payment,2712.00,0.00,COMMERCIAL SUPPLIER 
 01-07-2022,Adults,GCH - Hillside Nursing Home,Nursing Homes - Private Contractors Payment,3900.00,0.00,COMMERCIAL SUPPLIER 
 01-07-2022,Adults,GCH - Hillside Nursing Home,Nursing Homes - Private Contractors Payment,1728.00,0.00,COMMERCIAL SUPPLIER 
 01-07-2022,Adults,GCH - Hillside Nursing Home,Nursing Homes - Private Contractors Payment,2880.00,0.00,COMMERCIAL SUPPLIER 
 01-07-2022,Adults,GCH - Hillside Nursing Home,Nursing Homes - Private Contractors Payment,1253.57,0.00,COMMERCIAL SUPPLIER 
 01-07-2022,Adults,GCH - Hillside Nursing Home,Nursing Homes - Private Contractors Payment,8064.00,0.00,COMMERCIAL SUPPLIER 
 01-07-2022,Adults,GCH - Hillside Nursing Home,Nursing Homes - Private Contractors Payment,5184.00,0.00,COMMERCIAL SUPPLIER 
 01-07-2022,Adults,GCH - Hillside Nursing Home,Nursing Homes - Private Contractors Payment,2880.00,0.00,COMMERCIAL SUPPLIER 
 01-07-2022,Adults,GCH - Hillside Nursing Home,Nursing Homes - Private Contractors Payment,3900.00,0.00,COMMERCIAL SUPPLIER 
 01-07-2022,Adults,GCH - Hillside Nursing Home,Nursing Homes - Private Contractors Payment,12096.00,0.00,COMMERCIAL SUPPLIER 
 01-07-2022,Adults,GCH - Hillside Nursing Home,Nursing Homes - Private Contractors Payment,11520.00,0.00,COMMERCIAL SUPPLIER 
 01-07-2022,Adults,GCH - Hillside Nursing Home,Nursing Homes - Private Contractors Payment,8640.00,0.00,COMMERCIAL SUPPLIER 
 01-07-2022,Adults,GCH - Hillside Nursing Home,Nursing Homes - Private Contractors Payment,3342.86,0.00,COMMERCIAL SUPPLIER 
 01-07-2022,Adults,GCH - Hillside Nursing Home,Nursing Homes - Private Contractors Payment,5184.00,0.00,COMMERCIAL SUPPLIER 
 01-07-2022,Adults,GCH - Hillside Nursing Home,Nursing Homes - Private Contractors Payment,2880.00,0.00,COMMERCIAL SUPPLIER 
 01-07-2022,Adults,GCH - Hillside Nursing Home,Nursing Homes - Private Contractors Payment,3900.00,0.00,COMMERCIAL SUPPLIER 
 01-07-2022,Adults,GCH - Hillside Nursing Home,Nursing Homes - Private Contractors Payment,3900.00,0.00,COMMERCIAL SUPPLIER 
 01-07-2022,Adults,GCH - Hillside Nursing Home,Nursing Homes - Private Contractors Payment,1392.86,0.00,COMMERCIAL SUPPLIER 
 01-07-2022,Adults,GCH - Hillside Nursing Home,Residential Placements - Private Contractors Payment,2480.00,0.00,COMMERCIAL SUPPLIER 
 01-07-2022,Adults,Outlook Care - 86 Veronica Close,Residential Placements - Private Contractors Payment,1565.56,0.00,COMMERCIAL SUPPLIER 
 01-07-2022,Adults,Outlook Care - 86 Veronica Close,Residential Placements - Private Contractors Payment,4514.36,0.00,COMMERCIAL SUPPLIER 
 01-07-2022,Adults,Outlook Care - 86 Veronica Close,Residential Placements - Private Contractors Payment,4514.36,0.00,COMMERCIAL SUPPLIER 
 01-07-2022,Adults,Outlook Care - 86 Veronica Close,Residential Placements - Private Contractors Payment,4514.36,0.00,COMMERCIAL SUPPLIER 
 01-07-2022,Adults,Outlook Care - 86 Veronica Close,Residential Placements - Private Contractors Payment,4514.36,0.00,COMMERCIAL SUPPLIER 
 01-07-2022,Adults,Outlook Care - 86 Veronica Close,Residential Placements - Private Contractors Payment,4514.36,0.00,COMMERCIAL SUPPLIER 
 01-07-2022,Adults,Outlook Care - 86 Veronica Close,Residential Placements - Private Contractors Payment,4514.36,0.00,COMMERCIAL SUPPLIER 
 01-07-2022,Adults,Outlook Care - 86 Veronica Close,Residential Placements - Private Contractors Payment,4514.36,0.00,COMMERCIAL SUPPLIER 
 01-07-2022,Adults,Outlook Care - 86 Veronica Close,Residential Placements - Private Contractors Payment,4514.36,0.00,COMMERCIAL SUPPLIER 
 01-07-2022,Adults,Outlook Care - 86 Veronica Close,Residential Placements - Private Contractors Payment,4514.36,0.00,COMMERCIAL SUPPLIER 
 01-07-2022,Adults,Outlook Care - 86 Veronica Close,Residential Placements - Private Contractors Payment,4514.36,0.00,COMMERCIAL SUPPLIER 
 01-07-2022,Adults,Lodge Lane Care Home Limited,Residential Placements - Private Contractors Payment,2780.00,0.00,COMMERCIAL SUPPLIER 
 01-07-2022,Adults,Lodge Lane Care Home Limited,Residential Placements - Private Contractors Payment,2780.00,0.00,COMMERCIAL SUPPLIER 
 01-07-2022,Adults,Lodge Lane Care Home Limited,Residential Placements - Private Contractors Payment,2780.00,0.00,COMMERCIAL SUPPLIER 
 01-07-2022,Adults,Lodge Lane Care Home Limited,Residential Placements - Private Contractors Payment,2780.00,0.00,COMMERCIAL SUPPLIER 
 01-07-2022,Adults,Lodge Lane Care Home Limited,Residential Placements - Private Contractors Payment,2780.00,0.00,COMMERCIAL SUPPLIER 
 01-07-2022,Adults,Lodge Lane Care Home Limited,Residential Placements - Private Contractors Payment,2780.00,0.00,COMMERCIAL SUPPLIER 
 01-07-2022,Adults,Lodge Lane Care Home Limited,Respite Care - Private Contractors Payment,1687.86,0.00,COMMERCIAL SUPPLIER 
 01-07-2022,Adults,Lodge Lane Care Home Limited,Residential Placements - Private Contractors Payment,794.29,0.00,COMMERCIAL SUPPLIER 
 01-07-2022,Adults,Lodge Lane Care Home Limited,Residential Placements - Private Contractors Payment,2780.00,0.00,COMMERCIAL SUPPLIER 
 01-07-2022,Adults,Lodge Lane Care Home Limited,Residential Placements - Private Contractors Payment,2780.00,0.00,COMMERCIAL SUPPLIER 
 01-07-2022,Adults,Lodge Lane Care Home Limited,Residential Placements - Private Contractors Payment,2780.00,0.00,COMMERCIAL SUPPLIER 
 01-07-2022,Adults,Lodge Lane Care Home Limited,Residential Placements - Private Contractors Payment,2780.00,0.00,COMMERCIAL SUPPLIER 
 01-07-2022,Adults,Lodge Lane Care Home Limited,Residential Placements - Private Contractors Payment,2780.00,0.00,COMMERCIAL SUPPLIER 
 01-07-2022,Adults,Lodge Lane Care Home Limited,Residential Placements - Private Contractors Payment,2780.00,0.00,COMMERCIAL SUPPLIER 
 01-07-2022,Adults,Lodge Lane Care Home Limited,Residential Placements - Private Contractors Payment,2780.00,0.00,COMMERCIAL SUPPLIER 
 01-07-2022,Adults,Lodge Lane Care Home Limited,Residential Placements - Private Contractors Payment,2780.00,0.00,COMMERCIAL SUPPLIER 
 01-07-2022,Adults,Lodge Lane Care Home Limited,Residential Placements - Private Contractors Payment,2780.00,0.00,COMMERCIAL SUPPLIER 
 01-07-2022,Adults,Lodge Lane Care Home Limited,Residential Placements - Private Contractors Payment,2780.00,0.00,COMMERCIAL SUPPLIER 
 01-07-2022,Adults,Lodge Lane Care Home Limited,Residential Placements - Private Contractors Payment,2780.00,0.00,COMMERCIAL SUPPLIER 
 01-07-2022,Adults,Lodge Lane Care Home Limited,Residential Placements - Private Contractors Payment,2780.00,0.00,COMMERCIAL SUPPLIER 
 01-07-2022,Adults,Lodge Lane Care Home Limited,Residential Placements - Private Contractors Payment,2780.00,0.00,COMMERCIAL SUPPLIER 
 01-07-2022,Adults,Lodge Lane Care Home Limited,Residential Placements - Private Contractors Payment,2780.00,0.00,COMMERCIAL SUPPLIER 
 01-07-2022,Adults,Lodge Lane Care Home Limited,Residential Placements - Private Contractors Payment,2780.00,0.00,COMMERCIAL SUPPLIER 
 01-07-2022,Adults,Lodge Lane Care Home Limited,Residential Placements - Private Contractors Payment,2780.00,0.00,COMMERCIAL SUPPLIER 
 01-07-2022,Adults,Lodge Lane Care Home Limited,Residential Placements - Private Contractors Payment,2780.00,0.00,COMMERCIAL SUPPLIER 
 01-07-2022,Adults,Lodge Lane Care Home Limited,Residential Placements - Private Contractors Payment,2780.00,0.00,COMMERCIAL SUPPLIER 
 01-07-2022,Adults,Lodge Lane Care Home Limited,Residential Placements - Private Contractors Payment,2780.00,0.00,COMMERCIAL SUPPLIER 
 01-07-2022,Adults,Lodge Lane Care Home Limited,Residential Placements - Private Contractors Payment,2780.00,0.00,COMMERCIAL SUPPLIER 
 01-07-2022,Adults,Lodge Lane Care Home Limited,Residential Placements - Private Contractors Payment,2780.00,0.00,COMMERCIAL SUPPLIER 
 01-07-2022,Adults,Lodge Lane Care Home Limited,Residential Placements - Private Contractors Payment,2780.00,0.00,COMMERCIAL SUPPLIER 
 01-07-2022,Adults,Lodge Lane Care Home Limited,Residential Placements - Private Contractors Payment,2780.00,0.00,COMMERCIAL SUPPLIER 
 01-07-2022,Adults,Lodge Lane Care Home Limited,Residential Placements - Private Contractors Payment,2780.00,0.00,COMMERCIAL SUPPLIER 
 01-07-2022,Adults,Lodge Lane Care Home Limited,Residential Placements - Private Contractors Payment,2780.00,0.00,COMMERCIAL SUPPLIER 
 01-07-2022,Adults,Lodge Lane Care Home Limited,Residential Placements - Private Contractors Payment,2780.00,0.00,COMMERCIAL SUPPLIER 
 01-07-2022,Adults,Lodge Lane Care Home Limited,Residential Placements - Private Contractors Payment,2780.00,0.00,COMMERCIAL SUPPLIER 
 01-07-2022,Adults,Lodge Lane Care Home Limited,Residential Placements - Private Contractors Payment,2780.00,0.00,COMMERCIAL SUPPLIER 
 01-07-2022,Adults,Lodge Lane Care Home Limited,Residential Placements - Private Contractors Payment,2780.00,0.00,COMMERCIAL SUPPLIER 
 01-07-2022,Adults,Lodge Lane Care Home Limited,Respite Care - Private Contractors Payment,1290.71,0.00,COMMERCIAL SUPPLIER 
 01-07-2022,Adults,Lodge Lane Care Home Limited,Residential Placements - Private Contractors Payment,2780.00,0.00,COMMERCIAL SUPPLIER 
 01-07-2022,Adults,Lodge Lane Care Home Limited,Residential Placements - Private Contractors Payment,2780.00,0.00,COMMERCIAL SUPPLIER 
 01-07-2022,Adults,Lodge Lane Care Home Limited,Residential Placements - Private Contractors Payment,2780.00,0.00,COMMERCIAL SUPPLIER 
 01-07-2022,Adults,Lodge Lane Care Home Limited,Residential Placements - Private Contractors Payment,2780.00,0.00,COMMERCIAL SUPPLIER 
 01-07-2022,Adults,Lodge Lane Care Home Limited,Residential Placements - Private Contractors Payment,2780.00,0.00,COMMERCIAL SUPPLIER 
 01-07-2022,Adults,Lodge Lane Care Home Limited,Residential Placements - Private Contractors Payment,893.57,0.00,COMMERCIAL SUPPLIER 
 01-07-2022,Adults,Lodge Lane Care Home Limited,Residential Placements - Private Contractors Payment,2780.00,0.00,COMMERCIAL SUPPLIER 
 01-07-2022,Adults,Lodge Lane Care Home Limited,Residential Placements - Private Contractors Payment,2780.00,0.00,COMMERCIAL SUPPLIER 
 01-07-2022,Adults,Lodge Lane Care Home Limited,Residential Placements - Private Contractors Payment,2780.00,0.00,COMMERCIAL SUPPLIER 
 01-07-2022,Adults,Lodge Lane Care Home Limited,Residential Placements - Private Contractors Payment,2780.00,0.00,COMMERCIAL SUPPLIER 
 01-07-2022,Adults,Lodge Lane Care Home Limited,Respite Care - Private Contractors Payment,1390.00,0.00,COMMERCIAL SUPPLIER 
 01-07-2022,Adults,Lodge Lane Care Home Limited,Residential Placements - Private Contractors Payment,2780.00,0.00,COMMERCIAL SUPPLIER 
 01-07-2022,Adults,Lodge Lane Care Home Limited,Residential Placements - Private Contractors Payment,2780.00,0.00,COMMERCIAL SUPPLIER 
 01-07-2022,Adults,Lodge Lane Care Home Limited,Residential Placements - Private Contractors Payment,2780.00,0.00,COMMERCIAL SUPPLIER 
 01-07-2022,Adults,Lodge Lane Care Home Limited,Respite Care - Private Contractors Payment,793.57,0.00,COMMERCIAL SUPPLIER 
 01-07-2022,Adults,Lodge Lane Care Home Limited,Respite Care - Private Contractors Payment,1191.43,0.00,COMMERCIAL SUPPLIER 
 01-07-2022,Adults,Lodge Lane Care Home Limited,Residential Placements - Private Contractors Payment,2780.00,0.00,COMMERCIAL SUPPLIER 
 01-07-2022,Adults,Lodge Lane Care Home Limited,Residential Placements - Private Contractors Payment,2780.00,0.00,COMMERCIAL SUPPLIER 
 01-07-2022,Adults,Lodge Lane Care Home Limited,Residential Placements - Private Contractors Payment,695.00,0.00,COMMERCIAL SUPPLIER 
 01-07-2022,Adults,Lodge Lane Care Home Limited,Residential Placements - Private Contractors Payment,695.00,0.00,COMMERCIAL SUPPLIER 
 01-07-2022,Adults,Lodge Lane Care Home Limited,Residential Placements - Private Contractors Payment,1092.14,0.00,COMMERCIAL SUPPLIER 
 01-07-2022,Adults,Lodge Lane Care Home Limited,Residential Placements - Private Contractors Payment,2780.00,0.00,COMMERCIAL SUPPLIER 
 01-07-2022,Adults,Lodge Lane Care Home Limited,Residential Placements - Private Contractors Payment,2780.00,0.00,COMMERCIAL SUPPLIER 
 01-07-2022,Adults,Lodge Lane Care Home Limited,Residential Placements - Private Contractors Payment,2085.00,0.00,COMMERCIAL SUPPLIER 
 01-07-2022,Adults,Lodge Lane Care Home Limited,Residential Placements - Private Contractors Payment,2780.00,0.00,COMMERCIAL SUPPLIER 
 01-07-2022,Adults,Lodge Lane Care Home Limited,Residential Placements - Private Contractors Payment,2780.00,0.00,COMMERCIAL SUPPLIER 
 01-07-2022,Adults,Lodge Lane Care Home Limited,Residential Placements - Private Contractors Payment,2780.00,0.00,COMMERCIAL SUPPLIER 
 01-07-2022,Adults,Lodge Lane Care Home Limited,Respite Care - Private Contractors Payment,695.00,0.00,COMMERCIAL SUPPLIER 
 01-07-2022,Adults,Lodge Lane Care Home Limited,Residential Placements - Private Contractors Payment,2780.00,0.00,COMMERCIAL SUPPLIER 
 01-07-2022,Adults,Lodge Lane Care Home Limited,Residential Placements - Private Contractors Payment,2780.00,0.00,COMMERCIAL SUPPLIER 
 01-07-2022,Adults,Lodge Lane Care Home Limited,Residential Placements - Private Contractors Payment,2780.00,0.00,COMMERCIAL SUPPLIER 
 01-07-2022,Adults,Lodge Lane Care Home Limited,Residential Placements - Private Contractors Payment,2780.00,0.00,COMMERCIAL SUPPLIER 
 01-07-2022,Adults,Rose House_a,Residential Placements - Private Contractors Payment,6699.20,0.00,COMMERCIAL SUPPLIER 
 01-07-2022,Adults,Melody Lodge_a,Residential Placements - Private Contractors Payment,4692.20,0.00,COMMERCIAL SUPPLIER 
 01-07-2022,Adults,Outlook Care_a,Supported Other Accommodation - Private Contractors Payment,2253.44,0.00,COMMERCIAL SUPPLIER 
 01-07-2022,Adults,Abbottswood Lodge,Residential Placements - Private Contractors Payment,1763.76,0.00,COMMERCIAL SUPPLIER 
 01-07-2022,Adults,Autism Initiatives,Residential Placements - Private Contractors Payment,5565.64,0.00,COMMERCIAL SUPPLIER 
 01-07-2022,Adults,The Cottage Residential Care Home,Residential Placements - Private Contractors Payment,1040.28,0.00,COMMERCIAL SUPPLIER 
 01-07-2022,Adults,The Cottage Residential Care Home,Residential Placements - Private Contractors Payment,2966.96,0.00,COMMERCIAL SUPPLIER 
 01-07-2022,Adults,Ashgate House Ltd_a,Residential Placements - Private Contractors Payment,3770.80,0.00,COMMERCIAL SUPPLIER 
 01-07-2022,Adults,Ashgate House Ltd_a,Residential Placements - Private Contractors Payment,1303.80,0.00,COMMERCIAL SUPPLIER 
 01-07-2022,Adults,Ashgate House Ltd_a,Residential Placements - Private Contractors Payment,4765.00,0.00,COMMERCIAL SUPPLIER 
 01-07-2022,Adults,Ashgate House Ltd_a,Residential Placements - Private Contractors Payment,3660.52,0.00,COMMERCIAL SUPPLIER 
 01-07-2022,Adults,Ashgate House Ltd_a,Residential Placements - Private Contractors Payment,746.16,0.00,COMMERCIAL SUPPLIER 
 01-07-2022,Adults,Ashgate House Ltd_a,Residential Placements - Private Contractors Payment,4704.00,0.00,COMMERCIAL SUPPLIER 
 01-07-2022,Adults,Ashgate House Ltd_a,Residential Placements - Private Contractors Payment,808.20,0.00,COMMERCIAL SUPPLIER 
 01-07-2022,Adults,Ashgate House Ltd_a,Residential Placements - Private Contractors Payment,3965.48,0.00,COMMERCIAL SUPPLIER 
 01-07-2022,Adults,Ashgate House Ltd_a,Residential Placements - Private Contractors Payment,4884.12,0.00,COMMERCIAL SUPPLIER 
 01-07-2022,Adults,Ashgate House Ltd_a,Residential Placements - Private Contractors Payment,1932.96,0.00,COMMERCIAL SUPPLIER 
 01-07-2022,Adults,Voyage Ltd - Drakes Place,Residential Placements - Private Contractors Payment,4469.44,0.00,COMMERCIAL SUPPLIER 
 01-07-2022,Adults,Autism Wessex,Residential Placements - Private Contractors Payment,6106.48,0.00,COMMERCIAL SUPPLIER 
 01-07-2022,Adults,Crowstone Care Home Ltd - The Grange,Residential Placements - Private Contractors Payment,2078.44,0.00,COMMERCIAL SUPPLIER 
 01-07-2022,Adults,Acorn Village_a,Residential Placements - Private Contractors Payment,3462.88,0.00,COMMERCIAL SUPPLIER 
 01-07-2022,Adults,Acorn Village_a,Residential Placements - Private Contractors Payment,774.92,0.00,COMMERCIAL SUPPLIER 
 01-07-2022,Adults,Hilton House,Residential Placements - Private Contractors Payment,4284.08,0.00,COMMERCIAL SUPPLIER 
 01-07-2022,Adults,Churchill House_a,Residential Placements - Private Contractors Payment,4214.48,0.00,COMMERCIAL SUPPLIER 
 01-07-2022,Adults,Churchill House_a,Residential Placements - Private Contractors Payment,2960.92,0.00,COMMERCIAL SUPPLIER 
 01-07-2022,Adults,Churchill House_a,Residential Placements - Private Contractors Payment,4052.36,0.00,COMMERCIAL SUPPLIER 
 01-07-2022,Adults,Ashking House Ltd,Residential Placements - Private Contractors Payment,6250.56,0.00,COMMERCIAL SUPPLIER 
 01-07-2022,Adults,Ashking House Ltd,Residential Placements - Private Contractors Payment,4109.76,0.00,COMMERCIAL SUPPLIER 
 01-07-2022,Adults,Ashking House Ltd,Residential Placements - Private Contractors Payment,1616.84,0.00,COMMERCIAL SUPPLIER 
 01-07-2022,Adults,Community Care Mission 2000 Ltd,Residential Placements - Private Contractors Payment,10853.56,0.00,COMMERCIAL SUPPLIER 
 01-07-2022,Adults,Community Care Mission 2000 Ltd,Residential Placements - Private Contractors Payment,9239.96,0.00,COMMERCIAL SUPPLIER 
 01-07-2022,Adults,Genesis Residential Homes Ltd - Dothan House,Residential Placements - Private Contractors Payment,2780.00,0.00,COMMERCIAL SUPPLIER 
 01-07-2022,Adults,Genesis Residential Homes Ltd - Dothan House,Respite Care - Private Contractors Payment,1290.71,0.00,COMMERCIAL SUPPLIER 
 01-07-2022,Adults,Genesis Residential Homes Ltd - Dothan House,Residential Placements - Private Contractors Payment,2780.00,0.00,COMMERCIAL SUPPLIER 
 01-07-2022,Adults,Genesis Residential Homes Ltd - Dothan House,Residential Placements - Private Contractors Payment,2480.00,0.00,COMMERCIAL SUPPLIER 
 01-07-2022,Adults,Genesis Residential Homes Ltd - Dothan House,Residential Placements - Private Contractors Payment,2780.00,0.00,COMMERCIAL SUPPLIER 
 01-07-2022,Adults,Genesis Residential Homes Ltd - Dothan House,Residential Placements - Private Contractors Payment,2780.00,0.00,COMMERCIAL SUPPLIER 
 01-07-2022,Adults,Genesis Residential Homes Ltd - Dothan House,Residential Placements - Private Contractors Payment,2780.00,0.00,COMMERCIAL SUPPLIER 
 01-07-2022,Adults,Genesis Residential Homes Ltd - Dothan House,Residential Placements - Private Contractors Payment,2780.00,0.00,COMMERCIAL SUPPLIER 
 01-07-2022,Adults,Genesis Residential Homes Ltd - Dothan House,Residential Placements - Private Contractors Payment,2780.00,0.00,COMMERCIAL SUPPLIER 
 01-07-2022,Adults,Genesis Residential Homes Ltd - Dothan House,Residential Placements - Private Contractors Payment,2780.00,0.00,COMMERCIAL SUPPLIER 
 01-07-2022,Adults,DMP Healthcare (Cherry Orchard) Ltd,Nursing Homes - Private Contractors Payment,3075.00,0.00,COMMERCIAL SUPPLIER 
 01-07-2022,Adults,DMP Healthcare (Cherry Orchard) Ltd,Nursing Homes - Private Contractors Payment,8568.00,0.00,COMMERCIAL SUPPLIER 
 01-07-2022,Adults,DMP Healthcare (Cherry Orchard) Ltd,Nursing Homes - Private Contractors Payment,3831.04,0.00,COMMERCIAL SUPPLIER 
 01-07-2022,Adults,DMP Healthcare (Cherry Orchard) Ltd,Nursing Homes - Private Contractors Payment,3600.00,0.00,COMMERCIAL SUPPLIER 
 01-07-2022,Adults,DMP Healthcare (Cherry Orchard) Ltd,Nursing Homes - Private Contractors Payment,4473.44,0.00,COMMERCIAL SUPPLIER 
 01-07-2022,Adults,DMP Healthcare (Cherry Orchard) Ltd,Nursing Homes - Private Contractors Payment,3049.28,0.00,COMMERCIAL SUPPLIER 
 01-07-2022,Adults,DMP Healthcare (Cherry Orchard) Ltd,Nursing Homes - Private Contractors Payment,3375.20,0.00,COMMERCIAL SUPPLIER 
 01-07-2022,Adults,DMP Healthcare (Cherry Orchard) Ltd,Nursing Homes - Private Contractors Payment,2715.84,0.00,COMMERCIAL SUPPLIER 
 01-07-2022,Adults,DMP Healthcare (Cherry Orchard) Ltd,Nursing Homes - Private Contractors Payment,3518.96,0.00,COMMERCIAL SUPPLIER 
 01-07-2022,Adults,DMP Healthcare (Cherry Orchard) Ltd,Nursing Homes - Private Contractors Payment,2712.00,0.00,COMMERCIAL SUPPLIER 
 01-07-2022,Adults,DMP Healthcare (Cherry Orchard) Ltd,Residential Placements - Private Contractors Payment,2300.12,0.00,COMMERCIAL SUPPLIER 
 01-07-2022,Adults,Whiteheather Ltd,Residential Placements - Private Contractors Payment,9631.48,0.00,COMMERCIAL SUPPLIER 
 01-07-2022,Adults,Brook Care Home_a,Residential Placements - Private Contractors Payment,3073.60,0.00,COMMERCIAL SUPPLIER 
 01-07-2022,Adults,Castle Care UK Ltd,Nursing Homes - Private Contractors Payment,2823.16,0.00,COMMERCIAL SUPPLIER 
 01-07-2022,Adults,Castle Care UK Ltd,Nursing Homes - Private Contractors Payment,2712.00,0.00,COMMERCIAL SUPPLIER 
 01-07-2022,Adults,Castle Care UK Ltd,Residential Placements - Private Contractors Payment,5712.00,0.00,COMMERCIAL SUPPLIER 
 01-07-2022,Adults,Barleycroft Care Home Ltd,Nursing Homes - Private Contractors Payment,3060.24,0.00,COMMERCIAL SUPPLIER 
 01-07-2022,Adults,Barleycroft Care Home Ltd,Nursing Homes - Private Contractors Payment,2712.00,0.00,COMMERCIAL SUPPLIER 
 01-07-2022,Adults,Barleycroft Care Home Ltd,Residential Placements - Private Contractors Payment,2342.86,0.00,COMMERCIAL SUPPLIER 
 01-07-2022,Adults,Barleycroft Care Home Ltd,Residential Placements - Private Contractors Payment,595.71,0.00,COMMERCIAL SUPPLIER 
 01-07-2022,Adults,Barleycroft Care Home Ltd,Nursing Homes - Private Contractors Payment,2227.71,0.00,COMMERCIAL SUPPLIER 
 01-07-2022,Adults,Barleycroft Care Home Ltd,Nursing Homes - Private Contractors Payment,2712.00,0.00,COMMERCIAL SUPPLIER 
 01-07-2022,Adults,Barleycroft Care Home Ltd,Nursing Homes - Private Contractors Payment,2712.00,0.00,COMMERCIAL SUPPLIER 
 01-07-2022,Adults,Barleycroft Care Home Ltd,Residential Placements - Private Contractors Payment,2780.00,0.00,COMMERCIAL SUPPLIER 
 01-07-2022,Adults,Barleycroft Care Home Ltd,Residential Placements - Private Contractors Payment,2780.00,0.00,COMMERCIAL SUPPLIER 
 01-07-2022,Adults,Barleycroft Care Home Ltd,Residential Placements - Private Contractors Payment,1787.14,0.00,COMMERCIAL SUPPLIER 
 01-07-2022,Adults,Barleycroft Care Home Ltd,Residential Placements - Private Contractors Payment,2780.00,0.00,COMMERCIAL SUPPLIER 
 01-07-2022,Adults,Barleycroft Care Home Ltd,Residential Placements - Private Contractors Payment,2780.00,0.00,COMMERCIAL SUPPLIER 
 01-07-2022,Adults,Barleycroft Care Home Ltd,Nursing Homes - Private Contractors Payment,2712.00,0.00,COMMERCIAL SUPPLIER 
 01-07-2022,Adults,Barleycroft Care Home Ltd,Residential Placements - Private Contractors Payment,2480.00,0.00,COMMERCIAL SUPPLIER 
 01-07-2022,Adults,Barleycroft Care Home Ltd,Respite Care - Private Contractors Payment,695.00,0.00,COMMERCIAL SUPPLIER 
 01-07-2022,Adults,Barleycroft Care Home Ltd,Nursing Homes - Private Contractors Payment,2528.00,0.00,COMMERCIAL SUPPLIER 
 01-07-2022,Adults,Barleycroft Care Home Ltd,Respite Care - Private Contractors Payment,2085.00,0.00,COMMERCIAL SUPPLIER 
 01-07-2022,Adults,Barleycroft Care Home Ltd,Residential Placements - Private Contractors Payment,2780.00,0.00,COMMERCIAL SUPPLIER 
 01-07-2022,Adults,Barleycroft Care Home Ltd,Residential Placements - Private Contractors Payment,797.14,0.00,COMMERCIAL SUPPLIER 
 01-07-2022,Adults,Barleycroft Care Home Ltd,Residential Placements - Private Contractors Payment,3736.00,0.00,COMMERCIAL SUPPLIER 
 01-07-2022,Adults,Barleycroft Care Home Ltd,Nursing Homes - Private Contractors Payment,2712.00,0.00,COMMERCIAL SUPPLIER 
 01-07-2022,Adults,Barleycroft Care Home Ltd,Residential Placements - Private Contractors Payment,2780.00,0.00,COMMERCIAL SUPPLIER 
 01-07-2022,Adults,Barleycroft Care Home Ltd,Residential Placements - Private Contractors Payment,2780.00,0.00,COMMERCIAL SUPPLIER 
 01-07-2022,Adults,Barleycroft Care Home Ltd,Nursing Homes - Private Contractors Payment,2421.43,0.00,COMMERCIAL SUPPLIER 
 01-07-2022,Adults,Barleycroft Care Home Ltd,Residential Placements - Private Contractors Payment,2480.00,0.00,COMMERCIAL SUPPLIER 
 01-07-2022,Adults,Barleycroft Care Home Ltd,Residential Placements - Private Contractors Payment,2780.00,0.00,COMMERCIAL SUPPLIER 
 01-07-2022,Adults,Barleycroft Care Home Ltd,Nursing Homes - Private Contractors Payment,2528.00,0.00,COMMERCIAL SUPPLIER 
 01-07-2022,Adults,Barleycroft Care Home Ltd,Residential Placements - Private Contractors Payment,2780.00,0.00,COMMERCIAL SUPPLIER 
 01-07-2022,Adults,Barleycroft Care Home Ltd,Residential Placements - Private Contractors Payment,2780.00,0.00,COMMERCIAL SUPPLIER 
 01-07-2022,Adults,Barleycroft Care Home Ltd,Residential Placements - Private Contractors Payment,2780.00,0.00,COMMERCIAL SUPPLIER 
 01-07-2022,Adults,Barleycroft Care Home Ltd,Respite Care - Private Contractors Payment,2085.00,0.00,COMMERCIAL SUPPLIER 
 01-07-2022,Adults,Barleycroft Care Home Ltd,Residential Placements - Private Contractors Payment,2780.00,0.00,COMMERCIAL SUPPLIER 
 01-07-2022,Adults,Barleycroft Care Home Ltd,Nursing Homes - Private Contractors Payment,2712.00,0.00,COMMERCIAL SUPPLIER 
 01-07-2022,Adults,Barleycroft Care Home Ltd,Nursing Homes - Private Contractors Payment,3064.29,0.00,COMMERCIAL SUPPLIER 
 01-07-2022,Adults,Barleycroft Care Home Ltd,Nursing Homes - Private Contractors Payment,3900.00,0.00,COMMERCIAL SUPPLIER 
 01-07-2022,Adults,Barleycroft Care Home Ltd,Nursing Homes - Private Contractors Payment,3064.29,0.00,COMMERCIAL SUPPLIER 
 01-07-2022,Adults,Barleycroft Care Home Ltd,Nursing Homes - Private Contractors Payment,3900.00,0.00,COMMERCIAL SUPPLIER 
 01-07-2022,Adults,Barleycroft Care Home Ltd,Nursing Homes - Private Contractors Payment,2367.86,0.00,COMMERCIAL SUPPLIER 
 01-07-2022,Adults,Barleycroft Care Home Ltd,Nursing Homes - Private Contractors Payment,3900.00,0.00,COMMERCIAL SUPPLIER 
 01-07-2022,Adults,Barleycroft Care Home Ltd,Residential Placements - Private Contractors Payment,2624.00,0.00,COMMERCIAL SUPPLIER 
 01-07-2022,Adults,Barleycroft Care Home Ltd,Residential Placements - Private Contractors Payment,2780.00,0.00,COMMERCIAL SUPPLIER 
 01-07-2022,Adults,Barleycroft Care Home Ltd,Residential Placements - Private Contractors Payment,2780.00,0.00,COMMERCIAL SUPPLIER 
 01-07-2022,Adults,Barleycroft Care Home Ltd,Nursing Homes - Private Contractors Payment,2712.00,0.00,COMMERCIAL SUPPLIER 
 01-07-2022,Adults,Barleycroft Care Home Ltd,Nursing Homes - Private Contractors Payment,2712.00,0.00,COMMERCIAL SUPPLIER 
 01-07-2022,Adults,Barleycroft Care Home Ltd,Nursing Homes - Private Contractors Payment,2712.00,0.00,COMMERCIAL SUPPLIER 
 01-07-2022,Adults,Barleycroft Care Home Ltd,Nursing Homes - Private Contractors Payment,2712.00,0.00,COMMERCIAL SUPPLIER 
 01-07-2022,Adults,The Avenues Trust - 73A Neave Crescent,Residential Placements - Private Contractors Payment,6076.56,0.00,COMMERCIAL SUPPLIER 
 01-07-2022,Adults,The Avenues Trust - 73A Neave Crescent,Residential Placements - Private Contractors Payment,6073.96,0.00,COMMERCIAL SUPPLIER 
 01-07-2022,Adults,The Avenues Trust - 73A Neave Crescent,Residential Placements - Private Contractors Payment,6198.08,0.00,COMMERCIAL SUPPLIER 
 01-07-2022,Adults,The Avenues Trust - 73A Neave Crescent,Residential Placements - Private Contractors Payment,5935.76,0.00,COMMERCIAL SUPPLIER 
 01-07-2022,Adults,The Avenues Trust - 73A Neave Crescent,Residential Placements - Private Contractors Payment,5957.44,0.00,COMMERCIAL SUPPLIER 
 01-07-2022,Adults,The Avenues Trust_a,Residential Placements - Private Contractors Payment,6076.56,0.00,COMMERCIAL SUPPLIER 
 01-07-2022,Adults,The Avenues Trust_a,Residential Placements - Private Contractors Payment,6076.56,0.00,COMMERCIAL SUPPLIER 
 01-07-2022,Adults,The Avenues Trust_a,Residential Placements - Private Contractors Payment,6076.56,0.00,COMMERCIAL SUPPLIER 
 01-07-2022,Adults,The Avenues Trust - 13A Repton Drive,Residential Placements - Private Contractors Payment,6226.36,0.00,COMMERCIAL SUPPLIER 
 01-07-2022,Adults,The Avenues Trust - 13A Repton Drive,Residential Placements - Private Contractors Payment,6226.36,0.00,COMMERCIAL SUPPLIER 
 01-07-2022,Adults,The Avenues Trust - 13A Repton Drive,Residential Placements - Private Contractors Payment,6226.36,0.00,COMMERCIAL SUPPLIER 
 01-07-2022,Adults,The Avenues Trust - 13A Repton Drive,Residential Placements - Private Contractors Payment,6226.36,0.00,COMMERCIAL SUPPLIER 
 01-07-2022,Adults,The Avenues Trust - 13A Repton Drive,Residential Placements - Private Contractors Payment,6226.36,0.00,COMMERCIAL SUPPLIER 
 01-07-2022,Adults,The Avenues Trust - 13A Repton Drive,Residential Placements - Private Contractors Payment,6226.36,0.00,COMMERCIAL SUPPLIER 
 01-07-2022,Adults,Consensus Support Services Ltd - Southwold House,Residential Placements - Private Contractors Payment,8396.44,0.00,COMMERCIAL SUPPLIER 
 01-07-2022,Adults,Palm Care Ltd,Residential Placements - Private Contractors Payment,5917.00,0.00,COMMERCIAL SUPPLIER 
 01-07-2022,Adults,The Meath,Residential Placements - Private Contractors Payment,5721.32,0.00,COMMERCIAL SUPPLIER 
 01-07-2022,Adults,The Meath,Residential Placements - Private Contractors Payment,5721.32,0.00,COMMERCIAL SUPPLIER 
 01-07-2022,Adults,Runwood Homes Plc - Woodbury Court,Residential Placements - Private Contractors Payment,2132.00,0.00,COMMERCIAL SUPPLIER 
 01-07-2022,Adults,Runwood Homes Ltd - Kathryn Court,Residential Placements - Private Contractors Payment,2482.14,0.00,COMMERCIAL SUPPLIER 
 01-07-2022,Adults,Oaks Health Ltd,Residential Placements - Private Contractors Payment,8801.56,0.00,COMMERCIAL SUPPLIER 
 01-07-2022,Adults,Clearwater Care (Hackney) Ltd - Searsons Way,Residential Placements - Private Contractors Payment,7098.04,0.00,COMMERCIAL SUPPLIER 
 01-07-2022,Adults,Clearwater Care (Hackney) Ltd - Searsons Way,Residential Placements - Private Contractors Payment,6654.40,0.00,COMMERCIAL SUPPLIER 
 01-07-2022,Adults,Clearwater Care (Hackney) Ltd - Searsons Way,Residential Placements - Private Contractors Payment,12157.08,0.00,COMMERCIAL SUPPLIER 
 01-07-2022,Adults,Outlook Care - 76 Neave Crescent,Supported Other Accommodation - Private Contractors Payment,1562.00,0.00,COMMERCIAL SUPPLIER 
 01-07-2022,Adults,Outlook Care - 76 Neave Crescent,Supported Other Accommodation - Private Contractors Payment,1562.00,0.00,COMMERCIAL SUPPLIER 
 01-07-2022,Adults,Outlook Care - 76 Neave Crescent,Supported Other Accommodation - Private Contractors Payment,1562.00,0.00,COMMERCIAL SUPPLIER 
 01-07-2022,Adults,Outlook Care - 76 Neave Crescent,Supported Other Accommodation - Private Contractors Payment,1562.00,0.00,COMMERCIAL SUPPLIER 
 01-07-2022,Adults,Outlook Care - 76 Neave Crescent,Supported Other Accommodation - Private Contractors Payment,1597.92,0.00,COMMERCIAL SUPPLIER 
 01-07-2022,Adults,Outlook Care - 76 Neave Crescent,Supported Other Accommodation - Private Contractors Payment,1562.00,0.00,COMMERCIAL SUPPLIER 
 01-07-2022,Adults,Outlook Care - 76 Neave Crescent,Supported Other Accommodation - Private Contractors Payment,1562.00,0.00,COMMERCIAL SUPPLIER 
 01-07-2022,Adults,Outlook Care - 76 Neave Crescent,Supported Other Accommodation - Private Contractors Payment,1566.60,0.00,COMMERCIAL SUPPLIER 
 01-07-2022,Adults,Outlook Care - 76 Neave Crescent,Supported Other Accommodation - Private Contractors Payment,1566.60,0.00,COMMERCIAL SUPPLIER 
 01-07-2022,Adults,Outlook Care - 76 Neave Crescent,Supported Other Accommodation - Private Contractors Payment,1597.92,0.00,COMMERCIAL SUPPLIER 
 01-07-2022,Adults,Outlook Care - 76 Neave Crescent,Supported Other Accommodation - Private Contractors Payment,1562.00,0.00,COMMERCIAL SUPPLIER 
 01-07-2022,Adults,Outlook Care - 76 Neave Crescent,Supported Other Accommodation - Private Contractors Payment,1562.00,0.00,COMMERCIAL SUPPLIER 
 01-07-2022,Adults,Outlook Care - 76 Neave Crescent,Supported Other Accommodation - Private Contractors Payment,1597.92,0.00,COMMERCIAL SUPPLIER 
 01-07-2022,Adults,Outlook Care - 76 Neave Crescent,Supported Other Accommodation - Private Contractors Payment,1677.92,0.00,COMMERCIAL SUPPLIER 
 01-07-2022,Adults,Outlook Care - 76 Neave Crescent,Supported Other Accommodation - Private Contractors Payment,796.96,0.00,COMMERCIAL SUPPLIER 
 01-07-2022,Adults,Outlook Care - 76 Neave Crescent,Supported Other Accommodation - Private Contractors Payment,1597.92,0.00,COMMERCIAL SUPPLIER 
 01-07-2022,Adults,Outlook Care - 76 Neave Crescent,Supported Other Accommodation - Private Contractors Payment,1562.00,0.00,COMMERCIAL SUPPLIER 
 01-07-2022,Adults,Outlook Care - 74 Neave Crescent,Residential Placements - Private Contractors Payment,28779.12,0.00,COMMERCIAL SUPPLIER 
 01-07-2022,Adults,Outlook Care - 74 Neave Crescent,Respite Care - Private Contractors Payment,21033.60,0.00,COMMERCIAL SUPPLIER 
 01-07-2022,Adults,The Regard Partnership Ltd_Cherrycroft,Residential Placements - Private Contractors Payment,7624.44,0.00,COMMERCIAL SUPPLIER 
 01-07-2022,Adults,Black Swan International Ltd - Mid Meadows,Residential Placements - Private Contractors Payment,3839.08,0.00,COMMERCIAL SUPPLIER 
 01-07-2022,Adults,Ranc Care Homes Ltd - Brentwood Care Centre,Residential Placements - Private Contractors Payment,2780.00,0.00,COMMERCIAL SUPPLIER 
 01-07-2022,Adults,Ranc Care Homes Ltd - Brentwood Care Centre,Nursing Homes - Private Contractors Payment,4560.84,0.00,COMMERCIAL SUPPLIER 
 01-07-2022,Adults,CAS Learning Disabilities Ltd,Residential Placements - Private Contractors Payment,9404.92,0.00,COMMERCIAL SUPPLIER 
 01-07-2022,Adults,Roselock Ltd_a,Residential Placements - Private Contractors Payment,7235.52,0.00,COMMERCIAL SUPPLIER 
 01-07-2022,Adults,Roselock Ltd_a,Residential Placements - Private Contractors Payment,7235.52,0.00,COMMERCIAL SUPPLIER 
 01-07-2022,Adults,Acer Healthcare Operation Ltd,Nursing Homes - Private Contractors Payment,2516.76,0.00,COMMERCIAL SUPPLIER 
 01-07-2022,Adults,Acer Healthcare Operation Ltd,Nursing Homes - Private Contractors Payment,2681.40,0.00,COMMERCIAL SUPPLIER 
 01-07-2022,Adults,Acer Healthcare Operation Ltd,Nursing Homes - Private Contractors Payment,2636.32,0.00,COMMERCIAL SUPPLIER 
 01-07-2022,Adults,Acer Healthcare Operation Ltd,Nursing Homes - Private Contractors Payment,2636.32,0.00,COMMERCIAL SUPPLIER 
 01-07-2022,Adults,Acer Healthcare Operation Ltd,Nursing Homes - Private Contractors Payment,2627.64,0.00,COMMERCIAL SUPPLIER 
 01-07-2022,Adults,Endsleigh Care Ltd,Residential Placements - Private Contractors Payment,3528.60,0.00,COMMERCIAL SUPPLIER 
 01-07-2022,Adults,Endsleigh Care Ltd,Residential Placements - Private Contractors Payment,1940.84,0.00,COMMERCIAL SUPPLIER 
 01-07-2022,Adults,Endsleigh Care Ltd,Residential Placements - Private Contractors Payment,2911.28,0.00,COMMERCIAL SUPPLIER 
 01-07-2022,Adults,North London Care (Havering) Ltd_a,Residential Placements - Private Contractors Payment,8050.56,0.00,COMMERCIAL SUPPLIER 
 01-07-2022,Adults,North London Care (Havering) Ltd_a,Residential Placements - Private Contractors Payment,9122.72,0.00,COMMERCIAL SUPPLIER 
 01-07-2022,Adults,North London Care (Havering) Ltd_a,Residential Placements - Private Contractors Payment,7759.00,0.00,COMMERCIAL SUPPLIER 
 01-07-2022,Adults,North London Care (Havering) Ltd_a,Residential Placements - Private Contractors Payment,7290.84,0.00,COMMERCIAL SUPPLIER 
 01-07-2022,Adults,Ranc Care Homes Ltd - Romford Care Centre,Residential Placements - Private Contractors Payment,3972.92,0.00,COMMERCIAL SUPPLIER 
 01-07-2022,Adults,Ranc Care Homes Ltd - Romford Care Centre,Nursing Homes - Private Contractors Payment,2712.00,0.00,COMMERCIAL SUPPLIER 
 01-07-2022,Adults,Ranc Care Homes Ltd - Romford Care Centre,Nursing Homes - Private Contractors Payment,5330.00,0.00,COMMERCIAL SUPPLIER 
 01-07-2022,Adults,Ranc Care Homes Ltd - Romford Care Centre,Residential Placements - Private Contractors Payment,2780.00,0.00,COMMERCIAL SUPPLIER 
 01-07-2022,Adults,Ranc Care Homes Ltd - Romford Care Centre,Residential Placements - Private Contractors Payment,4100.00,0.00,COMMERCIAL SUPPLIER 
 01-07-2022,Adults,Ranc Care Homes Ltd - Romford Care Centre,Nursing Homes - Private Contractors Payment,2727.32,0.00,COMMERCIAL SUPPLIER 
 01-07-2022,Adults,Ranc Care Homes Ltd - Romford Care Centre,Nursing Homes - Private Contractors Payment,2712.00,0.00,COMMERCIAL SUPPLIER 
 01-07-2022,Adults,Ranc Care Homes Ltd - Romford Care Centre,Residential Placements - Private Contractors Payment,3981.12,0.00,COMMERCIAL SUPPLIER 
 01-07-2022,Adults,Ranc Care Homes Ltd - Romford Care Centre,Residential Placements - Private Contractors Payment,2780.00,0.00,COMMERCIAL SUPPLIER 
 01-07-2022,Adults,Ranc Care Homes Ltd - Romford Care Centre,Nursing Homes - Private Contractors Payment,4600.20,0.00,COMMERCIAL SUPPLIER 
 01-07-2022,Adults,Ranc Care Homes Ltd - Romford Care Centre,Respite Care - Private Contractors Payment,1250.00,0.00,COMMERCIAL SUPPLIER 
 01-07-2022,Adults,Ranc Care Homes Ltd - Romford Care Centre,Residential Placements - Private Contractors Payment,2780.00,0.00,COMMERCIAL SUPPLIER 
 01-07-2022,Adults,Ranc Care Homes Ltd - Romford Care Centre,Residential Placements - Private Contractors Payment,2780.00,0.00,COMMERCIAL SUPPLIER 
 01-07-2022,Adults,Ranc Care Homes Ltd - Romford Care Centre,Residential Placements - Private Contractors Payment,2780.00,0.00,COMMERCIAL SUPPLIER 
 01-07-2022,Adults,Ranc Care Homes Ltd - Romford Care Centre,Residential Placements - Private Contractors Payment,2780.00,0.00,COMMERCIAL SUPPLIER 
 01-07-2022,Adults,Ranc Care Homes Ltd - Romford Care Centre,Residential Placements - Private Contractors Payment,4960.00,0.00,COMMERCIAL SUPPLIER 
 01-07-2022,Adults,Ranc Care Homes Ltd - Romford Care Centre,Residential Placements - Private Contractors Payment,4800.00,0.00,COMMERCIAL SUPPLIER 
 01-07-2022,Adults,Ranc Care Homes Ltd - Romford Care Centre,Nursing Homes - Private Contractors Payment,2528.00,0.00,COMMERCIAL SUPPLIER 
 01-07-2022,Adults,Ranc Care Homes Ltd - Romford Care Centre,Residential Placements - Private Contractors Payment,3895.00,0.00,COMMERCIAL SUPPLIER 
 01-07-2022,Adults,Affinia Healthcare Ltd_a,Supported Other Accommodation - Private Contractors Payment,1538.48,0.00,COMMERCIAL SUPPLIER 
 01-07-2022,Adults,Affinia Healthcare Ltd_a,Supported Other Accommodation - Private Contractors Payment,4002.60,0.00,COMMERCIAL SUPPLIER 
 01-07-2022,Adults,Affinia Healthcare Ltd_a,Supported Other Accommodation - Private Contractors Payment,5580.36,0.00,COMMERCIAL SUPPLIER 
 01-07-2022,Adults,Affinia Healthcare Ltd_a,Supported Other Accommodation - Private Contractors Payment,2053.68,0.00,COMMERCIAL SUPPLIER 
 01-07-2022,Adults,Affinia Healthcare Ltd_a,Supported Other Accommodation - Private Contractors Payment,4310.40,0.00,COMMERCIAL SUPPLIER 
 01-07-2022,Adults,Affinia Healthcare Ltd_a,Supported Other Accommodation - Private Contractors Payment,1751.12,0.00,COMMERCIAL SUPPLIER 
 01-07-2022,Adults,Affinia Healthcare Ltd_a,Supported Other Accommodation - Private Contractors Payment,1901.04,0.00,COMMERCIAL SUPPLIER 
 01-07-2022,Adults,Affinia Healthcare Ltd_a,Supported Other Accommodation - Private Contractors Payment,1817.80,0.00,COMMERCIAL SUPPLIER 
 01-07-2022,Adults,Affinia Healthcare Ltd_a,Supported Other Accommodation - Private Contractors Payment,3434.64,0.00,COMMERCIAL SUPPLIER 
 01-07-2022,Adults,Affinia Healthcare Ltd_a,Supported Other Accommodation - Private Contractors Payment,1704.20,0.00,COMMERCIAL SUPPLIER 
 01-07-2022,Adults,Affinia Healthcare Ltd_a,Supported Other Accommodation - Private Contractors Payment,2947.36,0.00,COMMERCIAL SUPPLIER 
 01-07-2022,Adults,Affinia Healthcare Ltd_a,Supported Other Accommodation - Private Contractors Payment,543.20,0.00,COMMERCIAL SUPPLIER 
 01-07-2022,Adults,Affinia Healthcare Ltd_a,Supported Other Accommodation - Private Contractors Payment,1751.12,0.00,COMMERCIAL SUPPLIER 
 01-07-2022,Adults,Affinia Healthcare Ltd_a,Supported Other Accommodation - Private Contractors Payment,2223.50,0.00,COMMERCIAL SUPPLIER 
 01-07-2022,Adults,Affinia Healthcare Ltd_a,Supported Other Accommodation - Private Contractors Payment,2490.32,0.00,COMMERCIAL SUPPLIER 
 01-07-2022,Adults,Affinia Healthcare Ltd_a,Supported Other Accommodation - Private Contractors Payment,2722.16,0.00,COMMERCIAL SUPPLIER 
 01-07-2022,Adults,Affinia Healthcare Ltd_a,Supported Other Accommodation - Private Contractors Payment,1731.28,0.00,COMMERCIAL SUPPLIER 
 01-07-2022,Adults,Affinia Healthcare Ltd_a,Supported Other Accommodation - Private Contractors Payment,1751.12,0.00,COMMERCIAL SUPPLIER 
 01-07-2022,Adults,Affinia Healthcare Ltd_a,Supported Other Accommodation - Private Contractors Payment,678.96,0.00,COMMERCIAL SUPPLIER 
 01-07-2022,Adults,Affinia Healthcare Ltd_a,Supported Other Accommodation - Private Contractors Payment,1752.48,0.00,COMMERCIAL SUPPLIER 
 01-07-2022,Adults,Affinia Healthcare Ltd_a,Supported Other Accommodation - Private Contractors Payment,1650.76,0.00,COMMERCIAL SUPPLIER 
 01-07-2022,Adults,Affinia Healthcare Ltd_a,Supported Other Accommodation - Private Contractors Payment,2689.92,0.00,COMMERCIAL SUPPLIER 
 01-07-2022,Adults,Affinia Healthcare Ltd_a,Supported Other Accommodation - Private Contractors Payment,2819.32,0.00,COMMERCIAL SUPPLIER 
 01-07-2022,Adults,Affinia Healthcare Ltd_a,Supported Other Accommodation - Private Contractors Payment,3085.64,0.00,COMMERCIAL SUPPLIER 
 01-07-2022,Adults,Satash Community Care Project Ltd,Residential Placements - Private Contractors Payment,6343.84,0.00,COMMERCIAL SUPPLIER 
 01-07-2022,Adults,Runwood Homes - Windle Court,Residential Placements - Private Contractors Payment,2634.24,0.00,COMMERCIAL SUPPLIER 
 01-07-2022,Adults,Runwood Homes - Windle Court,Residential Placements - Private Contractors Payment,2634.24,0.00,COMMERCIAL SUPPLIER 
 01-07-2022,Adults,Runwood Homes - Windle Court,Residential Placements - Private Contractors Payment,2634.24,0.00,COMMERCIAL SUPPLIER 
 01-07-2022,Adults,Runwood Homes - Windle Court,Residential Placements - Private Contractors Payment,2634.24,0.00,COMMERCIAL SUPPLIER 
 01-07-2022,Adults,Two Trees Caring Home,Residential Placements - Private Contractors Payment,2884.72,0.00,COMMERCIAL SUPPLIER 
 01-07-2022,Adults,Leonard Cheshire Disability_a.,Residential Placements - Private Contractors Payment,561.88,0.00,COMMERCIAL SUPPLIER 
 01-07-2022,Adults,Leonard Cheshire Disability_a.,Residential Placements - Private Contractors Payment,4329.08,0.00,COMMERCIAL SUPPLIER 
 01-07-2022,Adults,Care Management Group Ltd - Meesons Lodge,Residential Placements - Private Contractors Payment,7070.40,0.00,COMMERCIAL SUPPLIER 
 01-07-2022,Adults,Care Management Group Ltd - Meesons Lodge,Residential Placements - Private Contractors Payment,6654.40,0.00,COMMERCIAL SUPPLIER 
 01-07-2022,Adults,Acorn Lodge Care Home,Residential Placements - Private Contractors Payment,4348.04,0.00,NON COMMERCIAL SUPPLIER 
 01-07-2022,Adults,Lily Close-Partnerships in Care,Residential Placements - Private Contractors Payment,5970.08,0.00,COMMERCIAL SUPPLIER 
 01-07-2022,Adults,Livingspring Group Ltd t/a Kadmiel Projects_a,Supported Other Accommodation - Private Contractors Payment,3001.60,0.00,COMMERCIAL SUPPLIER 
 01-07-2022,Adults,Livingspring Group Ltd t/a Kadmiel Projects_a,Supported Other Accommodation - Private Contractors Payment,5133.60,0.00,COMMERCIAL SUPPLIER 
 01-07-2022,Adults,Livingspring Group Ltd t/a Kadmiel Projects_a,Supported Other Accommodation - Private Contractors Payment,3700.36,0.00,COMMERCIAL SUPPLIER 
 01-07-2022,Adults,St Andrews Lodge,Nursing Homes - Private Contractors Payment,2883.56,0.00,COMMERCIAL SUPPLIER 
 01-07-2022,Adults,Ashchurch House,Residential Placements - Private Contractors Payment,4661.92,0.00,COMMERCIAL SUPPLIER 
 01-07-2022,Adults,Sunnyside Home Care,Residential Placements - Private Contractors Payment,5625.16,0.00,COMMERCIAL SUPPLIER 
 01-07-2022,Adults,Sunnyside Home Care,Residential Placements - Private Contractors Payment,5776.00,0.00,COMMERCIAL SUPPLIER 
 01-07-2022,Adults,Sunnyside Home Care,Residential Placements - Private Contractors Payment,6618.88,0.00,COMMERCIAL SUPPLIER 
 01-07-2022,Adults,Meadowbanks,Residential Placements - Private Contractors Payment,5600.00,0.00,COMMERCIAL SUPPLIER 
 01-07-2022,Adults,Meadowbanks,Residential Placements - Private Contractors Payment,800.00,0.00,COMMERCIAL SUPPLIER 
 01-07-2022,Adults,Meadowbanks,Residential Placements - Private Contractors Payment,4391.12,0.00,COMMERCIAL SUPPLIER 
 01-07-2022,Adults,Meadowbanks,Residential Placements - Private Contractors Payment,4391.12,0.00,COMMERCIAL SUPPLIER 
 01-07-2022,Adults,Honeywood,Supported Other Accommodation - Private Contractors Payment,6928.00,0.00,COMMERCIAL SUPPLIER 
 01-07-2022,Adults,Florijn Care Ltd,Residential Placements - Private Contractors Payment,10015.72,0.00,COMMERCIAL SUPPLIER 
 01-07-2022,Adults,Larkfield Hall Ltd_a,Residential Placements - Private Contractors Payment,6895.20,0.00,COMMERCIAL SUPPLIER 
 01-07-2022,Adults,The Avenues Trust Support Services Glebe House,Nursing Homes - Private Contractors Payment,2788.16,0.00,COMMERCIAL SUPPLIER 
 01-07-2022,Adults,The Avenues Trust Support Services Glebe House,Nursing Homes - Private Contractors Payment,4220.04,0.00,COMMERCIAL SUPPLIER 
 01-07-2022,Adults,The Avenues Trust Support Services Glebe House,Nursing Homes - Private Contractors Payment,5635.96,0.00,COMMERCIAL SUPPLIER 
 01-07-2022,Adults,The Avenues Trust Support Services Glebe House,Nursing Homes - Private Contractors Payment,3693.68,0.00,COMMERCIAL SUPPLIER 
 01-07-2022,Adults,The Avenues Trust Support Services Glebe House,Nursing Homes - Private Contractors Payment,4137.32,0.00,COMMERCIAL SUPPLIER 
 01-07-2022,Adults,The Avenues Trust Support Services Glebe House,Nursing Homes - Private Contractors Payment,4392.00,0.00,COMMERCIAL SUPPLIER 
 01-07-2022,Adults,L & Q Living (SWIFT Payments),Supported Other Accommodation - Private Contractors Payment,1318.72,0.00,COMMERCIAL SUPPLIER 
 01-07-2022,Adults,Brenalwood Care Home,Residential Placements - Private Contractors Payment,2644.72,0.00,COMMERCIAL SUPPLIER 
 01-07-2022,Adults,Feore Support Ltd,Supported Other Accommodation - Private Contractors Payment,5893.80,0.00,COMMERCIAL SUPPLIER 
 01-07-2022,Adults,Feore Support Ltd,Supported Other Accommodation - Private Contractors Payment,9225.24,0.00,COMMERCIAL SUPPLIER 
 01-07-2022,Adults,Feore Support Ltd,Supported Other Accommodation - Private Contractors Payment,5153.44,0.00,COMMERCIAL SUPPLIER 
 01-07-2022,Adults,CIC Central Support Services,Supported Other Accommodation - Private Contractors Payment,5875.76,0.00,COMMERCIAL SUPPLIER 
 01-07-2022,Adults,Bishops Croft - Craegmoor FCL New Directions,Residential Placements - Private Contractors Payment,6149.36,0.00,COMMERCIAL SUPPLIER 
 01-07-2022,Adults,The Cedars,Supported Other Accommodation - Private Contractors Payment,3862.80,0.00,COMMERCIAL SUPPLIER 
 01-07-2022,Adults,The Cedars,Supported Other Accommodation - Private Contractors Payment,3908.28,0.00,COMMERCIAL SUPPLIER 
 01-07-2022,Adults,The Cedars,Supported Other Accommodation - Private Contractors Payment,4269.16,0.00,COMMERCIAL SUPPLIER 
 01-07-2022,Adults,The Cedars,Supported Other Accommodation - Private Contractors Payment,3908.28,0.00,COMMERCIAL SUPPLIER 
 01-07-2022,Adults,The Cedars,Supported Other Accommodation - Private Contractors Payment,3862.80,0.00,COMMERCIAL SUPPLIER 
 01-07-2022,Adults,The Cedars,Supported Other Accommodation - Private Contractors Payment,3908.28,0.00,COMMERCIAL SUPPLIER 
 01-07-2022,Adults,The Cedars,Supported Other Accommodation - Private Contractors Payment,3908.28,0.00,COMMERCIAL SUPPLIER 
 01-07-2022,Adults,The Cedars,Supported Other Accommodation - Private Contractors Payment,3718.52,0.00,COMMERCIAL SUPPLIER 
 01-07-2022,Adults,The Cedars,Supported Other Accommodation - Private Contractors Payment,3908.28,0.00,COMMERCIAL SUPPLIER 
 01-07-2022,Adults,The Cedars,Supported Other Accommodation - Private Contractors Payment,3908.28,0.00,COMMERCIAL SUPPLIER 
 01-07-2022,Adults,The Cedars,Supported Other Accommodation - Private Contractors Payment,3862.80,0.00,COMMERCIAL SUPPLIER 
 01-07-2022,Adults,The Cedars,Supported Other Accommodation - Private Contractors Payment,1479.24,0.00,COMMERCIAL SUPPLIER 
 01-07-2022,Adults,The Cedars,Supported Other Accommodation - Private Contractors Payment,2884.16,0.00,COMMERCIAL SUPPLIER 
 01-07-2022,Adults,The Cedars,Supported Other Accommodation - Private Contractors Payment,1531.00,0.00,COMMERCIAL SUPPLIER 
 01-07-2022,Adults,Faris Lodge,Supported Other Accommodation - Private Contractors Payment,2267.72,0.00,COMMERCIAL SUPPLIER 
 01-07-2022,Adults,Clearwater Care (Hackney) Ltd - Craigdale,Supported Other Accommodation - Private Contractors Payment,3999.12,0.00,COMMERCIAL SUPPLIER 
 01-07-2022,Adults,Clearwater Care (Hackney) Ltd - Craigdale,Supported Other Accommodation - Private Contractors Payment,2425.52,0.00,COMMERCIAL SUPPLIER 
 01-07-2022,Adults,Clearwater Care (Hackney) Ltd - Craigdale,Supported Other Accommodation - Private Contractors Payment,2413.04,0.00,COMMERCIAL SUPPLIER 
 01-07-2022,Adults,Care Management Group Ltd - The Ridgeway,Supported Other Accommodation - Private Contractors Payment,6962.12,0.00,COMMERCIAL SUPPLIER 
 01-07-2022,Adults,Care Management Group Ltd - The Ridgeway,Supported Other Accommodation - Private Contractors Payment,1047.76,0.00,COMMERCIAL SUPPLIER 
 01-07-2022,Adults,Care Management Group Ltd - The Ridgeway,Supported Other Accommodation - Private Contractors Payment,7725.60,0.00,COMMERCIAL SUPPLIER 
 01-07-2022,Adults,Care Management Group Ltd - The Ridgeway,Supported Other Accommodation - Private Contractors Payment,6362.24,0.00,COMMERCIAL SUPPLIER 
 01-07-2022,Adults,Care Management Group Ltd - The Ridgeway,Supported Other Accommodation - Private Contractors Payment,6948.52,0.00,COMMERCIAL SUPPLIER 
 01-07-2022,Adults,Overzest Community Services,Supported Other Accommodation - Private Contractors Payment,4998.92,0.00,COMMERCIAL SUPPLIER 
 01-07-2022,Adults,Overzest Community Services,Supported Other Accommodation - Private Contractors Payment,16370.60,0.00,COMMERCIAL SUPPLIER 
 01-07-2022,Adults,Footsteps Support Ltd_a,Supported Other Accommodation - Private Contractors Payment,1176.00,0.00,COMMERCIAL SUPPLIER 
 01-07-2022,Adults,Footsteps Support Ltd_a,Supported Other Accommodation - Private Contractors Payment,5783.40,0.00,COMMERCIAL SUPPLIER 
 01-07-2022,Adults,Footsteps Support Ltd_a,Supported Other Accommodation - Private Contractors Payment,2719.52,0.00,COMMERCIAL SUPPLIER 
 01-07-2022,Adults,Lotus Lodge,Residential Placements - Private Contractors Payment,9152.04,0.00,COMMERCIAL SUPPLIER 
 01-07-2022,Adults,Consensus Support Services Ltd - Kingston House,Residential Placements - Private Contractors Payment,6720.92,0.00,COMMERCIAL SUPPLIER 
 01-07-2022,Adults,Bluebell & Hawthorn,Residential Placements - Private Contractors Payment,5438.68,0.00,COMMERCIAL SUPPLIER 
 01-07-2022,Adults,Bluebell & Hawthorn,Residential Placements - Private Contractors Payment,5332.04,0.00,COMMERCIAL SUPPLIER 
 01-07-2022,Adults,Bluebell & Hawthorn,Nursing Homes - Private Contractors Payment,4954.56,0.00,COMMERCIAL SUPPLIER 
 01-07-2022,Adults,Bluebell & Hawthorn,Nursing Homes - Private Contractors Payment,5227.52,0.00,COMMERCIAL SUPPLIER 
 01-07-2022,Adults,St Georges Supported Living Ltd,Supported Other Accommodation - Private Contractors Payment,3213.00,0.00,COMMERCIAL SUPPLIER 
 01-07-2022,Adults,St Georges Supported Living Ltd,Supported Other Accommodation - Private Contractors Payment,2640.32,0.00,COMMERCIAL SUPPLIER 
 01-07-2022,Adults,St Georges Supported Living Ltd,Supported Other Accommodation - Private Contractors Payment,2681.24,0.00,COMMERCIAL SUPPLIER 
 01-07-2022,Adults,Axcelence Limited,Supported Other Accommodation - Private Contractors Payment,5797.08,0.00,COMMERCIAL SUPPLIER 
 01-07-2022,Adults,Axcelence Limited,Supported Other Accommodation - Private Contractors Payment,3917.04,0.00,COMMERCIAL SUPPLIER 
 01-07-2022,Adults,Axcelence Limited,Supported Other Accommodation - Private Contractors Payment,5717.32,0.00,COMMERCIAL SUPPLIER 
 01-07-2022,Adults,Newnton House Residential Care Home,Residential Placements - Private Contractors Payment,3504.64,0.00,COMMERCIAL SUPPLIER 
 01-07-2022,Adults,Autism Anglia_a,Supported Other Accommodation - Private Contractors Payment,5571.88,0.00,COMMERCIAL SUPPLIER 
 01-07-2022,Adults,Livability - John Grooms Court,Residential Placements - Private Contractors Payment,2311.28,0.00,COMMERCIAL SUPPLIER 
 01-07-2022,Adults,Livability - John Grooms Court,Residential Placements - Private Contractors Payment,2311.28,0.00,COMMERCIAL SUPPLIER 
 01-07-2022,Adults,Maple Health UK Limited - Maple Manor,Residential Placements - Private Contractors Payment,7319.84,0.00,COMMERCIAL SUPPLIER 
 01-07-2022,Adults,Voyage 1 Ltd - Quite Waters,Residential Placements - Private Contractors Payment,6108.72,0.00,COMMERCIAL SUPPLIER 
 01-07-2022,Adults,Chosen Care Group Ltd,Supported Other Accommodation - Private Contractors Payment,8876.44,0.00,COMMERCIAL SUPPLIER 
 01-07-2022,Adults,Chosen Care Group Ltd,Supported Other Accommodation - Private Contractors Payment,891.60,0.00,COMMERCIAL SUPPLIER 
 01-07-2022,Adults,Chosen Care Group Ltd,Supported Other Accommodation - Private Contractors Payment,11724.72,0.00,COMMERCIAL SUPPLIER 
 01-07-2022,Adults,Chosen Care Group Ltd,Supported Other Accommodation - Private Contractors Payment,772.60,0.00,COMMERCIAL SUPPLIER 
 01-07-2022,Adults,Chosen Care Group Ltd,Supported Other Accommodation - Private Contractors Payment,10952.16,0.00,COMMERCIAL SUPPLIER 
 01-07-2022,Adults,Chosen Care Group Ltd,Supported Other Accommodation - Private Contractors Payment,9986.00,0.00,COMMERCIAL SUPPLIER 
 01-07-2022,Adults,Willows Care Home - Churchgate Healthcare (Willows) Ltd,Residential Placements - Private Contractors Payment,5330.00,0.00,COMMERCIAL SUPPLIER 
 01-07-2022,Adults,Willows Care Home - Churchgate Healthcare (Willows) Ltd,Nursing Homes - Private Contractors Payment,3829.40,0.00,COMMERCIAL SUPPLIER 
 01-07-2022,Adults,Willows Care Home - Churchgate Healthcare (Willows) Ltd,Nursing Homes - Private Contractors Payment,3060.24,0.00,COMMERCIAL SUPPLIER 
 01-07-2022,Adults,Willows Care Home - Churchgate Healthcare (Willows) Ltd,Nursing Homes - Private Contractors Payment,3900.00,0.00,COMMERCIAL SUPPLIER 
 01-07-2022,Adults,Willows Care Home - Churchgate Healthcare (Willows) Ltd,Nursing Homes - Private Contractors Payment,3330.84,0.00,COMMERCIAL SUPPLIER 
 01-07-2022,Adults,Willows Care Home - Churchgate Healthcare (Willows) Ltd,Residential Placements - Private Contractors Payment,4100.00,0.00,COMMERCIAL SUPPLIER 
 01-07-2022,Adults,Willows Care Home - Churchgate Healthcare (Willows) Ltd,Nursing Homes - Private Contractors Payment,2712.00,0.00,COMMERCIAL SUPPLIER 
 01-07-2022,Adults,Willows Care Home - Churchgate Healthcare (Willows) Ltd,Nursing Homes - Private Contractors Payment,4165.92,0.00,COMMERCIAL SUPPLIER 
 01-07-2022,Adults,Willows Care Home - Churchgate Healthcare (Willows) Ltd,Nursing Homes - Private Contractors Payment,3740.84,0.00,COMMERCIAL SUPPLIER 
 01-07-2022,Adults,Ebony Health Care Services Limited,Supported Other Accommodation - Private Contractors Payment,2417.68,0.00,COMMERCIAL SUPPLIER 
 01-07-2022,Adults,Paradise Independent Living,Supported Other Accommodation - Private Contractors Payment,4347.84,0.00,NON COMMERCIAL SUPPLIER 
 01-07-2022,Adults,Paradise Independent Living,Supported Other Accommodation - Private Contractors Payment,546.24,0.00,NON COMMERCIAL SUPPLIER 
 01-07-2022,Adults,Inclusive Care Support Limited,Supported Other Accommodation - Private Contractors Payment,8236.84,0.00,COMMERCIAL SUPPLIER 
 01-07-2022,Adults,Inclusive Care Support Limited,Supported Other Accommodation - Private Contractors Payment,4635.36,0.00,COMMERCIAL SUPPLIER 
 01-07-2022,Adults,Inclusive Care Support Limited,Supported Other Accommodation - Private Contractors Payment,3491.48,0.00,COMMERCIAL SUPPLIER 
 01-07-2022,Adults,Florijn Care Ltd,Supported Other Accommodation - Private Contractors Payment,5810.32,0.00,COMMERCIAL SUPPLIER 
 01-07-2022,Adults,BeTo Solutions Ltd - Jolly House Julia Lamb,Supported Other Accommodation - Private Contractors Payment,6191.48,0.00,COMMERCIAL SUPPLIER 
 01-07-2022,Adults,BeTo Solutions Ltd - Jolly House Julia Lamb,Supported Other Accommodation - Private Contractors Payment,6055.80,0.00,COMMERCIAL SUPPLIER 
 01-07-2022,Adults,BeTo Solutions Ltd - Jolly House Julia Lamb,Supported Other Accommodation - Private Contractors Payment,6743.84,0.00,COMMERCIAL SUPPLIER 
 01-07-2022,Adults,BeTo Solutions Ltd - Jolly House Julia Lamb,Supported Other Accommodation - Private Contractors Payment,7230.36,0.00,COMMERCIAL SUPPLIER 
 01-07-2022,Adults,Black Swan International Ltd - Drummonds,Residential Placements - Private Contractors Payment,2468.80,0.00,COMMERCIAL SUPPLIER 
 01-07-2022,Adults,Black Swan International Ltd - Drummonds,Residential Placements - Private Contractors Payment,2468.80,0.00,COMMERCIAL SUPPLIER 
 01-07-2022,Adults,Black Swan International Ltd - Drummonds,Residential Placements - Private Contractors Payment,4261.08,0.00,COMMERCIAL SUPPLIER 
 01-07-2022,Adults,Black Swan International Ltd - Drummonds,Residential Placements - Private Contractors Payment,2044.00,0.00,COMMERCIAL SUPPLIER 
 01-07-2022,Adults,Black Swan International Ltd - Drummonds,Residential Placements - Private Contractors Payment,4261.08,0.00,COMMERCIAL SUPPLIER 
 01-07-2022,Adults,TLC Care Homes Ltd - Point Clear,Residential Placements - Private Contractors Payment,7630.40,0.00,COMMERCIAL SUPPLIER 
 01-07-2022,Adults,Shalom Community Support Services,Supported Other Accommodation - Private Contractors Payment,3024.00,0.00,COMMERCIAL SUPPLIER 
 01-07-2022,Adults,Shalom Community Support Services,Supported Other Accommodation - Private Contractors Payment,5333.60,0.00,COMMERCIAL SUPPLIER 
 01-07-2022,Adults,Shalom Community Support Services,Supported Other Accommodation - Private Contractors Payment,6019.04,0.00,COMMERCIAL SUPPLIER 
 01-07-2022,Adults,Independant Community Support Ltd T/A Heaton Lodge,Supported Other Accommodation - Private Contractors Payment,3862.80,0.00,COMMERCIAL SUPPLIER 
 01-07-2022,Adults,Bethany House Care Home,Nursing Homes - Private Contractors Payment,4172.40,0.00,COMMERCIAL SUPPLIER 
 01-07-2022,Adults,St Mary's House,Residential Placements - Private Contractors Payment,2427.28,0.00,COMMERCIAL SUPPLIER 
 01-07-2022,Adults,Bettertogether Limited,Supported Other Accommodation - Private Contractors Payment,1440.00,0.00,NON COMMERCIAL SUPPLIER 
 01-07-2022,Adults,Bettertogether Limited,Supported Other Accommodation - Private Contractors Payment,1832.00,0.00,NON COMMERCIAL SUPPLIER 
 01-07-2022,Adults,Bettertogether Limited,Supported Other Accommodation - Private Contractors Payment,1832.00,0.00,NON COMMERCIAL SUPPLIER 
 01-07-2022,Adults,Bettertogether Limited,Supported Other Accommodation - Private Contractors Payment,2056.00,0.00,NON COMMERCIAL SUPPLIER 
 01-07-2022,Adults,Bettertogether Limited,Supported Other Accommodation - Private Contractors Payment,2056.00,0.00,NON COMMERCIAL SUPPLIER 
 01-07-2022,Adults,Bettertogether Limited,Supported Other Accommodation - Private Contractors Payment,1612.00,0.00,NON COMMERCIAL SUPPLIER 
 01-07-2022,Adults,Bettertogether Limited,Supported Other Accommodation - Private Contractors Payment,1832.00,0.00,NON COMMERCIAL SUPPLIER 
 01-07-2022,Adults,Bettertogether Limited,Supported Other Accommodation - Private Contractors Payment,1776.00,0.00,NON COMMERCIAL SUPPLIER 
 01-07-2022,Adults,Bettertogether Limited,Supported Other Accommodation - Private Contractors Payment,2236.00,0.00,NON COMMERCIAL SUPPLIER 
 01-07-2022,Adults,Bettertogether Limited,Supported Other Accommodation - Private Contractors Payment,1832.00,0.00,NON COMMERCIAL SUPPLIER 
 01-07-2022,Adults,Bettertogether Limited,Supported Other Accommodation - Private Contractors Payment,1832.00,0.00,NON COMMERCIAL SUPPLIER 
 01-07-2022,Adults,Bettertogether Limited,Supported Other Accommodation - Private Contractors Payment,3248.00,0.00,NON COMMERCIAL SUPPLIER 
 01-07-2022,Adults,Bettertogether Limited,Supported Other Accommodation - Private Contractors Payment,1612.00,0.00,NON COMMERCIAL SUPPLIER 
 01-07-2022,Adults,Bettertogether Limited,Supported Other Accommodation - Private Contractors Payment,1832.00,0.00,NON COMMERCIAL SUPPLIER 
 01-07-2022,Adults,Bettertogether Limited,Supported Other Accommodation - Private Contractors Payment,1832.00,0.00,NON COMMERCIAL SUPPLIER 
 01-07-2022,Adults,Bettertogether Limited,Supported Other Accommodation - Private Contractors Payment,2056.00,0.00,NON COMMERCIAL SUPPLIER 
 01-07-2022,Adults,Manor Lodge Care Home,Residential Placements - Private Contractors Payment,7200.00,0.00,COMMERCIAL SUPPLIER 
 01-07-2022,Adults,Manor Lodge Care Home,Residential Placements - Private Contractors Payment,2527.56,0.00,COMMERCIAL SUPPLIER 
 01-07-2022,Adults,Manor Lodge Care Home,Residential Placements - Private Contractors Payment,2780.00,0.00,COMMERCIAL SUPPLIER 
 01-07-2022,Adults,Manor Lodge Care Home,Residential Placements - Private Contractors Payment,8400.00,0.00,COMMERCIAL SUPPLIER 
 01-07-2022,Adults,IECC Care,Supported Other Accommodation - Private Contractors Payment,964.32,0.00,COMMERCIAL SUPPLIER 
 01-07-2022,Adults,IECC Care,Supported Other Accommodation - Private Contractors Payment,9402.12,0.00,COMMERCIAL SUPPLIER 
 01-07-2022,Adults,North Court Care Home,Residential Placements - Private Contractors Payment,2576.56,0.00,COMMERCIAL SUPPLIER 
 01-07-2022,Adults,Care By Us,Supported Other Accommodation - Private Contractors Payment,6947.36,0.00,NON COMMERCIAL SUPPLIER 
 01-07-2022,Adults,Axcelence Limited,Supported Other Accommodation - Private Contractors Payment,7574.44,0.00,COMMERCIAL SUPPLIER 
 01-07-2022,Adults,Axcelence Limited,Supported Other Accommodation - Private Contractors Payment,5312.20,0.00,COMMERCIAL SUPPLIER 
 01-07-2022,Adults,Axcelence Limited,Supported Other Accommodation - Private Contractors Payment,5951.36,0.00,COMMERCIAL SUPPLIER 
 01-07-2022,Adults,Axcelence Limited,Supported Other Accommodation - Private Contractors Payment,6063.40,0.00,COMMERCIAL SUPPLIER 
 01-07-2022,Adults,Faircross 102,Residential Placements - Private Contractors Payment,5260.48,0.00,NON COMMERCIAL SUPPLIER 
 01-07-2022,Adults,Sanctuary Home Care Ltd - Shaftesbury Court,Supported Other Accommodation - Private Contractors Payment,6582.32,0.00,COMMERCIAL SUPPLIER 
 01-07-2022,Adults,Lodge Group Care UK Ltd,Supported Other Accommodation - Private Contractors Payment,2923.84,0.00,COMMERCIAL SUPPLIER 
 01-07-2022,Adults,Lodge Group Care UK Ltd,Supported Other Accommodation - Private Contractors Payment,5397.84,0.00,COMMERCIAL SUPPLIER 
 01-07-2022,Adults,Axcelence Limited,Supported Other Accommodation - Private Contractors Payment,5907.80,0.00,COMMERCIAL SUPPLIER 
 01-07-2022,Adults,Axcelence Limited,Supported Other Accommodation - Private Contractors Payment,7486.76,0.00,COMMERCIAL SUPPLIER 
 01-07-2022,Adults,Axcelence Limited,Supported Other Accommodation - Private Contractors Payment,5526.08,0.00,COMMERCIAL SUPPLIER 
 01-07-2022,Adults,Axcelence Limited,Supported Other Accommodation - Private Contractors Payment,5351.80,0.00,COMMERCIAL SUPPLIER 
 01-07-2022,Adults,Independence Homes Ltd,Supported Other Accommodation - Private Contractors Payment,6156.00,0.00,COMMERCIAL SUPPLIER 
 01-07-2022,Adults,Independence Homes Ltd,Supported Other Accommodation - Private Contractors Payment,25114.32,0.00,COMMERCIAL SUPPLIER 
 01-07-2022,Adults,Richardson Partnership for Care,Residential Placements - Private Contractors Payment,4997.44,0.00,COMMERCIAL SUPPLIER 
 01-07-2022,Adults,Voyage Care Ltd - Wey House,Nursing Homes - Private Contractors Payment,4285.96,0.00,COMMERCIAL SUPPLIER 
 01-07-2022,Adults,Kadmiel Projects Ltd,Supported Other Accommodation - Private Contractors Payment,2342.08,0.00,COMMERCIAL SUPPLIER 
 01-07-2022,Adults,Kadmiel Projects Ltd,Supported Other Accommodation - Private Contractors Payment,1803.36,0.00,COMMERCIAL SUPPLIER 
 01-07-2022,Adults,Kadmiel Projects Ltd,Supported Other Accommodation - Private Contractors Payment,2342.08,0.00,COMMERCIAL SUPPLIER 
 01-07-2022,Adults,Kadmiel Projects Ltd,Supported Other Accommodation - Private Contractors Payment,1803.36,0.00,COMMERCIAL SUPPLIER 
 01-07-2022,Adults,Kadmiel Projects Ltd,Supported Other Accommodation - Private Contractors Payment,2342.08,0.00,COMMERCIAL SUPPLIER 
 01-07-2022,Adults,Kadmiel Projects Ltd,Supported Other Accommodation - Private Contractors Payment,4775.48,0.00,COMMERCIAL SUPPLIER 
 01-07-2022,Adults,Kadmiel Projects Ltd,Supported Other Accommodation - Private Contractors Payment,1803.36,0.00,COMMERCIAL SUPPLIER 
 01-07-2022,Adults,Kadmiel Projects Ltd,Supported Other Accommodation - Private Contractors Payment,2342.08,0.00,COMMERCIAL SUPPLIER 
 01-07-2022,Adults,Kadmiel Projects Ltd,Supported Other Accommodation - Private Contractors Payment,1803.36,0.00,COMMERCIAL SUPPLIER 
 01-07-2022,Adults,Kadmiel Projects Ltd,Supported Other Accommodation - Private Contractors Payment,2425.73,0.00,COMMERCIAL SUPPLIER 
 01-07-2022,Adults,Kadmiel Projects Ltd,Supported Other Accommodation - Private Contractors Payment,1867.77,0.00,COMMERCIAL SUPPLIER 
 01-07-2022,Adults,Kadmiel Projects Ltd,Supported Other Accommodation - Private Contractors Payment,2342.08,0.00,COMMERCIAL SUPPLIER 
 01-07-2022,Adults,Kadmiel Projects Ltd,Supported Other Accommodation - Private Contractors Payment,1803.36,0.00,COMMERCIAL SUPPLIER 
 01-07-2022,Adults,Kadmiel Projects Ltd,Supported Other Accommodation - Private Contractors Payment,2342.08,0.00,COMMERCIAL SUPPLIER 
 01-07-2022,Adults,Kadmiel Projects Ltd,Supported Other Accommodation - Private Contractors Payment,1803.36,0.00,COMMERCIAL SUPPLIER 
 01-07-2022,Adults,Topaz Care and Support Co Ltd,Supported Other Accommodation - Private Contractors Payment,4998.92,0.00,COMMERCIAL SUPPLIER 
 01-07-2022,Adults,Topaz Care and Support Co Ltd,Supported Other Accommodation - Private Contractors Payment,854.20,0.00,COMMERCIAL SUPPLIER 
 01-07-2022,Adults,Topaz Care and Support Co Ltd,Supported Other Accommodation - Private Contractors Payment,514.08,0.00,COMMERCIAL SUPPLIER 
 01-07-2022,Adults,Look Ahead Housing Care Support and Housing,Supported Other Accommodation - Private Contractors Payment,2903.92,0.00,COMMERCIAL SUPPLIER 
 01-07-2022,Adults,Park Riding,Residential Placements - Private Contractors Payment,2295.12,0.00,COMMERCIAL SUPPLIER 
 01-07-2022,Adults,Focus Care Agency Ltd,Supported Other Accommodation - Private Contractors Payment,8094.76,0.00,COMMERCIAL SUPPLIER 
 01-07-2022,Adults,Zero Three Care Homes LLP_a,Residential Placements - Private Contractors Payment,12303.00,0.00,COMMERCIAL SUPPLIER 
 01-07-2022,Adults,Axcelence Limited,Supported Other Accommodation - Private Contractors Payment,5804.88,0.00,COMMERCIAL SUPPLIER 
 01-07-2022,Adults,Axcelence Limited,Supported Other Accommodation - Private Contractors Payment,5386.68,0.00,COMMERCIAL SUPPLIER 
 01-07-2022,Adults,Axcelence Limited,Supported Other Accommodation - Private Contractors Payment,5507.08,0.00,COMMERCIAL SUPPLIER 
 01-07-2022,Adults,Kadmiel Projects Ltd,Supported Other Accommodation - Private Contractors Payment,13076.28,0.00,COMMERCIAL SUPPLIER 
 01-07-2022,Adults,Tealk Services Ltd,Residential Placements - Private Contractors Payment,3199.24,0.00,NON COMMERCIAL SUPPLIER 
 01-07-2022,Adults,Supported Care and Accommodation Ltd,Supported Other Accommodation - Private Contractors Payment,6789.56,0.00,COMMERCIAL SUPPLIER 
 01-07-2022,Adults,Supported Care and Accommodation Ltd,Supported Other Accommodation - Private Contractors Payment,4063.80,0.00,COMMERCIAL SUPPLIER 
 01-07-2022,Adults,Millard House Care Home,Residential Placements - Private Contractors Payment,2780.00,0.00,COMMERCIAL SUPPLIER 
 01-07-2022,Adults,The Vine Residential Services Ltd,Supported Other Accommodation - Private Contractors Payment,6899.72,0.00,COMMERCIAL SUPPLIER 
 01-07-2022,Adults,The Vine Residential Services Ltd,Supported Other Accommodation - Private Contractors Payment,6477.40,0.00,COMMERCIAL SUPPLIER 
 01-07-2022,Adults,Blessday Services Ltd,Supported Other Accommodation - Private Contractors Payment,3605.00,0.00,COMMERCIAL SUPPLIER 
 01-07-2022,Adults,Blessday Services Ltd,Supported Other Accommodation - Private Contractors Payment,6010.44,0.00,COMMERCIAL SUPPLIER 
 01-07-2022,Adults,Parkcare Homes (No 2) Ltd t/as Windsor House,Residential Placements - Private Contractors Payment,5888.56,0.00,COMMERCIAL SUPPLIER 
 01-07-2022,Adults,Lancam Care Services Ltd,Nursing Homes - Private Contractors Payment,2712.00,0.00,COMMERCIAL SUPPLIER 
 01-07-2022,Adults,Lancam Care Services Ltd,Nursing Homes - Private Contractors Payment,3412.52,0.00,COMMERCIAL SUPPLIER 
 01-07-2022,Adults,The Laurels Nursing Home Hastings,Nursing Homes - Private Contractors Payment,3444.00,0.00,NON COMMERCIAL SUPPLIER 
 01-07-2022,Adults,Outreach Support Services Ltd,Supported Other Accommodation - Private Contractors Payment,2121.00,0.00,COMMERCIAL SUPPLIER 
 01-07-2022,Adults,Outreach Support Services Ltd,Supported Other Accommodation - Private Contractors Payment,1058.40,0.00,COMMERCIAL SUPPLIER 
 01-07-2022,Adults,Carebase (Sewardstone) Ltd t/a Ashbrook Court,Residential Placements - Private Contractors Payment,2629.80,0.00,COMMERCIAL SUPPLIER 
 01-07-2022,Adults,Carebase (Sewardstone) Ltd t/a Ashbrook Court,Nursing Homes - Private Contractors Payment,3400.00,0.00,COMMERCIAL SUPPLIER 
 01-07-2022,Adults,Carebase (Sewardstone) Ltd t/a Ashbrook Court,Nursing Homes - Private Contractors Payment,1700.00,0.00,COMMERCIAL SUPPLIER 
 01-07-2022,Adults,Carebase (Sewardstone) Ltd t/a Ashbrook Court,Nursing Homes - Private Contractors Payment,3400.00,0.00,COMMERCIAL SUPPLIER 
 01-07-2022,Adults,Step Ahead Care Services Ltd,Supported Other Accommodation - Private Contractors Payment,5966.80,0.00,COMMERCIAL SUPPLIER 
 01-07-2022,Adults,Fern Leaf Care Ltd,Supported Other Accommodation - Private Contractors Payment,3495.76,0.00,COMMERCIAL SUPPLIER 
 01-07-2022,Adults,Platform Support Services,Supported Other Accommodation - Private Contractors Payment,3052.36,0.00,COMMERCIAL SUPPLIER 
 01-07-2022,Adults,Gemini Assisted Living Ltd,Supported Other Accommodation - Private Contractors Payment,686.40,0.00,COMMERCIAL SUPPLIER 
 01-07-2022,Adults,Gemini Assisted Living Ltd,Supported Other Accommodation - Private Contractors Payment,3140.80,0.00,COMMERCIAL SUPPLIER 
 01-07-2022,Adults,Alpine Resources UK Ltd,Supported Other Accommodation - Private Contractors Payment,2504.24,0.00,COMMERCIAL SUPPLIER 
 01-07-2022,Adults,Alpine Resources UK Ltd,Supported Other Accommodation - Private Contractors Payment,2870.28,0.00,COMMERCIAL SUPPLIER 
 01-07-2022,Adults,Alpine Resources UK Ltd,Supported Other Accommodation - Private Contractors Payment,3512.88,0.00,COMMERCIAL SUPPLIER 
 01-07-2022,Adults,Alpine Resources UK Ltd,Supported Other Accommodation - Private Contractors Payment,3087.00,0.00,COMMERCIAL SUPPLIER 
 01-07-2022,Adults,Alpine Resources UK Ltd,Supported Other Accommodation - Private Contractors Payment,2100.00,0.00,COMMERCIAL SUPPLIER 
 01-07-2022,Adults,Epilepsy Society,Residential Placements - Private Contractors Payment,6198.12,0.00,COMMERCIAL SUPPLIER 
 01-07-2022,Adults,Cygnet Health Care,Residential Placements - Private Contractors Payment,4284.00,0.00,COMMERCIAL SUPPLIER 
 01-07-2022,Adults,Cygnet Health Care,Residential Placements - Private Contractors Payment,630.00,0.00,COMMERCIAL SUPPLIER 
 01-07-2022,Adults,Cygnet Health Care,Residential Placements - Private Contractors Payment,2205.00,0.00,COMMERCIAL SUPPLIER 
 01-07-2022,Adults,Havering Care Services Ltd,Supported Other Accommodation - Private Contractors Payment,6727.56,0.00,COMMERCIAL SUPPLIER 
 01-07-2022,Adults,Havering Care Services Ltd,Supported Other Accommodation - Private Contractors Payment,5567.64,0.00,COMMERCIAL SUPPLIER 
 01-07-2022,Adults,Havering Care Services Ltd,Supported Other Accommodation - Private Contractors Payment,4823.44,0.00,COMMERCIAL SUPPLIER 
 01-07-2022,Adults,Havering Care Services Ltd,Supported Other Accommodation - Private Contractors Payment,5871.56,0.00,COMMERCIAL SUPPLIER 
 01-07-2022,Adults,Maison Moti Ltd,Supported Other Accommodation - Private Contractors Payment,2934.56,0.00,COMMERCIAL SUPPLIER 
 01-07-2022,Adults,Maison Moti Ltd,Supported Other Accommodation - Private Contractors Payment,1890.00,0.00,COMMERCIAL SUPPLIER 
 01-07-2022,Adults,Black Swan International Ltd - Drummonds,Residential Placements - Private Contractors Payment,2780.00,0.00,COMMERCIAL SUPPLIER 
 01-07-2022,Adults,Black Swan International Ltd - Drummonds,Residential Placements - Private Contractors Payment,2780.00,0.00,COMMERCIAL SUPPLIER 
 01-07-2022,Adults,Black Swan International Ltd - Drummonds,Residential Placements - Private Contractors Payment,2780.00,0.00,COMMERCIAL SUPPLIER 
 01-07-2022,Adults,Black Swan International Ltd - Drummonds,Residential Placements - Private Contractors Payment,2780.00,0.00,COMMERCIAL SUPPLIER 
 01-07-2022,Adults,Gims Care Solution Ltd_a,Supported Other Accommodation - Private Contractors Payment,14471.76,0.00,NON COMMERCIAL SUPPLIER 
 01-07-2022,Adults,Gims Care Solution Ltd_a,Supported Other Accommodation - Private Contractors Payment,32913.96,0.00,NON COMMERCIAL SUPPLIER 
 01-07-2022,Adults,Raynet Recruitment Agency Ltd,Supported Other Accommodation - Private Contractors Payment,3990.00,0.00,COMMERCIAL SUPPLIER 
 01-07-2022,Adults,Raynet Recruitment Agency Ltd,Supported Other Accommodation - Private Contractors Payment,568.56,0.00,COMMERCIAL SUPPLIER 
 01-07-2022,Adults,Raynet Recruitment Agency Ltd,Supported Other Accommodation - Private Contractors Payment,3075.68,0.00,COMMERCIAL SUPPLIER 
 01-07-2022,Adults,The Riverside Group,Supported Other Accommodation - Private Contractors Payment,1160.00,0.00, 
 01-07-2022,Adults,The Riverside Group,Supported Other Accommodation - Private Contractors Payment,1160.00,0.00, 
 01-07-2022,Adults,The Riverside Group,Supported Other Accommodation - Private Contractors Payment,1160.00,0.00, 
 01-07-2022,Adults,The Riverside Group,Supported Other Accommodation - Private Contractors Payment,1160.00,0.00, 
 01-07-2022,Adults,The Riverside Group,Supported Other Accommodation - Private Contractors Payment,1160.00,0.00, 
 01-07-2022,Adults,The Riverside Group,Supported Other Accommodation - Private Contractors Payment,1160.00,0.00, 
 01-07-2022,Adults,The Riverside Group,Supported Other Accommodation - Private Contractors Payment,1160.00,0.00, 
 01-07-2022,Adults,The Riverside Group,Supported Other Accommodation - Private Contractors Payment,1623.12,0.00, 
 01-07-2022,Adults,The Riverside Group,Supported Other Accommodation - Private Contractors Payment,1160.00,0.00, 
 01-07-2022,Adults,Adjuvo Care and Support Ltd,Supported Other Accommodation - Private Contractors Payment,2463.68,0.00,COMMERCIAL SUPPLIER 
 01-07-2022,Adults,Adjuvo Care and Support Ltd,Supported Other Accommodation - Private Contractors Payment,3589.68,0.00,COMMERCIAL SUPPLIER 
 01-07-2022,Adults,Heathcotes Group,Residential Placements - Private Contractors Payment,6544.64,0.00,COMMERCIAL SUPPLIER 
 01-07-2022,Adults,Down Hall Care Ltd,Residential Placements - Private Contractors Payment,2780.00,0.00,COMMERCIAL SUPPLIER 
 01-07-2022,Adults,Inclusive Care Support Ltd_a,Supported Other Accommodation - Private Contractors Payment,4551.76,0.00,COMMERCIAL SUPPLIER 
 01-07-2022,Adults,Green Arrow Care Providers Ltd,Supported Other Accommodation - Private Contractors Payment,8340.96,0.00,COMMERCIAL SUPPLIER 
 01-07-2022,Adults,B & M Care,Residential Placements - Private Contractors Payment,2780.00,0.00,COMMERCIAL SUPPLIER 
 01-07-2022,Adults,Coastal Supported Living CIC,Supported Other Accommodation - Private Contractors Payment,4907.40,0.00,COMMERCIAL SUPPLIER 
 01-07-2022,Adults,Coastal Supported Living CIC,Supported Other Accommodation - Private Contractors Payment,4191.32,0.00,COMMERCIAL SUPPLIER 
 01-07-2022,Adults,Coastal Supported Living CIC,Supported Other Accommodation - Private Contractors Payment,5005.56,0.00,COMMERCIAL SUPPLIER 
 01-07-2022,Adults,Coastal Supported Living CIC,Supported Other Accommodation - Private Contractors Payment,1002.56,0.00,COMMERCIAL SUPPLIER 
 01-07-2022,Adults,Coastal Supported Living CIC,Supported Other Accommodation - Private Contractors Payment,4191.32,0.00,COMMERCIAL SUPPLIER 
 01-07-2022,Adults,Coastal Supported Living CIC,Supported Other Accommodation - Private Contractors Payment,1752.92,0.00,COMMERCIAL SUPPLIER 
 01-07-2022,Adults,Ebony Health Care Services Limited,Supported Other Accommodation - Private Contractors Payment,2940.00,0.00,COMMERCIAL SUPPLIER 
 01-07-2022,Adults,Ebony Health Care Services Limited,Supported Other Accommodation - Private Contractors Payment,2621.80,0.00,COMMERCIAL SUPPLIER 
 01-07-2022,Adults,Ebony Health Care Services Limited,Supported Other Accommodation - Private Contractors Payment,4014.56,0.00,COMMERCIAL SUPPLIER 
 01-07-2022,Adults,Ebony Health Care Services Limited,Supported Other Accommodation - Private Contractors Payment,2520.00,0.00,COMMERCIAL SUPPLIER 
 01-07-2022,Adults,Ebony Health Care Services Limited,Supported Other Accommodation - Private Contractors Payment,3398.36,0.00,COMMERCIAL SUPPLIER 
 01-07-2022,Adults,Ebony Health Care Services Limited,Supported Other Accommodation - Private Contractors Payment,2655.44,0.00,COMMERCIAL SUPPLIER 
 01-07-2022,Adults,Ebony Health Care Services Limited,Supported Other Accommodation - Private Contractors Payment,881.48,0.00,COMMERCIAL SUPPLIER 
 01-07-2022,Adults,R G Care Ltd ,Residential Placements - Private Contractors Payment,10046.72,0.00,COMMERCIAL SUPPLIER 
 01-07-2022,Adults,R G Care Ltd ,Residential Placements - Private Contractors Payment,8274.76,0.00,COMMERCIAL SUPPLIER 
 01-07-2022,Adults,R G Care Ltd ,Residential Placements - Private Contractors Payment,8079.20,0.00,COMMERCIAL SUPPLIER 
 01-07-2022,Adults,R G Care Ltd ,Residential Placements - Private Contractors Payment,4031.72,0.00,COMMERCIAL SUPPLIER 
 01-07-2022,Adults,Outlook Care_a,Residential Placements - Private Contractors Payment,3042.32,0.00,COMMERCIAL SUPPLIER 
 01-07-2022,Adults,New Directions -Hill End 1 ,Supported Other Accommodation - Private Contractors Payment,4410.00,0.00,COMMERCIAL SUPPLIER 
 01-07-2022,Adults,Radiantlife Ltd,Supported Other Accommodation - Private Contractors Payment,3977.68,0.00,COMMERCIAL SUPPLIER 
 01-07-2022,Adults,Independent Community Support Ltd t/a Wingletye Lodge ,Supported Other Accommodation - Private Contractors Payment,1209.60,0.00,COMMERCIAL SUPPLIER 
 01-07-2022,Adults,Independent Community Support Ltd t/a Wingletye Lodge ,Supported Other Accommodation - Private Contractors Payment,2520.00,0.00,COMMERCIAL SUPPLIER 
 01-07-2022,Adults,Mayesbrook House Ltd ,Supported Other Accommodation - Private Contractors Payment,3731.36,0.00,COMMERCIAL SUPPLIER 
 01-07-2022,Adults,Mayesbrook House Ltd ,Supported Other Accommodation - Private Contractors Payment,3219.32,0.00,COMMERCIAL SUPPLIER 
 01-07-2022,Adults,Fresh Tree Care Services,Supported Other Accommodation - Private Contractors Payment,896.00,0.00,COMMERCIAL SUPPLIER 
 01-07-2022,Adults,Fresh Tree Care Services,Supported Other Accommodation - Private Contractors Payment,640.00,0.00,COMMERCIAL SUPPLIER 
 01-07-2022,Adults,Fresh Tree Care Services,Supported Other Accommodation - Private Contractors Payment,1680.00,0.00,COMMERCIAL SUPPLIER 
 01-07-2022,Adults,Fresh Tree Care Services,Supported Other Accommodation - Private Contractors Payment,2352.00,0.00,COMMERCIAL SUPPLIER 
 01-07-2022,Adults,Anchor Hanover Group.,Residential Placements - Private Contractors Payment,2870.00,0.00,COMMERCIAL SUPPLIER 
 01-07-2022,Adults,Omega Elifar Ltd,Residential Placements - Private Contractors Payment,8485.24,0.00,COMMERCIAL SUPPLIER 
 01-07-2022,Adults,Omega Elifar Ltd,Residential Placements - Private Contractors Payment,918.40,0.00,COMMERCIAL SUPPLIER 
 01-07-2022,Adults,The Abbeyfield Southend Society Ltd,Residential Placements - Private Contractors Payment,2780.00,0.00,COMMERCIAL SUPPLIER 
 01-07-2022,Adults,Adjuvo Care Essex Ltd ,Supported Other Accommodation - Private Contractors Payment,2033.72,0.00,COMMERCIAL SUPPLIER 
 01-07-2022,Adults,The Regard Partnership Ltd - Hedera House ,Supported Other Accommodation - Private Contractors Payment,3730.72,0.00,COMMERCIAL SUPPLIER 
 01-07-2022,Adults,Eden Supported Services Ltd,Supported Other Accommodation - Private Contractors Payment,4419.48,0.00,COMMERCIAL SUPPLIER 
 01-07-2022,Adults,Signature Senior Lifestyle Operations Ltd,Nursing Homes - Private Contractors Payment,5749.84,0.00,COMMERCIAL SUPPLIER 
 01-07-2022,Adults,Independent Supported Living and Disabilities Ltd  ,Supported Other Accommodation - Private Contractors Payment,3066.00,0.00,COMMERCIAL SUPPLIER 
 01-07-2022,Adults,Blueboard Care Services Ltd,Supported Other Accommodation - Private Contractors Payment,1478.40,0.00,COMMERCIAL SUPPLIER 
 01-07-2022,Adults,Blueboard Care Services Ltd,Supported Other Accommodation - Private Contractors Payment,4248.32,0.00,COMMERCIAL SUPPLIER 
 01-07-2022,Adults,Blueboard Care Services Ltd,Supported Other Accommodation - Private Contractors Payment,2856.00,0.00,COMMERCIAL SUPPLIER 
 01-07-2022,Adults,Blueboard Care Services Ltd,Supported Other Accommodation - Private Contractors Payment,3424.00,0.00,COMMERCIAL SUPPLIER 
 01-07-2022,Adults,Blueboard Care Services Ltd,Supported Other Accommodation - Private Contractors Payment,2856.00,0.00,COMMERCIAL SUPPLIER 
 01-07-2022,Adults,Blueboard Care Services Ltd,Supported Other Accommodation - Private Contractors Payment,3424.00,0.00,COMMERCIAL SUPPLIER 
 01-07-2022,Adults,Blueboard Care Services Ltd,Supported Other Accommodation - Private Contractors Payment,2856.00,0.00,COMMERCIAL SUPPLIER 
 01-07-2022,Adults,Blueboard Care Services Ltd,Supported Other Accommodation - Private Contractors Payment,3424.00,0.00,COMMERCIAL SUPPLIER 
 01-07-2022,Adults,Blueboard Care Services Ltd,Supported Other Accommodation - Private Contractors Payment,2856.00,0.00,COMMERCIAL SUPPLIER 
 01-07-2022,Adults,Blueboard Care Services Ltd,Supported Other Accommodation - Private Contractors Payment,3424.00,0.00,COMMERCIAL SUPPLIER 
 01-07-2022,Adults,Blueboard Care Services Ltd,Supported Other Accommodation - Private Contractors Payment,1478.40,0.00,COMMERCIAL SUPPLIER 
 01-07-2022,Adults,Blueboard Care Services Ltd,Supported Other Accommodation - Private Contractors Payment,1999.20,0.00,COMMERCIAL SUPPLIER 
 01-07-2022,Adults,CFT Care Ltd ,Supported Other Accommodation - Private Contractors Payment,2815.36,0.00,COMMERCIAL SUPPLIER 
 01-07-2022,Adults,CFT Care Ltd ,Supported Other Accommodation - Private Contractors Payment,4223.00,0.00,COMMERCIAL SUPPLIER 
 01-07-2022,Adults,Protecthand Care Ltd ,Supported Other Accommodation - Private Contractors Payment,6979.88,0.00,COMMERCIAL SUPPLIER 
 01-07-2022,Adults,Protecthand Care Ltd ,Supported Other Accommodation - Private Contractors Payment,1050.00,0.00,COMMERCIAL SUPPLIER 
 01-07-2022,Adults,Protecthand Care Ltd ,Supported Other Accommodation - Private Contractors Payment,1680.00,0.00,COMMERCIAL SUPPLIER 
 01-07-2022,Adults,Protecthand Care Ltd ,Supported Other Accommodation - Private Contractors Payment,4165.00,0.00,COMMERCIAL SUPPLIER 
 01-07-2022,Adults,Cavell Lodge,Residential Placements - Private Contractors Payment,2780.00,0.00,COMMERCIAL SUPPLIER 
 01-07-2022,Adults,Vibrance ,Residential Placements - Private Contractors Payment,5487.12,0.00,COMMERCIAL SUPPLIER 
 01-07-2022,Adults,Vibrance ,Residential Placements - Private Contractors Payment,1720.76,0.00,COMMERCIAL SUPPLIER 
 01-07-2022,Adults,KJD Care Limited,Supported Other Accommodation - Private Contractors Payment,7056.00,0.00,INDIVIDUALS 
 01-07-2022,Adults,KJD Care Limited,Supported Other Accommodation - Private Contractors Payment,3423.00,0.00,INDIVIDUALS 
 01-07-2022,Adults,KJD Care Limited,Supported Other Accommodation - Private Contractors Payment,1008.00,0.00,INDIVIDUALS 
 01-07-2022,Adults,Achieve Together,Supported Other Accommodation - Private Contractors Payment,8056.96,0.00,COMMERCIAL SUPPLIER 
 01-07-2022,Adults,Zero Three Care Homes LLP,Residential Placements - Private Contractors Payment,13593.32,0.00,COMMERCIAL SUPPLIER 
 01-07-2022,Adults,Sunnyside Home Care,Supported Other Accommodation - Private Contractors Payment,3032.40,0.00,COMMERCIAL SUPPLIER 
 01-07-2022,Adults,Pathways Care Group Ltd,Residential Placements - Private Contractors Payment,2285.56,0.00,COMMERCIAL SUPPLIER 
 01-07-2022,Adults,Pathways Care Group Ltd,Residential Placements - Private Contractors Payment,904.04,0.00,COMMERCIAL SUPPLIER 
 01-07-2022,Adults,Pathways Care Group Ltd,Residential Placements - Private Contractors Payment,2486.16,0.00,COMMERCIAL SUPPLIER 
 01-07-2022,Adults,Ebony Health Care Services Limited,Supported Other Accommodation - Private Contractors Payment,992.24,0.00,COMMERCIAL SUPPLIER 
 01-07-2022,Adults,Ebony Health Care Services Limited,Supported Other Accommodation - Private Contractors Payment,1496.24,0.00,COMMERCIAL SUPPLIER 
 01-07-2022,Adults,Ebony Health Care Services Limited,Supported Other Accommodation - Private Contractors Payment,2100.00,0.00,COMMERCIAL SUPPLIER 
 01-07-2022,Adults,Sandstone Care Liverpool Ltd,Residential Placements - Private Contractors Payment,2540.28,0.00,COMMERCIAL SUPPLIER 
 01-07-2022,Adults,Sandstone Care Liverpool Ltd,Residential Placements - Private Contractors Payment,2540.28,0.00,COMMERCIAL SUPPLIER 
 01-07-2022,Adults,Sandstone Care Liverpool Ltd,Residential Placements - Private Contractors Payment,2540.28,0.00,COMMERCIAL SUPPLIER 
 01-07-2022,Adults,Sandstone Care Liverpool Ltd,Residential Placements - Private Contractors Payment,2540.28,0.00,COMMERCIAL SUPPLIER 
 01-07-2022,Adults,St Giles Homes Ltd T/A Forest Home,Residential Placements - Private Contractors Payment,2544.84,0.00,COMMERCIAL SUPPLIER 
 01-07-2022,Adults,Maria Mallaband Care Group - The Westbourne ,Nursing Homes - Private Contractors Payment,4920.00,0.00,COMMERCIAL SUPPLIER 
 01-07-2022,Adults,Heath Care Services Ltd ,Supported Other Accommodation - Private Contractors Payment,19656.00,0.00,COMMERCIAL SUPPLIER 
 01-07-2022,Adults,Heath Care Services Ltd ,Supported Other Accommodation - Private Contractors Payment,11232.00,0.00,COMMERCIAL SUPPLIER 
 01-07-2022,Adults,Infinite Healthcare Services Ltd.,Supported Other Accommodation - Private Contractors Payment,2967.60,0.00,COMMERCIAL SUPPLIER 
 01-07-2022,Adults,Loven Larchwood Ltd,Residential Placements - Private Contractors Payment,3400.00,0.00,COMMERCIAL SUPPLIER 
 01-07-2022,Adults,Quantum Case Ltd,Residential Placements - Private Contractors Payment,2877.64,0.00,COMMERCIAL SUPPLIER 
 01-07-2022,Adults,Sahara Care Ltd,Residential Placements - Private Contractors Payment,2072.00,0.00,COMMERCIAL SUPPLIER 
 01-07-2022,Adults,Sahara Care Ltd,Residential Placements - Private Contractors Payment,6540.00,0.00,COMMERCIAL SUPPLIER 
 01-07-2022,Adults,Care Square Ltd.,Supported Other Accommodation - Private Contractors Payment,3433.40,0.00,COMMERCIAL SUPPLIER 
 01-07-2022,Adults,Diagrama Healthcare Servcies Ltd ,Nursing Homes - Private Contractors Payment,2712.00,0.00,COMMERCIAL SUPPLIER 
 01-07-2022,Adults,Bupa Care Homes (CFH Care) Ltd ,Nursing Homes - Private Contractors Payment,2782.36,0.00,COMMERCIAL SUPPLIER 
 01-07-2022,Adults,Apace Support Services,Supported Other Accommodation - Private Contractors Payment,3800.00,0.00,COMMERCIAL SUPPLIER 
 01-07-2022,Adults,Rosewood Care Home,Respite Care - Private Contractors Payment,1356.00,0.00,COMMERCIAL SUPPLIER 
 01-07-2022,Adults,Rosewood Care Home,Respite Care - Private Contractors Payment,968.57,0.00,COMMERCIAL SUPPLIER 
 01-07-2022,Adults,Silver Lake Care 2 Ltd ,Nursing Homes - Private Contractors Payment,3226.59,0.00,COMMERCIAL SUPPLIER 
 01-07-2022,Adults,Silver Lake Care 2 Ltd ,Nursing Homes - Private Contractors Payment,11293.08,0.00,COMMERCIAL SUPPLIER 
 01-07-2022,Adults,Home From Home Support Service Ltd ,Supported Other Accommodation - Private Contractors Payment,3085.71,0.00,COMMERCIAL SUPPLIER 
 01-07-2022,Adults,Home From Home Support Service Ltd ,Supported Other Accommodation - Private Contractors Payment,1944.00,0.00,COMMERCIAL SUPPLIER 
 01-07-2022,Adults,Home From Home Support Service Ltd ,Supported Other Accommodation - Private Contractors Payment,648.00,0.00,COMMERCIAL SUPPLIER 
 01-07-2022,Adults,Cygnet (OE) Ltd ,Residential Placements - Private Contractors Payment,9016.00,0.00,COMMERCIAL SUPPLIER 
 01-07-2022,Adults,Cygnet (OE) Ltd ,Residential Placements - Private Contractors Payment,1288.00,0.00,COMMERCIAL SUPPLIER 
 01-07-2022,Adults,Cygnet (OE) Ltd ,Residential Placements - Private Contractors Payment,2100.00,0.00,COMMERCIAL SUPPLIER 
 01-07-2022,Adults,Cygnet (OE) Ltd ,Residential Placements - Private Contractors Payment,9016.00,0.00,COMMERCIAL SUPPLIER 
 01-07-2022,Adults,Cygnet (OE) Ltd ,Residential Placements - Private Contractors Payment,2100.00,0.00,COMMERCIAL SUPPLIER 
 01-07-2022,Adults,Cygnet (OE) Ltd ,Residential Placements - Private Contractors Payment,9016.00,0.00,COMMERCIAL SUPPLIER 
 01-07-2022,Adults,Cygnet (OE) Ltd ,Residential Placements - Private Contractors Payment,2100.00,0.00,COMMERCIAL SUPPLIER 
 01-07-2022,Adults,Cygnet (OE) Ltd ,Residential Placements - Private Contractors Payment,2100.00,0.00,COMMERCIAL SUPPLIER 
 01-07-2022,Adults,Cygnet (OE) Ltd ,Residential Placements - Private Contractors Payment,9016.00,0.00,COMMERCIAL SUPPLIER 
 01-07-2022,Adults,Sesnha Care ,Home Care - Private Contractors Payment,949.32,0.00,INDIVIDUALS 
 02-07-2022,Adults,Oath Healthcare ,Home Care - Private Contractors Payment,2205.00,0.00,COMMERCIAL SUPPLIER 
 04-07-2022,Adults,Treal Care Limited,Home Care - Private Contractors Payment,1171.50,0.00,COMMERCIAL SUPPLIER 
 04-07-2022,Adults,Bluebird Care Havering,Home Care - Private Contractors Payment,2450.00,0.00,COMMERCIAL SUPPLIER 
 04-07-2022,Adults,Bluebird Care Havering,Home Care - Private Contractors Payment,2450.00,0.00,COMMERCIAL SUPPLIER 
 04-07-2022,Adults,Bluebird Care Havering,Home Care - Private Contractors Payment,1245.20,0.00,COMMERCIAL SUPPLIER 
 04-07-2022,Adults,Bluebird Care Havering,Home Care - Private Contractors Payment,762.60,0.00,COMMERCIAL SUPPLIER 
 04-07-2022,Adults,All Therapy Solutions Ltd,Occupational Health,1140.00,0.00,COMMERCIAL SUPPLIER 
 04-07-2022,Adults,Consensus Support Services Ltd - Rowan House,Residential Placements - Private Contractors Payment,8540.92,0.00,COMMERCIAL SUPPLIER 
 05-07-2022,Adults,Flex360 Limited,Private Contractors Payment - Other,550.00,0.00,COMMERCIAL SUPPLIER 
 05-07-2022,Adults,Flex360 Limited,Private Contractors Payment - Other,550.00,0.00,COMMERCIAL SUPPLIER 
 05-07-2022,Adults,Flex360 Limited,Private Contractors Payment - Other,550.00,0.00,COMMERCIAL SUPPLIER 
 05-07-2022,Adults,IJB Healthcare Ltd,Home Care - Private Contractors Payment,1102.08,0.00,COMMERCIAL SUPPLIER 
 05-07-2022,Adults,Anytime Care 2020_a,Home Care - Private Contractors Payment,1109.62,0.00,COMMERCIAL SUPPLIER 
 05-07-2022,Adults,Anytime Care 2020_a,Home Care - Private Contractors Payment,1472.06,0.00,COMMERCIAL SUPPLIER 
 05-07-2022,Adults,Anytime Care 2020_a,Home Care - Private Contractors Payment,626.81,0.00,COMMERCIAL SUPPLIER 
 05-07-2022,Adults,Anytime Care 2020_a,Home Care - Private Contractors Payment,713.73,0.00,COMMERCIAL SUPPLIER 
 05-07-2022,Adults,Anytime Care 2020_a,Home Care - Private Contractors Payment,1115.20,0.00,COMMERCIAL SUPPLIER 
 05-07-2022,Adults,Anytime Care 2020_a,Home Care - Private Contractors Payment,1181.46,0.00,COMMERCIAL SUPPLIER 
 05-07-2022,Adults,Anytime Care 2020_a,Home Care - Private Contractors Payment,730.78,0.00,COMMERCIAL SUPPLIER 
 05-07-2022,Adults,Anytime Care 2020_a,Home Care - Private Contractors Payment,1026.31,0.00,COMMERCIAL SUPPLIER 
 05-07-2022,Adults,Anytime Care 2020_a,Home Care - Private Contractors Payment,1287.73,0.00,COMMERCIAL SUPPLIER 
 05-07-2022,Adults,Anytime Care 2020_a,Home Care - Private Contractors Payment,1102.08,0.00,COMMERCIAL SUPPLIER 
 05-07-2022,Adults,Anytime Care 2020_a,Home Care - Private Contractors Payment,1066.00,0.00,COMMERCIAL SUPPLIER 
 05-07-2022,Adults,Anytime Care 2020_a,Home Care - Private Contractors Payment,541.20,0.00,COMMERCIAL SUPPLIER 
 05-07-2022,Adults,Anytime Care 2020_a,Home Care - Private Contractors Payment,863.30,0.00,COMMERCIAL SUPPLIER 
 05-07-2022,Adults,Anytime Care 2020_a,Home Care - Private Contractors Payment,1117.82,0.00,COMMERCIAL SUPPLIER 
 05-07-2022,Adults,Anytime Care 2020_a,Home Care - Private Contractors Payment,1019.42,0.00,COMMERCIAL SUPPLIER 
 05-07-2022,Adults,Anytime Care 2020_a,Home Care - Private Contractors Payment,656.98,0.00,COMMERCIAL SUPPLIER 
 05-07-2022,Adults,Anytime Care 2020_a,Home Care - Private Contractors Payment,652.72,0.00,COMMERCIAL SUPPLIER 
 05-07-2022,Adults,Anytime Care 2020_a,Home Care - Private Contractors Payment,959.40,0.00,COMMERCIAL SUPPLIER 
 05-07-2022,Adults,Anytime Care 2020_a,Home Care - Private Contractors Payment,1102.08,0.00,COMMERCIAL SUPPLIER 
 05-07-2022,Adults,Spring Consult UK Ltd,Home Care - Private Contractors Payment,7714.56,0.00,COMMERCIAL SUPPLIER 
 05-07-2022,Adults,Inna Care Ltd,Home Care - Private Contractors Payment,560.88,0.00,COMMERCIAL SUPPLIER 
 05-07-2022,Adults,Inna Care Ltd,Home Care - Private Contractors Payment,1082.40,0.00,COMMERCIAL SUPPLIER 
 05-07-2022,Adults,Inna Care Ltd,Home Care - Private Contractors Payment,551.04,0.00,COMMERCIAL SUPPLIER 
 05-07-2022,Adults,Inna Care Ltd,Home Care - Private Contractors Payment,787.20,0.00,COMMERCIAL SUPPLIER 
 05-07-2022,Adults,Inna Care Ltd,Home Care - Private Contractors Payment,905.28,0.00,COMMERCIAL SUPPLIER 
 05-07-2022,Adults,Inna Care Ltd,Home Care - Private Contractors Payment,905.28,0.00,COMMERCIAL SUPPLIER 
 05-07-2022,Adults,Inna Care Ltd,Home Care - Private Contractors Payment,1889.28,0.00,COMMERCIAL SUPPLIER 
 05-07-2022,Adults,Inna Care Ltd,Home Care - Private Contractors Payment,708.48,0.00,COMMERCIAL SUPPLIER 
 05-07-2022,Adults,Inna Care Ltd,Home Care - Private Contractors Payment,708.48,0.00,COMMERCIAL SUPPLIER 
 05-07-2022,Adults,Inna Care Ltd,Home Care - Private Contractors Payment,1102.08,0.00,COMMERCIAL SUPPLIER 
 05-07-2022,Adults,Inna Care Ltd,Home Care - Private Contractors Payment,560.88,0.00,COMMERCIAL SUPPLIER 
 05-07-2022,Adults,Inna Care Ltd,Home Care - Private Contractors Payment,826.56,0.00,COMMERCIAL SUPPLIER 
 05-07-2022,Adults,Inna Care Ltd,Home Care - Private Contractors Payment,1102.08,0.00,COMMERCIAL SUPPLIER 
 05-07-2022,Adults,Inna Care Ltd,Home Care - Private Contractors Payment,1141.44,0.00,COMMERCIAL SUPPLIER 
 05-07-2022,Adults,Inna Care Ltd,Home Care - Private Contractors Payment,964.32,0.00,COMMERCIAL SUPPLIER 
 05-07-2022,Adults,Inna Care Ltd,Home Care - Private Contractors Payment,826.56,0.00,COMMERCIAL SUPPLIER 
 05-07-2022,Adults,Inna Care Ltd,Home Care - Private Contractors Payment,2204.16,0.00,COMMERCIAL SUPPLIER 
 05-07-2022,Adults,Inna Care Ltd,Home Care - Private Contractors Payment,2204.16,0.00,COMMERCIAL SUPPLIER 
 05-07-2022,Adults,Inna Care Ltd,Home Care - Private Contractors Payment,1102.08,0.00,COMMERCIAL SUPPLIER 
 05-07-2022,Adults,Inna Care Ltd,Home Care - Private Contractors Payment,1062.72,0.00,COMMERCIAL SUPPLIER 
 05-07-2022,Adults,Inna Care Ltd,Home Care - Private Contractors Payment,551.04,0.00,COMMERCIAL SUPPLIER 
 05-07-2022,Adults,Inna Care Ltd,Home Care - Private Contractors Payment,590.40,0.00,COMMERCIAL SUPPLIER 
 05-07-2022,Adults,Inna Care Ltd,Home Care - Private Contractors Payment,590.40,0.00,COMMERCIAL SUPPLIER 
 05-07-2022,Adults,Inna Care Ltd,Home Care - Private Contractors Payment,511.68,0.00,COMMERCIAL SUPPLIER 
 05-07-2022,Adults,Inna Care Ltd,Home Care - Private Contractors Payment,511.68,0.00,COMMERCIAL SUPPLIER 
 05-07-2022,Adults,Inna Care Ltd,Home Care - Private Contractors Payment,1121.76,0.00,COMMERCIAL SUPPLIER 
 05-07-2022,Adults,Inna Care Ltd,Home Care - Private Contractors Payment,826.56,0.00,COMMERCIAL SUPPLIER 
 05-07-2022,Adults,Inna Care Ltd,Home Care - Private Contractors Payment,551.04,0.00,COMMERCIAL SUPPLIER 
 05-07-2022,Adults,Inna Care Ltd,Home Care - Private Contractors Payment,826.56,0.00,COMMERCIAL SUPPLIER 
 05-07-2022,Adults,Inna Care Ltd,Home Care - Private Contractors Payment,826.56,0.00,COMMERCIAL SUPPLIER 
 05-07-2022,Adults,Inna Care Ltd,Home Care - Private Contractors Payment,944.64,0.00,COMMERCIAL SUPPLIER 
 05-07-2022,Adults,Inna Care Ltd,Home Care - Private Contractors Payment,1102.08,0.00,COMMERCIAL SUPPLIER 
 05-07-2022,Adults,Inna Care Ltd,Home Care - Private Contractors Payment,1102.08,0.00,COMMERCIAL SUPPLIER 
 05-07-2022,Adults,Inclusive Care Support Limited,Supported Other Accommodation - Private Contractors Payment,700.84,0.00,COMMERCIAL SUPPLIER 
 05-07-2022,Adults,Inclusive Care Support Limited,Supported Other Accommodation - Private Contractors Payment,700.84,0.00,COMMERCIAL SUPPLIER 
 05-07-2022,Adults,Inclusive Care Support Limited,Long Term Support - Community: Supported Living,700.84,0.00,COMMERCIAL SUPPLIER 
 05-07-2022,Adults,Inclusive Care Support Limited,Supported Other Accommodation - Private Contractors Payment,700.84,0.00,COMMERCIAL SUPPLIER 
 05-07-2022,Adults,Inclusive Care Support Limited,Supported Other Accommodation - Private Contractors Payment,700.84,0.00,COMMERCIAL SUPPLIER 
 05-07-2022,Adults,Pristine Care London Ltd ,Daycare - Private Contractors Payment,1155.00,0.00,COMMERCIAL SUPPLIER 
 05-07-2022,Adults,Pristine Care London Ltd ,Daycare - Private Contractors Payment,660.00,0.00,COMMERCIAL SUPPLIER 
 06-07-2022,Adults,Romford Private Hire Ltd,Client Transport,2800.00,0.00,COMMERCIAL SUPPLIER 
 06-07-2022,Adults,Cera Care Operations Ltd,Home Care - Private Contractors Payment,3480.03,0.00,COMMERCIAL SUPPLIER 
 06-07-2022,Adults,Morepower Ltd t/a Aqs Homecare,Home Care - Private Contractors Payment,541.86,0.00,COMMERCIAL SUPPLIER 
 06-07-2022,Adults,Morepower Ltd t/a Aqs Homecare,Home Care - Private Contractors Payment,534.64,0.00,COMMERCIAL SUPPLIER 
 06-07-2022,Adults,Home Sweet Home Care Ltd,Home Care - Private Contractors Payment,3264.91,0.00,COMMERCIAL SUPPLIER 
 06-07-2022,Adults,Home Sweet Home Care Ltd,Home Care - Private Contractors Payment,1103.39,0.00,COMMERCIAL SUPPLIER 
 06-07-2022,Adults,Home Sweet Home Care Ltd,Home Care - Private Contractors Payment,2263.53,0.00,COMMERCIAL SUPPLIER 
 06-07-2022,Adults,Home Sweet Home Care Ltd,Home Care - Private Contractors Payment,1107.00,0.00,COMMERCIAL SUPPLIER 
 06-07-2022,Adults,Home Sweet Home Care Ltd,Home Care - Private Contractors Payment,1005.98,0.00,COMMERCIAL SUPPLIER 
 06-07-2022,Adults,Home Sweet Home Care Ltd,Home Care - Private Contractors Payment,1102.08,0.00,COMMERCIAL SUPPLIER 
 06-07-2022,Adults,Home Sweet Home Care Ltd,Home Care - Private Contractors Payment,540.87,0.00,COMMERCIAL SUPPLIER 
 06-07-2022,Adults,Home Sweet Home Care Ltd,Home Care - Private Contractors Payment,542.18,0.00,COMMERCIAL SUPPLIER 
 06-07-2022,Adults,Home Sweet Home Care Ltd,Home Care - Private Contractors Payment,1098.80,0.00,COMMERCIAL SUPPLIER 
 06-07-2022,Adults,Home Sweet Home Care Ltd,Home Care - Private Contractors Payment,541.20,0.00,COMMERCIAL SUPPLIER 
 06-07-2022,Adults,Home Sweet Home Care Ltd,Home Care - Private Contractors Payment,560.88,0.00,COMMERCIAL SUPPLIER 
 06-07-2022,Adults,Home Sweet Home Care Ltd,Home Care - Private Contractors Payment,924.96,0.00,COMMERCIAL SUPPLIER 
 06-07-2022,Adults,Home Sweet Home Care Ltd,Home Care - Private Contractors Payment,1269.36,0.00,COMMERCIAL SUPPLIER 
 06-07-2022,Adults,Home Sweet Home Care Ltd,Home Care - Private Contractors Payment,816.72,0.00,COMMERCIAL SUPPLIER 
 06-07-2022,Adults,Home Sweet Home Care Ltd,Home Care - Private Contractors Payment,986.95,0.00,COMMERCIAL SUPPLIER 
 06-07-2022,Adults,Home Sweet Home Care Ltd,Home Care - Private Contractors Payment,984.66,0.00,COMMERCIAL SUPPLIER 
 06-07-2022,Adults,Home Sweet Home Care Ltd,Home Care - Private Contractors Payment,600.90,0.00,COMMERCIAL SUPPLIER 
 06-07-2022,Adults,Home Sweet Home Care Ltd,Home Care - Private Contractors Payment,551.04,0.00,COMMERCIAL SUPPLIER 
 06-07-2022,Adults,Home Sweet Home Care Ltd,Home Care - Private Contractors Payment,808.19,0.00,COMMERCIAL SUPPLIER 
 06-07-2022,Adults,Home Sweet Home Care Ltd,Home Care - Private Contractors Payment,530.70,0.00,COMMERCIAL SUPPLIER 
 06-07-2022,Adults,Home Sweet Home Care Ltd,Home Care - Private Contractors Payment,818.03,0.00,COMMERCIAL SUPPLIER 
 06-07-2022,Adults,Home Sweet Home Care Ltd,Home Care - Private Contractors Payment,826.56,0.00,COMMERCIAL SUPPLIER 
 06-07-2022,Adults,Home Sweet Home Care Ltd,Home Care - Private Contractors Payment,541.20,0.00,COMMERCIAL SUPPLIER 
 06-07-2022,Adults,Home Sweet Home Care Ltd,Home Care - Private Contractors Payment,1577.68,0.00,COMMERCIAL SUPPLIER 
 06-07-2022,Adults,Home Sweet Home Care Ltd,Home Care - Private Contractors Payment,1598.67,0.00,COMMERCIAL SUPPLIER 
 06-07-2022,Adults,Home Sweet Home Care Ltd,Home Care - Private Contractors Payment,845.26,0.00,COMMERCIAL SUPPLIER 
 06-07-2022,Adults,Home Sweet Home Care Ltd,Home Care - Private Contractors Payment,895.44,0.00,COMMERCIAL SUPPLIER 
 06-07-2022,Adults,Home Sweet Home Care Ltd,Home Care - Private Contractors Payment,826.56,0.00,COMMERCIAL SUPPLIER 
 06-07-2022,Adults,Home Sweet Home Care Ltd,Home Care - Private Contractors Payment,1113.89,0.00,COMMERCIAL SUPPLIER 
 06-07-2022,Adults,Home Sweet Home Care Ltd,Home Care - Private Contractors Payment,1113.89,0.00,COMMERCIAL SUPPLIER 
 06-07-2022,Adults,Home Sweet Home Care Ltd,Home Care - Private Contractors Payment,1093.22,0.00,COMMERCIAL SUPPLIER 
 06-07-2022,Adults,Home Sweet Home Care Ltd,Home Care - Private Contractors Payment,1092.24,0.00,COMMERCIAL SUPPLIER 
 06-07-2022,Adults,Home Sweet Home Care Ltd,Home Care - Private Contractors Payment,1092.24,0.00,COMMERCIAL SUPPLIER 
 06-07-2022,Adults,Home Sweet Home Care Ltd,Home Care - Private Contractors Payment,1092.24,0.00,COMMERCIAL SUPPLIER 
 06-07-2022,Adults,Home Sweet Home Care Ltd,Home Care - Private Contractors Payment,826.56,0.00,COMMERCIAL SUPPLIER 
 06-07-2022,Adults,Home Sweet Home Care Ltd,Home Care - Private Contractors Payment,1102.08,0.00,COMMERCIAL SUPPLIER 
 06-07-2022,Adults,Home Sweet Home Care Ltd,Home Care - Private Contractors Payment,1112.25,0.00,COMMERCIAL SUPPLIER 
 06-07-2022,Adults,Home Sweet Home Care Ltd,Home Care - Private Contractors Payment,1074.20,0.00,COMMERCIAL SUPPLIER 
 06-07-2022,Adults,Home Sweet Home Care Ltd,Home Care - Private Contractors Payment,1092.24,0.00,COMMERCIAL SUPPLIER 
 06-07-2022,Adults,Home Sweet Home Care Ltd,Home Care - Private Contractors Payment,819.67,0.00,COMMERCIAL SUPPLIER 
 06-07-2022,Adults,Home Sweet Home Care Ltd,Home Care - Private Contractors Payment,612.05,0.00,COMMERCIAL SUPPLIER 
 06-07-2022,Adults,Home Sweet Home Care Ltd,Home Care - Private Contractors Payment,1173.58,0.00,COMMERCIAL SUPPLIER 
 06-07-2022,Adults,Home Sweet Home Care Ltd,Home Care - Private Contractors Payment,551.04,0.00,COMMERCIAL SUPPLIER 
 06-07-2022,Adults,Home Sweet Home Care Ltd,Home Care - Private Contractors Payment,1085.02,0.00,COMMERCIAL SUPPLIER 
 06-07-2022,Adults,Home Sweet Home Care Ltd,Home Care - Private Contractors Payment,1104.70,0.00,COMMERCIAL SUPPLIER 
 06-07-2022,Adults,Home Sweet Home Care Ltd,Home Care - Private Contractors Payment,1119.14,0.00,COMMERCIAL SUPPLIER 
 06-07-2022,Adults,Home Sweet Home Care Ltd,Home Care - Private Contractors Payment,551.04,0.00,COMMERCIAL SUPPLIER 
 06-07-2022,Adults,Home Sweet Home Care Ltd,Home Care - Private Contractors Payment,541.20,0.00,COMMERCIAL SUPPLIER 
 06-07-2022,Adults,Home Sweet Home Care Ltd,Home Care - Private Contractors Payment,826.56,0.00,COMMERCIAL SUPPLIER 
 06-07-2022,Adults,Home Sweet Home Care Ltd,Home Care - Private Contractors Payment,1102.08,0.00,COMMERCIAL SUPPLIER 
 06-07-2022,Adults,Home Sweet Home Care Ltd,Home Care - Private Contractors Payment,1135.54,0.00,COMMERCIAL SUPPLIER 
 06-07-2022,Adults,Home Sweet Home Care Ltd,Home Care - Private Contractors Payment,1141.44,0.00,COMMERCIAL SUPPLIER 
 06-07-2022,Adults,Home Sweet Home Care Ltd,Home Care - Private Contractors Payment,1093.22,0.00,COMMERCIAL SUPPLIER 
 06-07-2022,Adults,Home Sweet Home Care Ltd,Home Care - Private Contractors Payment,1266.74,0.00,COMMERCIAL SUPPLIER 
 06-07-2022,Adults,Home Sweet Home Care Ltd,Home Care - Private Contractors Payment,1496.34,0.00,COMMERCIAL SUPPLIER 
 06-07-2022,Adults,Home Sweet Home Care Ltd,Home Care - Private Contractors Payment,1529.14,0.00,COMMERCIAL SUPPLIER 
 06-07-2022,Adults,Home Sweet Home Care Ltd,Home Care - Private Contractors Payment,502.17,0.00,COMMERCIAL SUPPLIER 
 06-07-2022,Adults,Home Sweet Home Care Ltd,Home Care - Private Contractors Payment,521.85,0.00,COMMERCIAL SUPPLIER 
 06-07-2022,Adults,Home Sweet Home Care Ltd,Home Care - Private Contractors Payment,860.02,0.00,COMMERCIAL SUPPLIER 
 06-07-2022,Adults,Home Sweet Home Care Ltd,Home Care - Private Contractors Payment,618.61,0.00,COMMERCIAL SUPPLIER 
 06-07-2022,Adults,Home Sweet Home Care Ltd,Home Care - Private Contractors Payment,808.19,0.00,COMMERCIAL SUPPLIER 
 06-07-2022,Adults,Home Sweet Home Care Ltd,Home Care - Private Contractors Payment,596.30,0.00,COMMERCIAL SUPPLIER 
 06-07-2022,Adults,Home Sweet Home Care Ltd,Home Care - Private Contractors Payment,1096.50,0.00,COMMERCIAL SUPPLIER 
 06-07-2022,Adults,Home Sweet Home Care Ltd,Home Care - Private Contractors Payment,1106.34,0.00,COMMERCIAL SUPPLIER 
 06-07-2022,Adults,Home Sweet Home Care Ltd,Home Care - Private Contractors Payment,1104.38,0.00,COMMERCIAL SUPPLIER 
 06-07-2022,Adults,Home Sweet Home Care Ltd,Home Care - Private Contractors Payment,840.66,0.00,COMMERCIAL SUPPLIER 
 06-07-2022,Adults,Home Sweet Home Care Ltd,Home Care - Private Contractors Payment,806.88,0.00,COMMERCIAL SUPPLIER 
 06-07-2022,Adults,Home Sweet Home Care Ltd,Home Care - Private Contractors Payment,521.52,0.00,COMMERCIAL SUPPLIER 
 06-07-2022,Adults,Home Sweet Home Care Ltd,Home Care - Private Contractors Payment,552.02,0.00,COMMERCIAL SUPPLIER 
 06-07-2022,Adults,Home Sweet Home Care Ltd,Home Care - Private Contractors Payment,1106.34,0.00,COMMERCIAL SUPPLIER 
 06-07-2022,Adults,Home Sweet Home Care Ltd,Home Care - Private Contractors Payment,553.01,0.00,COMMERCIAL SUPPLIER 
 06-07-2022,Adults,Home Sweet Home Care Ltd,Home Care - Private Contractors Payment,1157.84,0.00,COMMERCIAL SUPPLIER 
 06-07-2022,Adults,Home Sweet Home Care Ltd,Home Care - Private Contractors Payment,1161.45,0.00,COMMERCIAL SUPPLIER 
 06-07-2022,Adults,Home Sweet Home Care Ltd,Home Care - Private Contractors Payment,1092.24,0.00,COMMERCIAL SUPPLIER 
 06-07-2022,Adults,Home Sweet Home Care Ltd,Home Care - Private Contractors Payment,1102.08,0.00,COMMERCIAL SUPPLIER 
 06-07-2022,Adults,Home Sweet Home Care Ltd,Home Care - Private Contractors Payment,1082.40,0.00,COMMERCIAL SUPPLIER 
 06-07-2022,Adults,Home Sweet Home Care Ltd,Home Care - Private Contractors Payment,552.02,0.00,COMMERCIAL SUPPLIER 
 06-07-2022,Adults,Home Sweet Home Care Ltd,Home Care - Private Contractors Payment,1350.38,0.00,COMMERCIAL SUPPLIER 
 06-07-2022,Adults,Home Sweet Home Care Ltd,Home Care - Private Contractors Payment,826.56,0.00,COMMERCIAL SUPPLIER 
 06-07-2022,Adults,Home Sweet Home Care Ltd,Home Care - Private Contractors Payment,551.04,0.00,COMMERCIAL SUPPLIER 
 06-07-2022,Adults,Home Sweet Home Care Ltd,Home Care - Private Contractors Payment,551.04,0.00,COMMERCIAL SUPPLIER 
 06-07-2022,Adults,Home Sweet Home Care Ltd,Home Care - Private Contractors Payment,541.20,0.00,COMMERCIAL SUPPLIER 
 06-07-2022,Adults,Home Sweet Home Care Ltd,Home Care - Private Contractors Payment,804.58,0.00,COMMERCIAL SUPPLIER 
 06-07-2022,Adults,Home Sweet Home Care Ltd,Home Care - Private Contractors Payment,551.04,0.00,COMMERCIAL SUPPLIER 
 06-07-2022,Adults,Home Sweet Home Care Ltd,Home Care - Private Contractors Payment,1103.06,0.00,COMMERCIAL SUPPLIER 
 06-07-2022,Adults,Home Sweet Home Care Ltd,Home Care - Private Contractors Payment,770.14,0.00,COMMERCIAL SUPPLIER 
 06-07-2022,Adults,Home Sweet Home Care Ltd,Home Care - Private Contractors Payment,564.49,0.00,COMMERCIAL SUPPLIER 
 06-07-2022,Adults,Home Sweet Home Care Ltd,Home Care - Private Contractors Payment,826.56,0.00,COMMERCIAL SUPPLIER 
 06-07-2022,Adults,Home Sweet Home Care Ltd,Home Care - Private Contractors Payment,553.01,0.00,COMMERCIAL SUPPLIER 
 06-07-2022,Adults,Home Sweet Home Care Ltd,Home Care - Private Contractors Payment,587.78,0.00,COMMERCIAL SUPPLIER 
 06-07-2022,Adults,Home Sweet Home Care Ltd,Home Care - Private Contractors Payment,1102.08,0.00,COMMERCIAL SUPPLIER 
 06-07-2022,Adults,Home Sweet Home Care Ltd,Home Care - Private Contractors Payment,586.79,0.00,COMMERCIAL SUPPLIER 
 06-07-2022,Adults,Home Sweet Home Care Ltd,Home Care - Private Contractors Payment,586.79,0.00,COMMERCIAL SUPPLIER 
 06-07-2022,Adults,Home Sweet Home Care Ltd,Home Care - Private Contractors Payment,551.04,0.00,COMMERCIAL SUPPLIER 
 06-07-2022,Adults,Home Sweet Home Care Ltd,Home Care - Private Contractors Payment,511.68,0.00,COMMERCIAL SUPPLIER 
 06-07-2022,Adults,Home Sweet Home Care Ltd,Home Care - Private Contractors Payment,993.84,0.00,COMMERCIAL SUPPLIER 
 06-07-2022,Adults,Home Sweet Home Care Ltd,Home Care - Private Contractors Payment,993.84,0.00,COMMERCIAL SUPPLIER 
 06-07-2022,Adults,Home Sweet Home Care Ltd,Home Care - Private Contractors Payment,1021.72,0.00,COMMERCIAL SUPPLIER 
 06-07-2022,Adults,Home Sweet Home Care Ltd,Home Care - Private Contractors Payment,1138.82,0.00,COMMERCIAL SUPPLIER 
 06-07-2022,Adults,Home Sweet Home Care Ltd,Home Care - Private Contractors Payment,649.44,0.00,COMMERCIAL SUPPLIER 
 06-07-2022,Adults,Home Sweet Home Care Ltd,Home Care - Private Contractors Payment,649.44,0.00,COMMERCIAL SUPPLIER 
 06-07-2022,Adults,Home Sweet Home Care Ltd,Home Care - Private Contractors Payment,1092.24,0.00,COMMERCIAL SUPPLIER 
 06-07-2022,Adults,Home Sweet Home Care Ltd,Home Care - Private Contractors Payment,1102.08,0.00,COMMERCIAL SUPPLIER 
 06-07-2022,Adults,Home Sweet Home Care Ltd,Home Care - Private Contractors Payment,553.66,0.00,COMMERCIAL SUPPLIER 
 06-07-2022,Adults,Home Sweet Home Care Ltd,Home Care - Private Contractors Payment,806.88,0.00,COMMERCIAL SUPPLIER 
 06-07-2022,Adults,Home Sweet Home Care Ltd,Home Care - Private Contractors Payment,697.00,0.00,COMMERCIAL SUPPLIER 
 06-07-2022,Adults,Home Sweet Home Care Ltd,Home Care - Private Contractors Payment,772.11,0.00,COMMERCIAL SUPPLIER 
 06-07-2022,Adults,Home Sweet Home Care Ltd,Home Care - Private Contractors Payment,1045.01,0.00,COMMERCIAL SUPPLIER 
 06-07-2022,Adults,Home Sweet Home Care Ltd,Home Care - Private Contractors Payment,1127.01,0.00,COMMERCIAL SUPPLIER 
 06-07-2022,Adults,Home Sweet Home Care Ltd,Home Care - Private Contractors Payment,834.10,0.00,COMMERCIAL SUPPLIER 
 06-07-2022,Adults,Home Sweet Home Care Ltd,Home Care - Private Contractors Payment,680.27,0.00,COMMERCIAL SUPPLIER 
 06-07-2022,Adults,Home Sweet Home Care Ltd,Home Care - Private Contractors Payment,1082.40,0.00,COMMERCIAL SUPPLIER 
 06-07-2022,Adults,Home Sweet Home Care Ltd,Home Care - Private Contractors Payment,1092.24,0.00,COMMERCIAL SUPPLIER 
 06-07-2022,Adults,Home Sweet Home Care Ltd,Home Care - Private Contractors Payment,1030.90,0.00,COMMERCIAL SUPPLIER 
 06-07-2022,Adults,Home Sweet Home Care Ltd,Home Care - Private Contractors Payment,547.10,0.00,COMMERCIAL SUPPLIER 
 06-07-2022,Adults,Home Sweet Home Care Ltd,Home Care - Private Contractors Payment,566.78,0.00,COMMERCIAL SUPPLIER 
 06-07-2022,Adults,Home Sweet Home Care Ltd,Home Care - Private Contractors Payment,1114.22,0.00,COMMERCIAL SUPPLIER 
 06-07-2022,Adults,Home Sweet Home Care Ltd,Home Care - Private Contractors Payment,690.11,0.00,COMMERCIAL SUPPLIER 
 06-07-2022,Adults,Home Sweet Home Care Ltd,Home Care - Private Contractors Payment,551.04,0.00,COMMERCIAL SUPPLIER 
 06-07-2022,Adults,Home Sweet Home Care Ltd,Home Care - Private Contractors Payment,865.92,0.00,COMMERCIAL SUPPLIER 
 06-07-2022,Adults,Home Sweet Home Care Ltd,Home Care - Private Contractors Payment,551.04,0.00,COMMERCIAL SUPPLIER 
 06-07-2022,Adults,Home Sweet Home Care Ltd,Home Care - Private Contractors Payment,1328.40,0.00,COMMERCIAL SUPPLIER 
 06-07-2022,Adults,Home Sweet Home Care Ltd,Home Care - Private Contractors Payment,1328.40,0.00,COMMERCIAL SUPPLIER 
 06-07-2022,Adults,Home Sweet Home Care Ltd,Home Care - Private Contractors Payment,941.69,0.00,COMMERCIAL SUPPLIER 
 06-07-2022,Adults,Home Sweet Home Care Ltd,Home Care - Private Contractors Payment,1180.80,0.00,COMMERCIAL SUPPLIER 
 06-07-2022,Adults,Home Sweet Home Care Ltd,Home Care - Private Contractors Payment,728.16,0.00,COMMERCIAL SUPPLIER 
 06-07-2022,Adults,Home Sweet Home Care Ltd,Home Care - Private Contractors Payment,541.20,0.00,COMMERCIAL SUPPLIER 
 06-07-2022,Adults,Home Sweet Home Care Ltd,Home Care - Private Contractors Payment,524.47,0.00,COMMERCIAL SUPPLIER 
 06-07-2022,Adults,Home Sweet Home Care Ltd,Home Care - Private Contractors Payment,1115.20,0.00,COMMERCIAL SUPPLIER 
 06-07-2022,Adults,Home Sweet Home Care Ltd,Home Care - Private Contractors Payment,566.13,0.00,COMMERCIAL SUPPLIER 
 06-07-2022,Adults,Home Sweet Home Care Ltd,Home Care - Private Contractors Payment,1102.08,0.00,COMMERCIAL SUPPLIER 
 06-07-2022,Adults,Home Sweet Home Care Ltd,Home Care - Private Contractors Payment,1102.08,0.00,COMMERCIAL SUPPLIER 
 06-07-2022,Adults,Home Sweet Home Care Ltd,Home Care - Private Contractors Payment,1092.24,0.00,COMMERCIAL SUPPLIER 
 06-07-2022,Adults,Home Sweet Home Care Ltd,Home Care - Private Contractors Payment,1092.24,0.00,COMMERCIAL SUPPLIER 
 06-07-2022,Adults,Home Sweet Home Care Ltd,Home Care - Private Contractors Payment,1121.10,0.00,COMMERCIAL SUPPLIER 
 06-07-2022,Adults,Home Sweet Home Care Ltd,Home Care - Private Contractors Payment,739.31,0.00,COMMERCIAL SUPPLIER 
 06-07-2022,Adults,Home Sweet Home Care Ltd,Home Care - Private Contractors Payment,552.02,0.00,COMMERCIAL SUPPLIER 
 06-07-2022,Adults,Home Sweet Home Care Ltd,Home Care - Private Contractors Payment,757.68,0.00,COMMERCIAL SUPPLIER 
 06-07-2022,Adults,Home Sweet Home Care Ltd,Home Care - Private Contractors Payment,3584.00,0.00,COMMERCIAL SUPPLIER 
 06-07-2022,Adults,Matrix SCM Ltd,Agency Staff,520.66,0.00,COMMERCIAL SUPPLIER 
 06-07-2022,Adults,Matrix SCM Ltd,Agency Staff,713.85,0.00,COMMERCIAL SUPPLIER 
 06-07-2022,Adults,Matrix SCM Ltd,Agency Staff,1032.56,0.00,COMMERCIAL SUPPLIER 
 06-07-2022,Adults,Matrix SCM Ltd,Agency Staff,1068.32,0.00,COMMERCIAL SUPPLIER 
 06-07-2022,Adults,Matrix SCM Ltd,Agency Staff,1181.15,0.00,COMMERCIAL SUPPLIER 
 06-07-2022,Adults,Matrix SCM Ltd,Agency Staff,1036.56,0.00,COMMERCIAL SUPPLIER 
 06-07-2022,Adults,Matrix SCM Ltd,Agency Staff,1282.34,0.00,COMMERCIAL SUPPLIER 
 06-07-2022,Adults,Matrix SCM Ltd,Agency Staff,1169.28,0.00,COMMERCIAL SUPPLIER 
 06-07-2022,Adults,Matrix SCM Ltd,Agency Staff,537.75,0.00,COMMERCIAL SUPPLIER 
 06-07-2022,Adults,Matrix SCM Ltd,Agency Staff,1290.24,0.00,COMMERCIAL SUPPLIER 
 06-07-2022,Adults,Matrix SCM Ltd,Agency Staff,1290.24,0.00,COMMERCIAL SUPPLIER 
 06-07-2022,Adults,Matrix SCM Ltd,Agency Staff,1014.72,0.00,COMMERCIAL SUPPLIER 
 06-07-2022,Adults,Matrix SCM Ltd,Agency Staff,1181.18,0.00,COMMERCIAL SUPPLIER 
 06-07-2022,Adults,Matrix SCM Ltd,Agency Staff,844.58,0.00,COMMERCIAL SUPPLIER 
 06-07-2022,Adults,Matrix SCM Ltd,Agency Staff,1469.18,0.00,COMMERCIAL SUPPLIER 
 06-07-2022,Adults,Matrix SCM Ltd,Agency Staff,1282.34,0.00,COMMERCIAL SUPPLIER 
 06-07-2022,Adults,Matrix SCM Ltd,Agency Staff,720.71,0.00,COMMERCIAL SUPPLIER 
 06-07-2022,Adults,Matrix SCM Ltd,Agency Staff,754.91,0.00,COMMERCIAL SUPPLIER 
 06-07-2022,Adults,Matrix SCM Ltd,Agency Staff,1132.56,0.00,COMMERCIAL SUPPLIER 
 06-07-2022,Adults,Matrix SCM Ltd,Agency Staff,777.42,0.00,COMMERCIAL SUPPLIER 
 06-07-2022,Adults,Matrix SCM Ltd,Agency Staff,1357.57,0.00,COMMERCIAL SUPPLIER 
 06-07-2022,Adults,Matrix SCM Ltd,Agency Staff,1253.15,0.00,COMMERCIAL SUPPLIER 
 06-07-2022,Adults,Matrix SCM Ltd,Agency Staff,1284.04,0.00,COMMERCIAL SUPPLIER 
 06-07-2022,Adults,Matrix SCM Ltd,Agency Staff,1207.46,0.00,COMMERCIAL SUPPLIER 
 06-07-2022,Adults,Matrix SCM Ltd,Agency Staff,1244.51,0.00,COMMERCIAL SUPPLIER 
 06-07-2022,Adults,Matrix SCM Ltd,Agency Staff,1207.46,0.00,COMMERCIAL SUPPLIER 
 06-07-2022,Adults,Matrix SCM Ltd,Agency Staff,777.42,0.00,COMMERCIAL SUPPLIER 
 06-07-2022,Adults,Matrix SCM Ltd,Agency Staff,1241.28,0.00,COMMERCIAL SUPPLIER 
 06-07-2022,Adults,Matrix SCM Ltd,Agency Staff,1241.28,0.00,COMMERCIAL SUPPLIER 
 06-07-2022,Adults,Matrix SCM Ltd,Agency Staff,1172.32,0.00,COMMERCIAL SUPPLIER 
 06-07-2022,Adults,Matrix SCM Ltd,Agency Staff,728.29,0.00,COMMERCIAL SUPPLIER 
 06-07-2022,Adults,Matrix SCM Ltd,Agency Staff,1241.28,0.00,COMMERCIAL SUPPLIER 
 06-07-2022,Adults,Matrix SCM Ltd,Agency Staff,1285.92,0.00,COMMERCIAL SUPPLIER 
 06-07-2022,Adults,Matrix SCM Ltd,Agency Staff,534.45,0.00,COMMERCIAL SUPPLIER 
 06-07-2022,Adults,Matrix SCM Ltd,Agency Staff,529.84,0.00,COMMERCIAL SUPPLIER 
 06-07-2022,Adults,Matrix SCM Ltd,Agency Staff,611.65,0.00,COMMERCIAL SUPPLIER 
 06-07-2022,Adults,Matrix SCM Ltd,Agency Staff,906.09,0.00,COMMERCIAL SUPPLIER 
 06-07-2022,Adults,Matrix SCM Ltd,Agency Staff,1207.46,0.00,COMMERCIAL SUPPLIER 
 06-07-2022,Adults,Matrix SCM Ltd,Agency Staff,1253.15,0.00,COMMERCIAL SUPPLIER 
 06-07-2022,Adults,Matrix SCM Ltd,Agency Staff,1282.34,0.00,COMMERCIAL SUPPLIER 
 06-07-2022,Adults,Matrix SCM Ltd,Agency Staff,1175.04,0.00,COMMERCIAL SUPPLIER 
 06-07-2022,Adults,Matrix SCM Ltd,Agency Staff,1515.98,0.00,COMMERCIAL SUPPLIER 
 06-07-2022,Adults,Matrix SCM Ltd,Agency Staff,1282.34,0.00,COMMERCIAL SUPPLIER 
 06-07-2022,Adults,Matrix SCM Ltd,Agency Staff,1207.46,0.00,COMMERCIAL SUPPLIER 
 06-07-2022,Adults,Matrix SCM Ltd,Agency Staff,1284.13,0.00,COMMERCIAL SUPPLIER 
 06-07-2022,Adults,Matrix SCM Ltd,Agency Staff,1473.12,0.00,COMMERCIAL SUPPLIER 
 06-07-2022,Adults,Matrix SCM Ltd,Agency Staff,1394.66,0.00,COMMERCIAL SUPPLIER 
 06-07-2022,Adults,Matrix SCM Ltd,Agency Staff,998.64,0.00,COMMERCIAL SUPPLIER 
 06-07-2022,Adults,Matrix SCM Ltd,Agency Staff,759.85,0.00,COMMERCIAL SUPPLIER 
 06-07-2022,Adults,Matrix SCM Ltd,Agency Staff,2777.70,0.00,COMMERCIAL SUPPLIER 
 06-07-2022,Adults,Matrix SCM Ltd,Agency Staff,539.52,0.00,COMMERCIAL SUPPLIER 
 06-07-2022,Adults,Matrix SCM Ltd,Agency Staff,973.60,0.00,COMMERCIAL SUPPLIER 
 06-07-2022,Adults,Matrix SCM Ltd,Agency Staff,1082.80,0.00,COMMERCIAL SUPPLIER 
 06-07-2022,Adults,Matrix SCM Ltd,Agency Staff,2039.16,0.00,COMMERCIAL SUPPLIER 
 06-07-2022,Adults,Matrix SCM Ltd,Agency Staff,798.35,0.00,COMMERCIAL SUPPLIER 
 06-07-2022,Adults,Matrix SCM Ltd,Agency Staff,2546.80,0.00,COMMERCIAL SUPPLIER 
 06-07-2022,Adults,Matrix SCM Ltd,Agency Staff,673.80,0.00,COMMERCIAL SUPPLIER 
 06-07-2022,Adults,North London Community Care Agency,Home Care - Private Contractors Payment,1102.08,0.00,COMMERCIAL SUPPLIER 
 06-07-2022,Adults,North London Community Care Agency,Home Care - Private Contractors Payment,1102.08,0.00,COMMERCIAL SUPPLIER 
 07-07-2022,Adults,London Care Plc_a,Home Care - Private Contractors Payment,1425.49,0.00,COMMERCIAL SUPPLIER 
 07-07-2022,Adults,London Care Plc_a,Home Care - Private Contractors Payment,968.26,0.00,COMMERCIAL SUPPLIER 
 07-07-2022,Adults,London Care Plc_a,Home Care - Private Contractors Payment,590.40,0.00,COMMERCIAL SUPPLIER 
 07-07-2022,Adults,London Care Plc_a,Home Care - Private Contractors Payment,1407.78,0.00,COMMERCIAL SUPPLIER 
 07-07-2022,Adults,London Care Plc_a,Home Care - Private Contractors Payment,1445.17,0.00,COMMERCIAL SUPPLIER 
 07-07-2022,Adults,London Care Plc_a,Home Care - Private Contractors Payment,1405.48,0.00,COMMERCIAL SUPPLIER 
 07-07-2022,Adults,London Care Plc_a,Home Care - Private Contractors Payment,1173.26,0.00,COMMERCIAL SUPPLIER 
 07-07-2022,Adults,London Care Plc_a,Home Care - Private Contractors Payment,1205.40,0.00,COMMERCIAL SUPPLIER 
 07-07-2022,Adults,London Care Plc_a,Home Care - Private Contractors Payment,1393.02,0.00,COMMERCIAL SUPPLIER 
 08-07-2022,Adults,Trinity London Care Ltd,Daycare - Private Contractors Payment,1025.20,0.00,COMMERCIAL SUPPLIER 
 08-07-2022,Adults,Trinity London Care Ltd,Daycare - Private Contractors Payment,2050.00,0.00,COMMERCIAL SUPPLIER 
 08-07-2022,Adults,Trinity London Care Ltd,Daycare - Private Contractors Payment,2050.00,0.00,COMMERCIAL SUPPLIER 
 08-07-2022,Adults,Trinity London Care Ltd,Daycare - Private Contractors Payment,1025.20,0.00,COMMERCIAL SUPPLIER 
 08-07-2022,Adults,Trinity London Care Ltd,Daycare - Private Contractors Payment,1025.20,0.00,COMMERCIAL SUPPLIER 
 08-07-2022,Adults,Trinity London Care Ltd,Daycare - Private Contractors Payment,2050.00,0.00,COMMERCIAL SUPPLIER 
 08-07-2022,Adults,Gims Care Solution Ltd_a,Home Care - Private Contractors Payment,1338.24,0.00,NON COMMERCIAL SUPPLIER 
 08-07-2022,Adults,Gims Care Solution Ltd_a,Home Care - Private Contractors Payment,2204.16,0.00,NON COMMERCIAL SUPPLIER 
 08-07-2022,Adults,Gims Care Solution Ltd_a,Home Care - Private Contractors Payment,3306.24,0.00,NON COMMERCIAL SUPPLIER 
 08-07-2022,Adults,Gims Care Solution Ltd_a,Home Care - Private Contractors Payment,7440.00,0.00,NON COMMERCIAL SUPPLIER 
 08-07-2022,Adults,Romford Private Hire Ltd,Client Transport,2945.00,0.00,COMMERCIAL SUPPLIER 
 08-07-2022,Adults,Lodge Group Care UK Ltd,Home Care - Private Contractors Payment,1162.10,0.00,COMMERCIAL SUPPLIER 
 08-07-2022,Adults,Lodge Group Care UK Ltd,Home Care - Private Contractors Payment,1319.87,0.00,COMMERCIAL SUPPLIER 
 08-07-2022,Adults,Lodge Group Care UK Ltd,Home Care - Private Contractors Payment,1381.86,0.00,COMMERCIAL SUPPLIER 
 08-07-2022,Adults,Lodge Group Care UK Ltd,Home Care - Private Contractors Payment,1099.13,0.00,COMMERCIAL SUPPLIER 
 08-07-2022,Adults,Lodge Group Care UK Ltd,Home Care - Private Contractors Payment,1402.86,0.00,COMMERCIAL SUPPLIER 
 08-07-2022,Adults,Lodge Group Care UK Ltd,Home Care - Private Contractors Payment,1972.92,0.00,COMMERCIAL SUPPLIER 
 08-07-2022,Adults,Lodge Group Care UK Ltd,Home Care - Private Contractors Payment,816.72,0.00,COMMERCIAL SUPPLIER 
 08-07-2022,Adults,Lodge Group Care UK Ltd,Home Care - Private Contractors Payment,817.05,0.00,COMMERCIAL SUPPLIER 
 08-07-2022,Adults,Lodge Group Care UK Ltd,Home Care - Private Contractors Payment,1129.63,0.00,COMMERCIAL SUPPLIER 
 08-07-2022,Adults,Lodge Group Care UK Ltd,Home Care - Private Contractors Payment,551.04,0.00,COMMERCIAL SUPPLIER 
 08-07-2022,Adults,Lodge Group Care UK Ltd,Home Care - Private Contractors Payment,954.81,0.00,COMMERCIAL SUPPLIER 
 08-07-2022,Adults,Lodge Group Care UK Ltd,Home Care - Private Contractors Payment,955.14,0.00,COMMERCIAL SUPPLIER 
 08-07-2022,Adults,Lodge Group Care UK Ltd,Home Care - Private Contractors Payment,701.26,0.00,COMMERCIAL SUPPLIER 
 08-07-2022,Adults,Lodge Group Care UK Ltd,Home Care - Private Contractors Payment,1355.62,0.00,COMMERCIAL SUPPLIER 
 08-07-2022,Adults,Lodge Group Care UK Ltd,Home Care - Private Contractors Payment,848.21,0.00,COMMERCIAL SUPPLIER 
 08-07-2022,Adults,Lodge Group Care UK Ltd,Home Care - Private Contractors Payment,816.72,0.00,COMMERCIAL SUPPLIER 
 08-07-2022,Adults,Lodge Group Care UK Ltd,Home Care - Private Contractors Payment,604.83,0.00,COMMERCIAL SUPPLIER 
 08-07-2022,Adults,Lodge Group Care UK Ltd,Home Care - Private Contractors Payment,582.53,0.00,COMMERCIAL SUPPLIER 
 08-07-2022,Adults,Lodge Group Care UK Ltd,Home Care - Private Contractors Payment,765.22,0.00,COMMERCIAL SUPPLIER 
 08-07-2022,Adults,Lodge Group Care UK Ltd,Home Care - Private Contractors Payment,689.46,0.00,COMMERCIAL SUPPLIER 
 08-07-2022,Adults,Lodge Group Care UK Ltd,Home Care - Private Contractors Payment,1208.68,0.00,COMMERCIAL SUPPLIER 
 08-07-2022,Adults,Lodge Group Care UK Ltd,Home Care - Private Contractors Payment,1225.74,0.00,COMMERCIAL SUPPLIER 
 08-07-2022,Adults,Lodge Group Care UK Ltd,Home Care - Private Contractors Payment,1457.63,0.00,COMMERCIAL SUPPLIER 
 08-07-2022,Adults,Lodge Group Care UK Ltd,Home Care - Private Contractors Payment,612.38,0.00,COMMERCIAL SUPPLIER 
 08-07-2022,Adults,Lodge Group Care UK Ltd,Home Care - Private Contractors Payment,1250.34,0.00,COMMERCIAL SUPPLIER 
 08-07-2022,Adults,Lodge Group Care UK Ltd,Home Care - Private Contractors Payment,1258.86,0.00,COMMERCIAL SUPPLIER 
 08-07-2022,Adults,Lodge Group Care UK Ltd,Home Care - Private Contractors Payment,1187.69,0.00,COMMERCIAL SUPPLIER 
 08-07-2022,Adults,Lodge Group Care UK Ltd,Home Care - Private Contractors Payment,852.80,0.00,COMMERCIAL SUPPLIER 
 08-07-2022,Adults,Lodge Group Care UK Ltd,Home Care - Private Contractors Payment,616.97,0.00,COMMERCIAL SUPPLIER 
 08-07-2022,Adults,Lodge Group Care UK Ltd,Home Care - Private Contractors Payment,1333.32,0.00,COMMERCIAL SUPPLIER 
 08-07-2022,Adults,Lodge Group Care UK Ltd,Home Care - Private Contractors Payment,552.35,0.00,COMMERCIAL SUPPLIER 
 08-07-2022,Adults,Lodge Group Care UK Ltd,Home Care - Private Contractors Payment,552.68,0.00,COMMERCIAL SUPPLIER 
 08-07-2022,Adults,Lodge Group Care UK Ltd,Home Care - Private Contractors Payment,1215.57,0.00,COMMERCIAL SUPPLIER 
 08-07-2022,Adults,Lodge Group Care UK Ltd,Home Care - Private Contractors Payment,1216.55,0.00,COMMERCIAL SUPPLIER 
 08-07-2022,Adults,Lodge Group Care UK Ltd,Home Care - Private Contractors Payment,551.04,0.00,COMMERCIAL SUPPLIER 
 08-07-2022,Adults,Lodge Group Care UK Ltd,Home Care - Private Contractors Payment,551.04,0.00,COMMERCIAL SUPPLIER 
 08-07-2022,Adults,Lodge Group Care UK Ltd,Home Care - Private Contractors Payment,915.12,0.00,COMMERCIAL SUPPLIER 
 08-07-2022,Adults,Lodge Group Care UK Ltd,Home Care - Private Contractors Payment,915.12,0.00,COMMERCIAL SUPPLIER 
 08-07-2022,Adults,Lodge Group Care UK Ltd,Home Care - Private Contractors Payment,1062.72,0.00,COMMERCIAL SUPPLIER 
 08-07-2022,Adults,Lodge Group Care UK Ltd,Home Care - Private Contractors Payment,1580.96,0.00,COMMERCIAL SUPPLIER 
 08-07-2022,Adults,Lodge Group Care UK Ltd,Home Care - Private Contractors Payment,862.31,0.00,COMMERCIAL SUPPLIER 
 08-07-2022,Adults,Lodge Group Care UK Ltd,Home Care - Private Contractors Payment,842.63,0.00,COMMERCIAL SUPPLIER 
 08-07-2022,Adults,Lodge Group Care UK Ltd,Home Care - Private Contractors Payment,842.63,0.00,COMMERCIAL SUPPLIER 
 08-07-2022,Adults,Lodge Group Care UK Ltd,Home Care - Private Contractors Payment,589.09,0.00,COMMERCIAL SUPPLIER 
 08-07-2022,Adults,Lodge Group Care UK Ltd,Home Care - Private Contractors Payment,591.71,0.00,COMMERCIAL SUPPLIER 
 08-07-2022,Adults,Lodge Group Care UK Ltd,Home Care - Private Contractors Payment,501.18,0.00,COMMERCIAL SUPPLIER 
 08-07-2022,Adults,Lodge Group Care UK Ltd,Home Care - Private Contractors Payment,551.04,0.00,COMMERCIAL SUPPLIER 
 08-07-2022,Adults,Lodge Group Care UK Ltd,Home Care - Private Contractors Payment,551.04,0.00,COMMERCIAL SUPPLIER 
 08-07-2022,Adults,Lodge Group Care UK Ltd,Home Care - Private Contractors Payment,1158.17,0.00,COMMERCIAL SUPPLIER 
 08-07-2022,Adults,Lodge Group Care UK Ltd,Home Care - Private Contractors Payment,682.90,0.00,COMMERCIAL SUPPLIER 
 08-07-2022,Adults,Lodge Group Care UK Ltd,Home Care - Private Contractors Payment,620.25,0.00,COMMERCIAL SUPPLIER 
 08-07-2022,Adults,Lodge Group Care UK Ltd,Home Care - Private Contractors Payment,1106.02,0.00,COMMERCIAL SUPPLIER 
 08-07-2022,Adults,Lodge Group Care UK Ltd,Home Care - Private Contractors Payment,810.16,0.00,COMMERCIAL SUPPLIER 
 08-07-2022,Adults,Lodge Group Care UK Ltd,Home Care - Private Contractors Payment,1200.15,0.00,COMMERCIAL SUPPLIER 
 08-07-2022,Adults,Lodge Group Care UK Ltd,Home Care - Private Contractors Payment,590.40,0.00,COMMERCIAL SUPPLIER 
 08-07-2022,Adults,Lodge Group Care UK Ltd,Home Care - Private Contractors Payment,854.44,0.00,COMMERCIAL SUPPLIER 
 08-07-2022,Adults,Lodge Group Care UK Ltd,Home Care - Private Contractors Payment,1102.08,0.00,COMMERCIAL SUPPLIER 
 08-07-2022,Adults,Lodge Group Care UK Ltd,Home Care - Private Contractors Payment,1102.08,0.00,COMMERCIAL SUPPLIER 
 08-07-2022,Adults,Lodge Group Care UK Ltd,Home Care - Private Contractors Payment,517.91,0.00,COMMERCIAL SUPPLIER 
 08-07-2022,Adults,Lodge Group Care UK Ltd,Home Care - Private Contractors Payment,768.83,0.00,COMMERCIAL SUPPLIER 
 08-07-2022,Adults,Lodge Group Care UK Ltd,Home Care - Private Contractors Payment,1320.53,0.00,COMMERCIAL SUPPLIER 
 08-07-2022,Adults,Lodge Group Care UK Ltd,Home Care - Private Contractors Payment,1780.71,0.00,COMMERCIAL SUPPLIER 
 08-07-2022,Adults,Lodge Group Care UK Ltd,Home Care - Private Contractors Payment,1163.09,0.00,COMMERCIAL SUPPLIER 
 08-07-2022,Adults,Lodge Group Care UK Ltd,Home Care - Private Contractors Payment,1232.95,0.00,COMMERCIAL SUPPLIER 
 08-07-2022,Adults,Lodge Group Care UK Ltd,Home Care - Private Contractors Payment,800.65,0.00,COMMERCIAL SUPPLIER 
 08-07-2022,Adults,Lodge Group Care UK Ltd,Home Care - Private Contractors Payment,1103.39,0.00,COMMERCIAL SUPPLIER 
 08-07-2022,Adults,Lodge Group Care UK Ltd,Home Care - Private Contractors Payment,1103.39,0.00,COMMERCIAL SUPPLIER 
 08-07-2022,Adults,Lodge Group Care UK Ltd,Home Care - Private Contractors Payment,1121.10,0.00,COMMERCIAL SUPPLIER 
 08-07-2022,Adults,Lodge Group Care UK Ltd,Home Care - Private Contractors Payment,1124.38,0.00,COMMERCIAL SUPPLIER 
 08-07-2022,Adults,Lodge Group Care UK Ltd,Home Care - Private Contractors Payment,934.47,0.00,COMMERCIAL SUPPLIER 
 08-07-2022,Adults,Lodge Group Care UK Ltd,Home Care - Private Contractors Payment,935.46,0.00,COMMERCIAL SUPPLIER 
